Workbook

Sheet Import
A1: RTA Data import
A6: How does this worksheet work?
A7: This worksheet allows you to import RTA measurements stored on the Bedrock SMxx. Make sure that the RTA result files are copied onto your computer, or that the instrument is attached to USB and accessible as a mass storage device. Then press the button below ("Import RTA"). You can now select the measurement data files that you wish to import. NOTE: by using SHIFT and CTRL you can select multiple files for opening. The measurements are imported into the sheet named "Data." Use the sheet named "View" to browse through these measurements, or copy data directly from the "Data" sheet to your own Worksheet for further calculations. Note that importing data changes this worksheet, overwriting earlier data imports. We recommend that you keep the original version of this worksheet in a safe location, and that you use a new copy of this original file for each new project.
A9: For support or to download the latest version of this file, please refer to our website
A10: www.bedrock-audio.com
A12: Version 2.6.0
A15: COPYRIGHT (C) Embedded Acoustics BV, 2020
A16: ALL RIGHTS RESERVED. This worksheet contains material protected under International and Federal Copyright Laws and Treaties. Any unauthorized use of this material is prohibited. No part of this worksheet may be reproduced or transmitted in any form or by any means, electronic or mechanical, including photocopying, recording, or by any information storage and retrieval system without express written permission from the author.
A18: DISCLAIMER
A19: THIS DOCUMENT IS PROVIDED "AS IS", WITHOUT WARRANTY OF ANY KIND, EXPRESS OR IMPLIED, INCLUDING BUT NOT LIMITED TO THE WARRANTIES OF MERCHANTABILITY, FITNESS FOR A PARTICULAR PURPOSE AND NONINFRINGEMENT. IN NO EVENT SHALL THE AUTHORS OR COPYRIGHT HOLDERS BE LIABLE FOR ANY CLAIM, DAMAGES OR OTHER LIABILITY, WHETHER IN AN ACTION OF CONTRACT, TORT OR OTHERWISE, ARISING FROM, OUT OF OR IN CONNECTION WITH THE SOFTWARE OR THE USE OR OTHER DEALINGS IN THE SOFTWARE

Sheet View
A1: Date | B1: =OFFSET(Data!#REF!,View!$B$25,0) -> 
A2: Time | B2: =OFFSET(Data!#REF!,View!$B$25,0) -> 
A3: Duration [s] | B3: =OFFSET(Data!#REF!,View!$B$25,0) -> 
B5: overall | C5: =IF(OFFSET(C45,$E$41,0)="","",OFFSET(C45,$E$41,0)) ->  | D5: =IF(OFFSET(D45,$E$41,0)="","",OFFSET(D45,$E$41,0)) ->  | AA5: =IF(OFFSET(AA45,$E$41,0)="","",OFFSET(AA45,$E$41,0)) ->  | BP5: =IF(OFFSET(BP45,$E$41,0)="","",OFFSET(BP45,$E$41,0)) -> 
A6: LZeq | B6: =IF(B$5<>"",OFFSET(Data!#REF!,View!$B$25,$DS6),"") ->  | C6: =IF(C$5<>"",OFFSET(Data!#REF!,View!$B$25,$DS6),"") ->  | D6: =IF(D$5<>"",OFFSET(Data!#REF!,View!$B$25,$DS6),"") ->  | E6: =IF(E$5<>"",OFFSET(Data!#REF!,View!$B$25,$DS6),"") ->  | F6: =IF(F$5<>"",OFFSET(Data!#REF!,View!$B$25,$DS6),"") ->  | G6: =IF(G$5<>"",OFFSET(Data!#REF!,View!$B$25,$DS6),"") ->  | H6: =IF(H$5<>"",OFFSET(Data!#REF!,View!$B$25,$DS6),"") ->  | I6: =IF(I$5<>"",OFFSET(Data!#REF!,View!$B$25,$DS6),"") ->  | J6: =IF(J$5<>"",OFFSET(Data!#REF!,View!$B$25,$DS6),"") ->  | K6: =IF(K$5<>"",OFFSET(Data!#REF!,View!$B$25,$DS6),"") ->  | L6: =IF(L$5<>"",OFFSET(Data!#REF!,View!$B$25,$DS6),"") ->  | M6: =IF(M$5<>"",OFFSET(Data!#REF!,View!$B$25,$DS6),"") ->  | N6: =IF(N$5<>"",OFFSET(Data!#REF!,View!$B$25,$DS6),"") ->  | O6: =IF(O$5<>"",OFFSET(Data!#REF!,View!$B$25,$DS6),"") ->  | P6: =IF(P$5<>"",OFFSET(Data!#REF!,View!$B$25,$DS6),"") ->  | Q6: =IF(Q$5<>"",OFFSET(Data!#REF!,View!$B$25,$DS6),"") ->  | R6: =IF(R$5<>"",OFFSET(Data!#REF!,View!$B$25,$DS6),"") ->  | S6: =IF(S$5<>"",OFFSET(Data!#REF!,View!$B$25,$DS6),"") ->  | T6: =IF(T$5<>"",OFFSET(Data!#REF!,View!$B$25,$DS6),"") ->  | U6: =IF(U$5<>"",OFFSET(Data!#REF!,View!$B$25,$DS6),"") ->  | V6: =IF(V$5<>"",OFFSET(Data!#REF!,View!$B$25,$DS6),"") ->  | W6: =IF(W$5<>"",OFFSET(Data!#REF!,View!$B$25,$DS6),"") ->  | X6: =IF(X$5<>"",OFFSET(Data!#REF!,View!$B$25,$DS6),"") ->  | Y6: =IF(Y$5<>"",OFFSET(Data!#REF!,View!$B$25,$DS6),"") ->  | Z6: =IF(Z$5<>"",OFFSET(Data!#REF!,View!$B$25,$DS6),"") ->  | AA6: =IF(AA$5<>"",OFFSET(Data!#REF!,View!$B$25,$DS6),"") ->  | AB6: =IF(AB$5<>"",OFFSET(Data!#REF!,View!$B$25,$DS6),"") ->  | AC6: =IF(AC$5<>"",OFFSET(Data!#REF!,View!$B$25,$DS6),"") ->  | AD6: =IF(AD$5<>"",OFFSET(Data!#REF!,View!$B$25,$DS6),"") ->  | AE6: =IF(AE$5<>"",OFFSET(Data!#REF!,View!$B$25,$DS6),"") ->  | AF6: =IF(AF$5<>"",OFFSET(Data!#REF!,View!$B$25,$DS6),"") ->  | AG6: =IF(AG$5<>"",OFFSET(Data!#REF!,View!$B$25,$DS6),"") ->  | AH6: =IF(AH$5<>"",OFFSET(Data!#REF!,View!$B$25,$DS6),"") ->  | AI6: =IF(AI$5<>"",OFFSET(Data!#REF!,View!$B$25,$DS6),"") ->  | AJ6: =IF(AJ$5<>"",OFFSET(Data!#REF!,View!$B$25,$DS6),"") ->  | AK6: =IF(AK$5<>"",OFFSET(Data!#REF!,View!$B$25,$DS6),"") ->  | AL6: =IF(AL$5<>"",OFFSET(Data!#REF!,View!$B$25,$DS6),"") ->  | AM6: =IF(AM$5<>"",OFFSET(Data!#REF!,View!$B$25,$DS6),"") ->  | AN6: =IF(AN$5<>"",OFFSET(Data!#REF!,View!$B$25,$DS6),"") ->  | AO6: =IF(AO$5<>"",OFFSET(Data!#REF!,View!$B$25,$DS6),"") ->  | AP6: =IF(AP$5<>"",OFFSET(Data!#REF!,View!$B$25,$DS6),"") ->  | AQ6: =IF(AQ$5<>"",OFFSET(Data!#REF!,View!$B$25,$DS6),"") ->  | AR6: =IF(AR$5<>"",OFFSET(Data!#REF!,View!$B$25,$DS6),"") ->  | AS6: =IF(AS$5<>"",OFFSET(Data!#REF!,View!$B$25,$DS6),"") ->  | AT6: =IF(AT$5<>"",OFFSET(Data!#REF!,View!$B$25,$DS6),"") ->  | AU6: =IF(AU$5<>"",OFFSET(Data!#REF!,View!$B$25,$DS6),"") ->  | AV6: =IF(AV$5<>"",OFFSET(Data!#REF!,View!$B$25,$DS6),"") ->  | AW6: =IF(AW$5<>"",OFFSET(Data!#REF!,View!$B$25,$DS6),"") ->  | AX6: =IF(AX$5<>"",OFFSET(Data!#REF!,View!$B$25,$DS6),"") ->  | AY6: =IF(AY$5<>"",OFFSET(Data!#REF!,View!$B$25,$DS6),"") ->  | AZ6: =IF(AZ$5<>"",OFFSET(Data!#REF!,View!$B$25,$DS6),"") ->  | BA6: =IF(BA$5<>"",OFFSET(Data!#REF!,View!$B$25,$DS6),"") ->  | BB6: =IF(BB$5<>"",OFFSET(Data!#REF!,View!$B$25,$DS6),"") ->  | BC6: =IF(BC$5<>"",OFFSET(Data!#REF!,View!$B$25,$DS6),"") ->  | BD6: =IF(BD$5<>"",OFFSET(Data!#REF!,View!$B$25,$DS6),"") ->  | BE6: =IF(BE$5<>"",OFFSET(Data!#REF!,View!$B$25,$DS6),"") ->  | BF6: =IF(BF$5<>"",OFFSET(Data!#REF!,View!$B$25,$DS6),"") ->  | BG6: =IF(BG$5<>"",OFFSET(Data!#REF!,View!$B$25,$DS6),"") ->  | BH6: =IF(BH$5<>"",OFFSET(Data!#REF!,View!$B$25,$DS6),"") ->  | BI6: =IF(BI$5<>"",OFFSET(Data!#REF!,View!$B$25,$DS6),"") ->  | BJ6: =IF(BJ$5<>"",OFFSET(Data!#REF!,View!$B$25,$DS6),"") ->  | BK6: =IF(BK$5<>"",OFFSET(Data!#REF!,View!$B$25,$DS6),"") ->  | BL6: =IF(BL$5<>"",OFFSET(Data!#REF!,View!$B$25,$DS6),"") ->  | BM6: =IF(BM$5<>"",OFFSET(Data!#REF!,View!$B$25,$DS6),"") ->  | BN6: =IF(BN$5<>"",OFFSET(Data!#REF!,View!$B$25,$DS6),"") ->  | BO6: =IF(BO$5<>"",OFFSET(Data!#REF!,View!$B$25,$DS6),"") ->  | BP6: =IF(BP$5<>"",OFFSET(Data!#REF!,View!$B$25,$DS6),"") ->  | BQ6: =IF(BQ$5<>"",OFFSET(Data!#REF!,View!$B$25,$DS6),"") ->  | BR6: =IF(BR$5<>"",OFFSET(Data!#REF!,View!$B$25,$DS6),"") ->  | BS6: =IF(BS$5<>"",OFFSET(Data!#REF!,View!$B$25,$DS6),"") ->  | BT6: =IF(BT$5<>"",OFFSET(Data!#REF!,View!$B$25,$DS6),"") ->  | BU6: =IF(BU$5<>"",OFFSET(Data!#REF!,View!$B$25,$DS6),"") ->  | BV6: =IF(BV$5<>"",OFFSET(Data!#REF!,View!$B$25,$DS6),"") ->  | BW6: =IF(BW$5<>"",OFFSET(Data!#REF!,View!$B$25,$DS6),"") ->  | BX6: =IF(BX$5<>"",OFFSET(Data!#REF!,View!$B$25,$DS6),"") ->  | BY6: =IF(BY$5<>"",OFFSET(Data!#REF!,View!$B$25,$DS6),"") ->  | BZ6: =IF(BZ$5<>"",OFFSET(Data!#REF!,View!$B$25,$DS6),"") ->  | CA6: =IF(CA$5<>"",OFFSET(Data!#REF!,View!$B$25,$DS6),"") ->  | CB6: =IF(CB$5<>"",OFFSET(Data!#REF!,View!$B$25,$DS6),"") ->  | CC6: =IF(CC$5<>"",OFFSET(Data!#REF!,View!$B$25,$DS6),"") ->  | CD6: =IF(CD$5<>"",OFFSET(Data!#REF!,View!$B$25,$DS6),"") ->  | CE6: =IF(CE$5<>"",OFFSET(Data!#REF!,View!$B$25,$DS6),"") ->  | CF6: =IF(CF$5<>"",OFFSET(Data!#REF!,View!$B$25,$DS6),"") ->  | CG6: =IF(CG$5<>"",OFFSET(Data!#REF!,View!$B$25,$DS6),"") ->  | CH6: =IF(CH$5<>"",OFFSET(Data!#REF!,View!$B$25,$DS6),"") ->  | CI6: =IF(CI$5<>"",OFFSET(Data!#REF!,View!$B$25,$DS6),"") ->  | CJ6: =IF(CJ$5<>"",OFFSET(Data!#REF!,View!$B$25,$DS6),"") ->  | CK6: =IF(CK$5<>"",OFFSET(Data!#REF!,View!$B$25,$DS6),"") ->  | CL6: =IF(CL$5<>"",OFFSET(Data!#REF!,View!$B$25,$DS6),"") ->  | CM6: =IF(CM$5<>"",OFFSET(Data!#REF!,View!$B$25,$DS6),"") ->  | CN6: =IF(CN$5<>"",OFFSET(Data!#REF!,View!$B$25,$DS6),"") ->  | CO6: =IF(CO$5<>"",OFFSET(Data!#REF!,View!$B$25,$DS6),"") ->  | CP6: =IF(CP$5<>"",OFFSET(Data!#REF!,View!$B$25,$DS6),"") ->  | CQ6: =IF(CQ$5<>"",OFFSET(Data!#REF!,View!$B$25,$DS6),"") ->  | CR6: =IF(CR$5<>"",OFFSET(Data!#REF!,View!$B$25,$DS6),"") ->  | CS6: =IF(CS$5<>"",OFFSET(Data!#REF!,View!$B$25,$DS6),"") ->  | CT6: =IF(CT$5<>"",OFFSET(Data!#REF!,View!$B$25,$DS6),"") ->  | CU6: =IF(CU$5<>"",OFFSET(Data!#REF!,View!$B$25,$DS6),"") ->  | CV6: =IF(CV$5<>"",OFFSET(Data!#REF!,View!$B$25,$DS6),"") ->  | CW6: =IF(CW$5<>"",OFFSET(Data!#REF!,View!$B$25,$DS6),"") ->  | CX6: =IF(CX$5<>"",OFFSET(Data!#REF!,View!$B$25,$DS6),"") ->  | CY6: =IF(CY$5<>"",OFFSET(Data!#REF!,View!$B$25,$DS6),"") ->  | CZ6: =IF(CZ$5<>"",OFFSET(Data!#REF!,View!$B$25,$DS6),"") ->  | DA6: =IF(DA$5<>"",OFFSET(Data!#REF!,View!$B$25,$DS6),"") ->  | DB6: =IF(DB$5<>"",OFFSET(Data!#REF!,View!$B$25,$DS6),"") ->  | DC6: =IF(DC$5<>"",OFFSET(Data!#REF!,View!$B$25,$DS6),"") ->  | DD6: =IF(DD$5<>"",OFFSET(Data!#REF!,View!$B$25,$DS6),"") ->  | DE6: =IF(DE$5<>"",OFFSET(Data!#REF!,View!$B$25,$DS6),"") ->  | DF6: =IF(DF$5<>"",OFFSET(Data!#REF!,View!$B$25,$DS6),"") ->  | DG6: =IF(DG$5<>"",OFFSET(Data!#REF!,View!$B$25,$DS6),"") ->  | DH6: =IF(DH$5<>"",OFFSET(Data!#REF!,View!$B$25,$DS6),"") ->  | DI6: =IF(DI$5<>"",OFFSET(Data!#REF!,View!$B$25,$DS6),"") ->  | DJ6: =IF(DJ$5<>"",OFFSET(Data!#REF!,View!$B$25,$DS6),"") ->  | DK6: =IF(DK$5<>"",OFFSET(Data!#REF!,View!$B$25,$DS6),"") ->  | DL6: =IF(DL$5<>"",OFFSET(Data!#REF!,View!$B$25,$DS6),"") ->  | DM6: =IF(DM$5<>"",OFFSET(Data!#REF!,View!$B$25,$DS6),"") ->  | DN6: =IF(DN$5<>"",OFFSET(Data!#REF!,View!$B$25,$DS6),"") ->  | DO6: =IF(DO$5<>"",OFFSET(Data!#REF!,View!$B$25,$DS6),"") ->  | DP6: =IF(DP$5<>"",OFFSET(Data!#REF!,View!$B$25,$DS6),"") ->  | DQ6: =IF(DQ$5<>"",OFFSET(Data!#REF!,View!$B$25,$DS6),"") ->  | DR6: =IF(DR$5<>"",OFFSET(Data!#REF!,View!$B$25,$DS6),"") ->  | DS6: =($C$41+1)*8 -> 
A7: LAeq | B7: =IF(B$5<>"",OFFSET(Data!#REF!,View!$B$25,$DS7),"") ->  | C7: =IF(C$5<>"",OFFSET(Data!#REF!,View!$B$25,$DS7),"") ->  | D7: =IF(D$5<>"",OFFSET(Data!#REF!,View!$B$25,$DS7),"") ->  | E7: =IF(E$5<>"",OFFSET(Data!#REF!,View!$B$25,$DS7),"") ->  | F7: =IF(F$5<>"",OFFSET(Data!#REF!,View!$B$25,$DS7),"") ->  | G7: =IF(G$5<>"",OFFSET(Data!#REF!,View!$B$25,$DS7),"") ->  | H7: =IF(H$5<>"",OFFSET(Data!#REF!,View!$B$25,$DS7),"") ->  | I7: =IF(I$5<>"",OFFSET(Data!#REF!,View!$B$25,$DS7),"") ->  | J7: =IF(J$5<>"",OFFSET(Data!#REF!,View!$B$25,$DS7),"") ->  | K7: =IF(K$5<>"",OFFSET(Data!#REF!,View!$B$25,$DS7),"") ->  | L7: =IF(L$5<>"",OFFSET(Data!#REF!,View!$B$25,$DS7),"") ->  | M7: =IF(M$5<>"",OFFSET(Data!#REF!,View!$B$25,$DS7),"") ->  | N7: =IF(N$5<>"",OFFSET(Data!#REF!,View!$B$25,$DS7),"") ->  | O7: =IF(O$5<>"",OFFSET(Data!#REF!,View!$B$25,$DS7),"") ->  | P7: =IF(P$5<>"",OFFSET(Data!#REF!,View!$B$25,$DS7),"") ->  | Q7: =IF(Q$5<>"",OFFSET(Data!#REF!,View!$B$25,$DS7),"") ->  | R7: =IF(R$5<>"",OFFSET(Data!#REF!,View!$B$25,$DS7),"") ->  | S7: =IF(S$5<>"",OFFSET(Data!#REF!,View!$B$25,$DS7),"") ->  | T7: =IF(T$5<>"",OFFSET(Data!#REF!,View!$B$25,$DS7),"") ->  | U7: =IF(U$5<>"",OFFSET(Data!#REF!,View!$B$25,$DS7),"") ->  | V7: =IF(V$5<>"",OFFSET(Data!#REF!,View!$B$25,$DS7),"") ->  | W7: =IF(W$5<>"",OFFSET(Data!#REF!,View!$B$25,$DS7),"") ->  | X7: =IF(X$5<>"",OFFSET(Data!#REF!,View!$B$25,$DS7),"") ->  | Y7: =IF(Y$5<>"",OFFSET(Data!#REF!,View!$B$25,$DS7),"") ->  | Z7: =IF(Z$5<>"",OFFSET(Data!#REF!,View!$B$25,$DS7),"") ->  | AA7: =IF(AA$5<>"",OFFSET(Data!#REF!,View!$B$25,$DS7),"") ->  | AB7: =IF(AB$5<>"",OFFSET(Data!#REF!,View!$B$25,$DS7),"") ->  | AC7: =IF(AC$5<>"",OFFSET(Data!#REF!,View!$B$25,$DS7),"") ->  | AD7: =IF(AD$5<>"",OFFSET(Data!#REF!,View!$B$25,$DS7),"") ->  | AE7: =IF(AE$5<>"",OFFSET(Data!#REF!,View!$B$25,$DS7),"") ->  | AF7: =IF(AF$5<>"",OFFSET(Data!#REF!,View!$B$25,$DS7),"") ->  | AG7: =IF(AG$5<>"",OFFSET(Data!#REF!,View!$B$25,$DS7),"") ->  | AH7: =IF(AH$5<>"",OFFSET(Data!#REF!,View!$B$25,$DS7),"") ->  | AI7: =IF(AI$5<>"",OFFSET(Data!#REF!,View!$B$25,$DS7),"") ->  | AJ7: =IF(AJ$5<>"",OFFSET(Data!#REF!,View!$B$25,$DS7),"") ->  | AK7: =IF(AK$5<>"",OFFSET(Data!#REF!,View!$B$25,$DS7),"") ->  | AL7: =IF(AL$5<>"",OFFSET(Data!#REF!,View!$B$25,$DS7),"") ->  | AM7: =IF(AM$5<>"",OFFSET(Data!#REF!,View!$B$25,$DS7),"") ->  | AN7: =IF(AN$5<>"",OFFSET(Data!#REF!,View!$B$25,$DS7),"") ->  | AO7: =IF(AO$5<>"",OFFSET(Data!#REF!,View!$B$25,$DS7),"") ->  | AP7: =IF(AP$5<>"",OFFSET(Data!#REF!,View!$B$25,$DS7),"") ->  | AQ7: =IF(AQ$5<>"",OFFSET(Data!#REF!,View!$B$25,$DS7),"") ->  | AR7: =IF(AR$5<>"",OFFSET(Data!#REF!,View!$B$25,$DS7),"") ->  | AS7: =IF(AS$5<>"",OFFSET(Data!#REF!,View!$B$25,$DS7),"") ->  | AT7: =IF(AT$5<>"",OFFSET(Data!#REF!,View!$B$25,$DS7),"") ->  | AU7: =IF(AU$5<>"",OFFSET(Data!#REF!,View!$B$25,$DS7),"") ->  | AV7: =IF(AV$5<>"",OFFSET(Data!#REF!,View!$B$25,$DS7),"") ->  | AW7: =IF(AW$5<>"",OFFSET(Data!#REF!,View!$B$25,$DS7),"") ->  | AX7: =IF(AX$5<>"",OFFSET(Data!#REF!,View!$B$25,$DS7),"") ->  | AY7: =IF(AY$5<>"",OFFSET(Data!#REF!,View!$B$25,$DS7),"") ->  | AZ7: =IF(AZ$5<>"",OFFSET(Data!#REF!,View!$B$25,$DS7),"") ->  | BA7: =IF(BA$5<>"",OFFSET(Data!#REF!,View!$B$25,$DS7),"") ->  | BB7: =IF(BB$5<>"",OFFSET(Data!#REF!,View!$B$25,$DS7),"") ->  | BC7: =IF(BC$5<>"",OFFSET(Data!#REF!,View!$B$25,$DS7),"") ->  | BD7: =IF(BD$5<>"",OFFSET(Data!#REF!,View!$B$25,$DS7),"") ->  | BE7: =IF(BE$5<>"",OFFSET(Data!#REF!,View!$B$25,$DS7),"") ->  | BF7: =IF(BF$5<>"",OFFSET(Data!#REF!,View!$B$25,$DS7),"") ->  | BG7: =IF(BG$5<>"",OFFSET(Data!#REF!,View!$B$25,$DS7),"") ->  | BH7: =IF(BH$5<>"",OFFSET(Data!#REF!,View!$B$25,$DS7),"") ->  | BI7: =IF(BI$5<>"",OFFSET(Data!#REF!,View!$B$25,$DS7),"") ->  | BJ7: =IF(BJ$5<>"",OFFSET(Data!#REF!,View!$B$25,$DS7),"") ->  | BK7: =IF(BK$5<>"",OFFSET(Data!#REF!,View!$B$25,$DS7),"") ->  | BL7: =IF(BL$5<>"",OFFSET(Data!#REF!,View!$B$25,$DS7),"") ->  | BM7: =IF(BM$5<>"",OFFSET(Data!#REF!,View!$B$25,$DS7),"") ->  | BN7: =IF(BN$5<>"",OFFSET(Data!#REF!,View!$B$25,$DS7),"") ->  | BO7: =IF(BO$5<>"",OFFSET(Data!#REF!,View!$B$25,$DS7),"") ->  | BP7: =IF(BP$5<>"",OFFSET(Data!#REF!,View!$B$25,$DS7),"") ->  | BQ7: =IF(BQ$5<>"",OFFSET(Data!#REF!,View!$B$25,$DS7),"") ->  | BR7: =IF(BR$5<>"",OFFSET(Data!#REF!,View!$B$25,$DS7),"") ->  | BS7: =IF(BS$5<>"",OFFSET(Data!#REF!,View!$B$25,$DS7),"") ->  | BT7: =IF(BT$5<>"",OFFSET(Data!#REF!,View!$B$25,$DS7),"") ->  | BU7: =IF(BU$5<>"",OFFSET(Data!#REF!,View!$B$25,$DS7),"") ->  | BV7: =IF(BV$5<>"",OFFSET(Data!#REF!,View!$B$25,$DS7),"") ->  | BW7: =IF(BW$5<>"",OFFSET(Data!#REF!,View!$B$25,$DS7),"") ->  | BX7: =IF(BX$5<>"",OFFSET(Data!#REF!,View!$B$25,$DS7),"") ->  | BY7: =IF(BY$5<>"",OFFSET(Data!#REF!,View!$B$25,$DS7),"") ->  | BZ7: =IF(BZ$5<>"",OFFSET(Data!#REF!,View!$B$25,$DS7),"") ->  | CA7: =IF(CA$5<>"",OFFSET(Data!#REF!,View!$B$25,$DS7),"") ->  | CB7: =IF(CB$5<>"",OFFSET(Data!#REF!,View!$B$25,$DS7),"") ->  | CC7: =IF(CC$5<>"",OFFSET(Data!#REF!,View!$B$25,$DS7),"") ->  | CD7: =IF(CD$5<>"",OFFSET(Data!#REF!,View!$B$25,$DS7),"") ->  | CE7: =IF(CE$5<>"",OFFSET(Data!#REF!,View!$B$25,$DS7),"") ->  | CF7: =IF(CF$5<>"",OFFSET(Data!#REF!,View!$B$25,$DS7),"") ->  | CG7: =IF(CG$5<>"",OFFSET(Data!#REF!,View!$B$25,$DS7),"") ->  | CH7: =IF(CH$5<>"",OFFSET(Data!#REF!,View!$B$25,$DS7),"") ->  | CI7: =IF(CI$5<>"",OFFSET(Data!#REF!,View!$B$25,$DS7),"") ->  | CJ7: =IF(CJ$5<>"",OFFSET(Data!#REF!,View!$B$25,$DS7),"") ->  | CK7: =IF(CK$5<>"",OFFSET(Data!#REF!,View!$B$25,$DS7),"") ->  | CL7: =IF(CL$5<>"",OFFSET(Data!#REF!,View!$B$25,$DS7),"") ->  | CM7: =IF(CM$5<>"",OFFSET(Data!#REF!,View!$B$25,$DS7),"") ->  | CN7: =IF(CN$5<>"",OFFSET(Data!#REF!,View!$B$25,$DS7),"") ->  | CO7: =IF(CO$5<>"",OFFSET(Data!#REF!,View!$B$25,$DS7),"") ->  | CP7: =IF(CP$5<>"",OFFSET(Data!#REF!,View!$B$25,$DS7),"") ->  | CQ7: =IF(CQ$5<>"",OFFSET(Data!#REF!,View!$B$25,$DS7),"") ->  | CR7: =IF(CR$5<>"",OFFSET(Data!#REF!,View!$B$25,$DS7),"") ->  | CS7: =IF(CS$5<>"",OFFSET(Data!#REF!,View!$B$25,$DS7),"") ->  | CT7: =IF(CT$5<>"",OFFSET(Data!#REF!,View!$B$25,$DS7),"") ->  | CU7: =IF(CU$5<>"",OFFSET(Data!#REF!,View!$B$25,$DS7),"") ->  | CV7: =IF(CV$5<>"",OFFSET(Data!#REF!,View!$B$25,$DS7),"") ->  | CW7: =IF(CW$5<>"",OFFSET(Data!#REF!,View!$B$25,$DS7),"") ->  | CX7: =IF(CX$5<>"",OFFSET(Data!#REF!,View!$B$25,$DS7),"") ->  | CY7: =IF(CY$5<>"",OFFSET(Data!#REF!,View!$B$25,$DS7),"") ->  | CZ7: =IF(CZ$5<>"",OFFSET(Data!#REF!,View!$B$25,$DS7),"") ->  | DA7: =IF(DA$5<>"",OFFSET(Data!#REF!,View!$B$25,$DS7),"") ->  | DB7: =IF(DB$5<>"",OFFSET(Data!#REF!,View!$B$25,$DS7),"") ->  | DC7: =IF(DC$5<>"",OFFSET(Data!#REF!,View!$B$25,$DS7),"") ->  | DD7: =IF(DD$5<>"",OFFSET(Data!#REF!,View!$B$25,$DS7),"") ->  | DE7: =IF(DE$5<>"",OFFSET(Data!#REF!,View!$B$25,$DS7),"") ->  | DF7: =IF(DF$5<>"",OFFSET(Data!#REF!,View!$B$25,$DS7),"") ->  | DG7: =IF(DG$5<>"",OFFSET(Data!#REF!,View!$B$25,$DS7),"") ->  | DH7: =IF(DH$5<>"",OFFSET(Data!#REF!,View!$B$25,$DS7),"") ->  | DI7: =IF(DI$5<>"",OFFSET(Data!#REF!,View!$B$25,$DS7),"") ->  | DJ7: =IF(DJ$5<>"",OFFSET(Data!#REF!,View!$B$25,$DS7),"") ->  | DK7: =IF(DK$5<>"",OFFSET(Data!#REF!,View!$B$25,$DS7),"") ->  | DL7: =IF(DL$5<>"",OFFSET(Data!#REF!,View!$B$25,$DS7),"") ->  | DM7: =IF(DM$5<>"",OFFSET(Data!#REF!,View!$B$25,$DS7),"") ->  | DN7: =IF(DN$5<>"",OFFSET(Data!#REF!,View!$B$25,$DS7),"") ->  | DO7: =IF(DO$5<>"",OFFSET(Data!#REF!,View!$B$25,$DS7),"") ->  | DP7: =IF(DP$5<>"",OFFSET(Data!#REF!,View!$B$25,$DS7),"") ->  | DQ7: =IF(DQ$5<>"",OFFSET(Data!#REF!,View!$B$25,$DS7),"") ->  | DR7: =IF(DR$5<>"",OFFSET(Data!#REF!,View!$B$25,$DS7),"") ->  | DS7: =($C$41+1)*0 -> 
A8: LCeq | B8: =IF(B$5<>"",OFFSET(Data!#REF!,View!$B$25,$DS8),"") ->  | C8: =IF(C$5<>"",OFFSET(Data!#REF!,View!$B$25,$DS8),"") ->  | D8: =IF(D$5<>"",OFFSET(Data!#REF!,View!$B$25,$DS8),"") ->  | E8: =IF(E$5<>"",OFFSET(Data!#REF!,View!$B$25,$DS8),"") ->  | F8: =IF(F$5<>"",OFFSET(Data!#REF!,View!$B$25,$DS8),"") ->  | G8: =IF(G$5<>"",OFFSET(Data!#REF!,View!$B$25,$DS8),"") ->  | H8: =IF(H$5<>"",OFFSET(Data!#REF!,View!$B$25,$DS8),"") ->  | I8: =IF(I$5<>"",OFFSET(Data!#REF!,View!$B$25,$DS8),"") ->  | J8: =IF(J$5<>"",OFFSET(Data!#REF!,View!$B$25,$DS8),"") ->  | K8: =IF(K$5<>"",OFFSET(Data!#REF!,View!$B$25,$DS8),"") ->  | L8: =IF(L$5<>"",OFFSET(Data!#REF!,View!$B$25,$DS8),"") ->  | M8: =IF(M$5<>"",OFFSET(Data!#REF!,View!$B$25,$DS8),"") ->  | N8: =IF(N$5<>"",OFFSET(Data!#REF!,View!$B$25,$DS8),"") ->  | O8: =IF(O$5<>"",OFFSET(Data!#REF!,View!$B$25,$DS8),"") ->  | P8: =IF(P$5<>"",OFFSET(Data!#REF!,View!$B$25,$DS8),"") ->  | Q8: =IF(Q$5<>"",OFFSET(Data!#REF!,View!$B$25,$DS8),"") ->  | R8: =IF(R$5<>"",OFFSET(Data!#REF!,View!$B$25,$DS8),"") ->  | S8: =IF(S$5<>"",OFFSET(Data!#REF!,View!$B$25,$DS8),"") ->  | T8: =IF(T$5<>"",OFFSET(Data!#REF!,View!$B$25,$DS8),"") ->  | U8: =IF(U$5<>"",OFFSET(Data!#REF!,View!$B$25,$DS8),"") ->  | V8: =IF(V$5<>"",OFFSET(Data!#REF!,View!$B$25,$DS8),"") ->  | W8: =IF(W$5<>"",OFFSET(Data!#REF!,View!$B$25,$DS8),"") ->  | X8: =IF(X$5<>"",OFFSET(Data!#REF!,View!$B$25,$DS8),"") ->  | Y8: =IF(Y$5<>"",OFFSET(Data!#REF!,View!$B$25,$DS8),"") ->  | Z8: =IF(Z$5<>"",OFFSET(Data!#REF!,View!$B$25,$DS8),"") ->  | AA8: =IF(AA$5<>"",OFFSET(Data!#REF!,View!$B$25,$DS8),"") ->  | AB8: =IF(AB$5<>"",OFFSET(Data!#REF!,View!$B$25,$DS8),"") ->  | AC8: =IF(AC$5<>"",OFFSET(Data!#REF!,View!$B$25,$DS8),"") ->  | AD8: =IF(AD$5<>"",OFFSET(Data!#REF!,View!$B$25,$DS8),"") ->  | AE8: =IF(AE$5<>"",OFFSET(Data!#REF!,View!$B$25,$DS8),"") ->  | AF8: =IF(AF$5<>"",OFFSET(Data!#REF!,View!$B$25,$DS8),"") ->  | AG8: =IF(AG$5<>"",OFFSET(Data!#REF!,View!$B$25,$DS8),"") ->  | AH8: =IF(AH$5<>"",OFFSET(Data!#REF!,View!$B$25,$DS8),"") ->  | AI8: =IF(AI$5<>"",OFFSET(Data!#REF!,View!$B$25,$DS8),"") ->  | AJ8: =IF(AJ$5<>"",OFFSET(Data!#REF!,View!$B$25,$DS8),"") ->  | AK8: =IF(AK$5<>"",OFFSET(Data!#REF!,View!$B$25,$DS8),"") ->  | AL8: =IF(AL$5<>"",OFFSET(Data!#REF!,View!$B$25,$DS8),"") ->  | AM8: =IF(AM$5<>"",OFFSET(Data!#REF!,View!$B$25,$DS8),"") ->  | AN8: =IF(AN$5<>"",OFFSET(Data!#REF!,View!$B$25,$DS8),"") ->  | AO8: =IF(AO$5<>"",OFFSET(Data!#REF!,View!$B$25,$DS8),"") ->  | AP8: =IF(AP$5<>"",OFFSET(Data!#REF!,View!$B$25,$DS8),"") ->  | AQ8: =IF(AQ$5<>"",OFFSET(Data!#REF!,View!$B$25,$DS8),"") ->  | AR8: =IF(AR$5<>"",OFFSET(Data!#REF!,View!$B$25,$DS8),"") ->  | AS8: =IF(AS$5<>"",OFFSET(Data!#REF!,View!$B$25,$DS8),"") ->  | AT8: =IF(AT$5<>"",OFFSET(Data!#REF!,View!$B$25,$DS8),"") ->  | AU8: =IF(AU$5<>"",OFFSET(Data!#REF!,View!$B$25,$DS8),"") ->  | AV8: =IF(AV$5<>"",OFFSET(Data!#REF!,View!$B$25,$DS8),"") ->  | AW8: =IF(AW$5<>"",OFFSET(Data!#REF!,View!$B$25,$DS8),"") ->  | AX8: =IF(AX$5<>"",OFFSET(Data!#REF!,View!$B$25,$DS8),"") ->  | AY8: =IF(AY$5<>"",OFFSET(Data!#REF!,View!$B$25,$DS8),"") ->  | AZ8: =IF(AZ$5<>"",OFFSET(Data!#REF!,View!$B$25,$DS8),"") ->  | BA8: =IF(BA$5<>"",OFFSET(Data!#REF!,View!$B$25,$DS8),"") ->  | BB8: =IF(BB$5<>"",OFFSET(Data!#REF!,View!$B$25,$DS8),"") ->  | BC8: =IF(BC$5<>"",OFFSET(Data!#REF!,View!$B$25,$DS8),"") ->  | BD8: =IF(BD$5<>"",OFFSET(Data!#REF!,View!$B$25,$DS8),"") ->  | BE8: =IF(BE$5<>"",OFFSET(Data!#REF!,View!$B$25,$DS8),"") ->  | BF8: =IF(BF$5<>"",OFFSET(Data!#REF!,View!$B$25,$DS8),"") ->  | BG8: =IF(BG$5<>"",OFFSET(Data!#REF!,View!$B$25,$DS8),"") ->  | BH8: =IF(BH$5<>"",OFFSET(Data!#REF!,View!$B$25,$DS8),"") ->  | BI8: =IF(BI$5<>"",OFFSET(Data!#REF!,View!$B$25,$DS8),"") ->  | BJ8: =IF(BJ$5<>"",OFFSET(Data!#REF!,View!$B$25,$DS8),"") ->  | BK8: =IF(BK$5<>"",OFFSET(Data!#REF!,View!$B$25,$DS8),"") ->  | BL8: =IF(BL$5<>"",OFFSET(Data!#REF!,View!$B$25,$DS8),"") ->  | BM8: =IF(BM$5<>"",OFFSET(Data!#REF!,View!$B$25,$DS8),"") ->  | BN8: =IF(BN$5<>"",OFFSET(Data!#REF!,View!$B$25,$DS8),"") ->  | BO8: =IF(BO$5<>"",OFFSET(Data!#REF!,View!$B$25,$DS8),"") ->  | BP8: =IF(BP$5<>"",OFFSET(Data!#REF!,View!$B$25,$DS8),"") ->  | BQ8: =IF(BQ$5<>"",OFFSET(Data!#REF!,View!$B$25,$DS8),"") ->  | BR8: =IF(BR$5<>"",OFFSET(Data!#REF!,View!$B$25,$DS8),"") ->  | BS8: =IF(BS$5<>"",OFFSET(Data!#REF!,View!$B$25,$DS8),"") ->  | BT8: =IF(BT$5<>"",OFFSET(Data!#REF!,View!$B$25,$DS8),"") ->  | BU8: =IF(BU$5<>"",OFFSET(Data!#REF!,View!$B$25,$DS8),"") ->  | BV8: =IF(BV$5<>"",OFFSET(Data!#REF!,View!$B$25,$DS8),"") ->  | BW8: =IF(BW$5<>"",OFFSET(Data!#REF!,View!$B$25,$DS8),"") ->  | BX8: =IF(BX$5<>"",OFFSET(Data!#REF!,View!$B$25,$DS8),"") ->  | BY8: =IF(BY$5<>"",OFFSET(Data!#REF!,View!$B$25,$DS8),"") ->  | BZ8: =IF(BZ$5<>"",OFFSET(Data!#REF!,View!$B$25,$DS8),"") ->  | CA8: =IF(CA$5<>"",OFFSET(Data!#REF!,View!$B$25,$DS8),"") ->  | CB8: =IF(CB$5<>"",OFFSET(Data!#REF!,View!$B$25,$DS8),"") ->  | CC8: =IF(CC$5<>"",OFFSET(Data!#REF!,View!$B$25,$DS8),"") ->  | CD8: =IF(CD$5<>"",OFFSET(Data!#REF!,View!$B$25,$DS8),"") ->  | CE8: =IF(CE$5<>"",OFFSET(Data!#REF!,View!$B$25,$DS8),"") ->  | CF8: =IF(CF$5<>"",OFFSET(Data!#REF!,View!$B$25,$DS8),"") ->  | CG8: =IF(CG$5<>"",OFFSET(Data!#REF!,View!$B$25,$DS8),"") ->  | CH8: =IF(CH$5<>"",OFFSET(Data!#REF!,View!$B$25,$DS8),"") ->  | CI8: =IF(CI$5<>"",OFFSET(Data!#REF!,View!$B$25,$DS8),"") ->  | CJ8: =IF(CJ$5<>"",OFFSET(Data!#REF!,View!$B$25,$DS8),"") ->  | CK8: =IF(CK$5<>"",OFFSET(Data!#REF!,View!$B$25,$DS8),"") ->  | CL8: =IF(CL$5<>"",OFFSET(Data!#REF!,View!$B$25,$DS8),"") ->  | CM8: =IF(CM$5<>"",OFFSET(Data!#REF!,View!$B$25,$DS8),"") ->  | CN8: =IF(CN$5<>"",OFFSET(Data!#REF!,View!$B$25,$DS8),"") ->  | CO8: =IF(CO$5<>"",OFFSET(Data!#REF!,View!$B$25,$DS8),"") ->  | CP8: =IF(CP$5<>"",OFFSET(Data!#REF!,View!$B$25,$DS8),"") ->  | CQ8: =IF(CQ$5<>"",OFFSET(Data!#REF!,View!$B$25,$DS8),"") ->  | CR8: =IF(CR$5<>"",OFFSET(Data!#REF!,View!$B$25,$DS8),"") ->  | CS8: =IF(CS$5<>"",OFFSET(Data!#REF!,View!$B$25,$DS8),"") ->  | CT8: =IF(CT$5<>"",OFFSET(Data!#REF!,View!$B$25,$DS8),"") ->  | CU8: =IF(CU$5<>"",OFFSET(Data!#REF!,View!$B$25,$DS8),"") ->  | CV8: =IF(CV$5<>"",OFFSET(Data!#REF!,View!$B$25,$DS8),"") ->  | CW8: =IF(CW$5<>"",OFFSET(Data!#REF!,View!$B$25,$DS8),"") ->  | CX8: =IF(CX$5<>"",OFFSET(Data!#REF!,View!$B$25,$DS8),"") ->  | CY8: =IF(CY$5<>"",OFFSET(Data!#REF!,View!$B$25,$DS8),"") ->  | CZ8: =IF(CZ$5<>"",OFFSET(Data!#REF!,View!$B$25,$DS8),"") ->  | DA8: =IF(DA$5<>"",OFFSET(Data!#REF!,View!$B$25,$DS8),"") ->  | DB8: =IF(DB$5<>"",OFFSET(Data!#REF!,View!$B$25,$DS8),"") ->  | DC8: =IF(DC$5<>"",OFFSET(Data!#REF!,View!$B$25,$DS8),"") ->  | DD8: =IF(DD$5<>"",OFFSET(Data!#REF!,View!$B$25,$DS8),"") ->  | DE8: =IF(DE$5<>"",OFFSET(Data!#REF!,View!$B$25,$DS8),"") ->  | DF8: =IF(DF$5<>"",OFFSET(Data!#REF!,View!$B$25,$DS8),"") ->  | DG8: =IF(DG$5<>"",OFFSET(Data!#REF!,View!$B$25,$DS8),"") ->  | DH8: =IF(DH$5<>"",OFFSET(Data!#REF!,View!$B$25,$DS8),"") ->  | DI8: =IF(DI$5<>"",OFFSET(Data!#REF!,View!$B$25,$DS8),"") ->  | DJ8: =IF(DJ$5<>"",OFFSET(Data!#REF!,View!$B$25,$DS8),"") ->  | DK8: =IF(DK$5<>"",OFFSET(Data!#REF!,View!$B$25,$DS8),"") ->  | DL8: =IF(DL$5<>"",OFFSET(Data!#REF!,View!$B$25,$DS8),"") ->  | DM8: =IF(DM$5<>"",OFFSET(Data!#REF!,View!$B$25,$DS8),"") ->  | DN8: =IF(DN$5<>"",OFFSET(Data!#REF!,View!$B$25,$DS8),"") ->  | DO8: =IF(DO$5<>"",OFFSET(Data!#REF!,View!$B$25,$DS8),"") ->  | DP8: =IF(DP$5<>"",OFFSET(Data!#REF!,View!$B$25,$DS8),"") ->  | DQ8: =IF(DQ$5<>"",OFFSET(Data!#REF!,View!$B$25,$DS8),"") ->  | DR8: =IF(DR$5<>"",OFFSET(Data!#REF!,View!$B$25,$DS8),"") ->  | DS8: =($C$41+1)*4 -> 
A10: LZfmax | B10: =IF(B$5<>"",OFFSET(Data!#REF!,View!$B$25,$DS10),"") ->  | C10: =IF(C$5<>"",OFFSET(Data!#REF!,View!$B$25,$DS10),"") ->  | D10: =IF(D$5<>"",OFFSET(Data!#REF!,View!$B$25,$DS10),"") ->  | E10: =IF(E$5<>"",OFFSET(Data!#REF!,View!$B$25,$DS10),"") ->  | F10: =IF(F$5<>"",OFFSET(Data!#REF!,View!$B$25,$DS10),"") ->  | G10: =IF(G$5<>"",OFFSET(Data!#REF!,View!$B$25,$DS10),"") ->  | H10: =IF(H$5<>"",OFFSET(Data!#REF!,View!$B$25,$DS10),"") ->  | I10: =IF(I$5<>"",OFFSET(Data!#REF!,View!$B$25,$DS10),"") ->  | J10: =IF(J$5<>"",OFFSET(Data!#REF!,View!$B$25,$DS10),"") ->  | K10: =IF(K$5<>"",OFFSET(Data!#REF!,View!$B$25,$DS10),"") ->  | L10: =IF(L$5<>"",OFFSET(Data!#REF!,View!$B$25,$DS10),"") ->  | M10: =IF(M$5<>"",OFFSET(Data!#REF!,View!$B$25,$DS10),"") ->  | N10: =IF(N$5<>"",OFFSET(Data!#REF!,View!$B$25,$DS10),"") ->  | O10: =IF(O$5<>"",OFFSET(Data!#REF!,View!$B$25,$DS10),"") ->  | P10: =IF(P$5<>"",OFFSET(Data!#REF!,View!$B$25,$DS10),"") ->  | Q10: =IF(Q$5<>"",OFFSET(Data!#REF!,View!$B$25,$DS10),"") ->  | R10: =IF(R$5<>"",OFFSET(Data!#REF!,View!$B$25,$DS10),"") ->  | S10: =IF(S$5<>"",OFFSET(Data!#REF!,View!$B$25,$DS10),"") ->  | T10: =IF(T$5<>"",OFFSET(Data!#REF!,View!$B$25,$DS10),"") ->  | U10: =IF(U$5<>"",OFFSET(Data!#REF!,View!$B$25,$DS10),"") ->  | V10: =IF(V$5<>"",OFFSET(Data!#REF!,View!$B$25,$DS10),"") ->  | W10: =IF(W$5<>"",OFFSET(Data!#REF!,View!$B$25,$DS10),"") ->  | X10: =IF(X$5<>"",OFFSET(Data!#REF!,View!$B$25,$DS10),"") ->  | Y10: =IF(Y$5<>"",OFFSET(Data!#REF!,View!$B$25,$DS10),"") ->  | Z10: =IF(Z$5<>"",OFFSET(Data!#REF!,View!$B$25,$DS10),"") ->  | AA10: =IF(AA$5<>"",OFFSET(Data!#REF!,View!$B$25,$DS10),"") ->  | AB10: =IF(AB$5<>"",OFFSET(Data!#REF!,View!$B$25,$DS10),"") ->  | AC10: =IF(AC$5<>"",OFFSET(Data!#REF!,View!$B$25,$DS10),"") ->  | AD10: =IF(AD$5<>"",OFFSET(Data!#REF!,View!$B$25,$DS10),"") ->  | AE10: =IF(AE$5<>"",OFFSET(Data!#REF!,View!$B$25,$DS10),"") ->  | AF10: =IF(AF$5<>"",OFFSET(Data!#REF!,View!$B$25,$DS10),"") ->  | AG10: =IF(AG$5<>"",OFFSET(Data!#REF!,View!$B$25,$DS10),"") ->  | AH10: =IF(AH$5<>"",OFFSET(Data!#REF!,View!$B$25,$DS10),"") ->  | AI10: =IF(AI$5<>"",OFFSET(Data!#REF!,View!$B$25,$DS10),"") ->  | AJ10: =IF(AJ$5<>"",OFFSET(Data!#REF!,View!$B$25,$DS10),"") ->  | AK10: =IF(AK$5<>"",OFFSET(Data!#REF!,View!$B$25,$DS10),"") ->  | AL10: =IF(AL$5<>"",OFFSET(Data!#REF!,View!$B$25,$DS10),"") ->  | AM10: =IF(AM$5<>"",OFFSET(Data!#REF!,View!$B$25,$DS10),"") ->  | AN10: =IF(AN$5<>"",OFFSET(Data!#REF!,View!$B$25,$DS10),"") ->  | AO10: =IF(AO$5<>"",OFFSET(Data!#REF!,View!$B$25,$DS10),"") ->  | AP10: =IF(AP$5<>"",OFFSET(Data!#REF!,View!$B$25,$DS10),"") ->  | AQ10: =IF(AQ$5<>"",OFFSET(Data!#REF!,View!$B$25,$DS10),"") ->  | AR10: =IF(AR$5<>"",OFFSET(Data!#REF!,View!$B$25,$DS10),"") ->  | AS10: =IF(AS$5<>"",OFFSET(Data!#REF!,View!$B$25,$DS10),"") ->  | AT10: =IF(AT$5<>"",OFFSET(Data!#REF!,View!$B$25,$DS10),"") ->  | AU10: =IF(AU$5<>"",OFFSET(Data!#REF!,View!$B$25,$DS10),"") ->  | AV10: =IF(AV$5<>"",OFFSET(Data!#REF!,View!$B$25,$DS10),"") ->  | AW10: =IF(AW$5<>"",OFFSET(Data!#REF!,View!$B$25,$DS10),"") ->  | AX10: =IF(AX$5<>"",OFFSET(Data!#REF!,View!$B$25,$DS10),"") ->  | AY10: =IF(AY$5<>"",OFFSET(Data!#REF!,View!$B$25,$DS10),"") ->  | AZ10: =IF(AZ$5<>"",OFFSET(Data!#REF!,View!$B$25,$DS10),"") ->  | BA10: =IF(BA$5<>"",OFFSET(Data!#REF!,View!$B$25,$DS10),"") ->  | BB10: =IF(BB$5<>"",OFFSET(Data!#REF!,View!$B$25,$DS10),"") ->  | BC10: =IF(BC$5<>"",OFFSET(Data!#REF!,View!$B$25,$DS10),"") ->  | BD10: =IF(BD$5<>"",OFFSET(Data!#REF!,View!$B$25,$DS10),"") ->  | BE10: =IF(BE$5<>"",OFFSET(Data!#REF!,View!$B$25,$DS10),"") ->  | BF10: =IF(BF$5<>"",OFFSET(Data!#REF!,View!$B$25,$DS10),"") ->  | BG10: =IF(BG$5<>"",OFFSET(Data!#REF!,View!$B$25,$DS10),"") ->  | BH10: =IF(BH$5<>"",OFFSET(Data!#REF!,View!$B$25,$DS10),"") ->  | BI10: =IF(BI$5<>"",OFFSET(Data!#REF!,View!$B$25,$DS10),"") ->  | BJ10: =IF(BJ$5<>"",OFFSET(Data!#REF!,View!$B$25,$DS10),"") ->  | BK10: =IF(BK$5<>"",OFFSET(Data!#REF!,View!$B$25,$DS10),"") ->  | BL10: =IF(BL$5<>"",OFFSET(Data!#REF!,View!$B$25,$DS10),"") ->  | BM10: =IF(BM$5<>"",OFFSET(Data!#REF!,View!$B$25,$DS10),"") ->  | BN10: =IF(BN$5<>"",OFFSET(Data!#REF!,View!$B$25,$DS10),"") ->  | BO10: =IF(BO$5<>"",OFFSET(Data!#REF!,View!$B$25,$DS10),"") ->  | BP10: =IF(BP$5<>"",OFFSET(Data!#REF!,View!$B$25,$DS10),"") ->  | BQ10: =IF(BQ$5<>"",OFFSET(Data!#REF!,View!$B$25,$DS10),"") ->  | BR10: =IF(BR$5<>"",OFFSET(Data!#REF!,View!$B$25,$DS10),"") ->  | BS10: =IF(BS$5<>"",OFFSET(Data!#REF!,View!$B$25,$DS10),"") ->  | BT10: =IF(BT$5<>"",OFFSET(Data!#REF!,View!$B$25,$DS10),"") ->  | BU10: =IF(BU$5<>"",OFFSET(Data!#REF!,View!$B$25,$DS10),"") ->  | BV10: =IF(BV$5<>"",OFFSET(Data!#REF!,View!$B$25,$DS10),"") ->  | BW10: =IF(BW$5<>"",OFFSET(Data!#REF!,View!$B$25,$DS10),"") ->  | BX10: =IF(BX$5<>"",OFFSET(Data!#REF!,View!$B$25,$DS10),"") ->  | BY10: =IF(BY$5<>"",OFFSET(Data!#REF!,View!$B$25,$DS10),"") ->  | BZ10: =IF(BZ$5<>"",OFFSET(Data!#REF!,View!$B$25,$DS10),"") ->  | CA10: =IF(CA$5<>"",OFFSET(Data!#REF!,View!$B$25,$DS10),"") ->  | CB10: =IF(CB$5<>"",OFFSET(Data!#REF!,View!$B$25,$DS10),"") ->  | CC10: =IF(CC$5<>"",OFFSET(Data!#REF!,View!$B$25,$DS10),"") ->  | CD10: =IF(CD$5<>"",OFFSET(Data!#REF!,View!$B$25,$DS10),"") ->  | CE10: =IF(CE$5<>"",OFFSET(Data!#REF!,View!$B$25,$DS10),"") ->  | CF10: =IF(CF$5<>"",OFFSET(Data!#REF!,View!$B$25,$DS10),"") ->  | CG10: =IF(CG$5<>"",OFFSET(Data!#REF!,View!$B$25,$DS10),"") ->  | CH10: =IF(CH$5<>"",OFFSET(Data!#REF!,View!$B$25,$DS10),"") ->  | CI10: =IF(CI$5<>"",OFFSET(Data!#REF!,View!$B$25,$DS10),"") ->  | CJ10: =IF(CJ$5<>"",OFFSET(Data!#REF!,View!$B$25,$DS10),"") ->  | CK10: =IF(CK$5<>"",OFFSET(Data!#REF!,View!$B$25,$DS10),"") ->  | CL10: =IF(CL$5<>"",OFFSET(Data!#REF!,View!$B$25,$DS10),"") ->  | CM10: =IF(CM$5<>"",OFFSET(Data!#REF!,View!$B$25,$DS10),"") ->  | CN10: =IF(CN$5<>"",OFFSET(Data!#REF!,View!$B$25,$DS10),"") ->  | CO10: =IF(CO$5<>"",OFFSET(Data!#REF!,View!$B$25,$DS10),"") ->  | CP10: =IF(CP$5<>"",OFFSET(Data!#REF!,View!$B$25,$DS10),"") ->  | CQ10: =IF(CQ$5<>"",OFFSET(Data!#REF!,View!$B$25,$DS10),"") ->  | CR10: =IF(CR$5<>"",OFFSET(Data!#REF!,View!$B$25,$DS10),"") ->  | CS10: =IF(CS$5<>"",OFFSET(Data!#REF!,View!$B$25,$DS10),"") ->  | CT10: =IF(CT$5<>"",OFFSET(Data!#REF!,View!$B$25,$DS10),"") ->  | CU10: =IF(CU$5<>"",OFFSET(Data!#REF!,View!$B$25,$DS10),"") ->  | CV10: =IF(CV$5<>"",OFFSET(Data!#REF!,View!$B$25,$DS10),"") ->  | CW10: =IF(CW$5<>"",OFFSET(Data!#REF!,View!$B$25,$DS10),"") ->  | CX10: =IF(CX$5<>"",OFFSET(Data!#REF!,View!$B$25,$DS10),"") ->  | CY10: =IF(CY$5<>"",OFFSET(Data!#REF!,View!$B$25,$DS10),"") ->  | CZ10: =IF(CZ$5<>"",OFFSET(Data!#REF!,View!$B$25,$DS10),"") ->  | DA10: =IF(DA$5<>"",OFFSET(Data!#REF!,View!$B$25,$DS10),"") ->  | DB10: =IF(DB$5<>"",OFFSET(Data!#REF!,View!$B$25,$DS10),"") ->  | DC10: =IF(DC$5<>"",OFFSET(Data!#REF!,View!$B$25,$DS10),"") ->  | DD10: =IF(DD$5<>"",OFFSET(Data!#REF!,View!$B$25,$DS10),"") ->  | DE10: =IF(DE$5<>"",OFFSET(Data!#REF!,View!$B$25,$DS10),"") ->  | DF10: =IF(DF$5<>"",OFFSET(Data!#REF!,View!$B$25,$DS10),"") ->  | DG10: =IF(DG$5<>"",OFFSET(Data!#REF!,View!$B$25,$DS10),"") ->  | DH10: =IF(DH$5<>"",OFFSET(Data!#REF!,View!$B$25,$DS10),"") ->  | DI10: =IF(DI$5<>"",OFFSET(Data!#REF!,View!$B$25,$DS10),"") ->  | DJ10: =IF(DJ$5<>"",OFFSET(Data!#REF!,View!$B$25,$DS10),"") ->  | DK10: =IF(DK$5<>"",OFFSET(Data!#REF!,View!$B$25,$DS10),"") ->  | DL10: =IF(DL$5<>"",OFFSET(Data!#REF!,View!$B$25,$DS10),"") ->  | DM10: =IF(DM$5<>"",OFFSET(Data!#REF!,View!$B$25,$DS10),"") ->  | DN10: =IF(DN$5<>"",OFFSET(Data!#REF!,View!$B$25,$DS10),"") ->  | DO10: =IF(DO$5<>"",OFFSET(Data!#REF!,View!$B$25,$DS10),"") ->  | DP10: =IF(DP$5<>"",OFFSET(Data!#REF!,View!$B$25,$DS10),"") ->  | DQ10: =IF(DQ$5<>"",OFFSET(Data!#REF!,View!$B$25,$DS10),"") ->  | DR10: =IF(DR$5<>"",OFFSET(Data!#REF!,View!$B$25,$DS10),"") ->  | DS10: =($C$41+1)*9 -> 
A11: LAfmax | B11: =IF(B$5<>"",OFFSET(Data!#REF!,View!$B$25,$DS11),"") ->  | C11: =IF(C$5<>"",OFFSET(Data!#REF!,View!$B$25,$DS11),"") ->  | D11: =IF(D$5<>"",OFFSET(Data!#REF!,View!$B$25,$DS11),"") ->  | E11: =IF(E$5<>"",OFFSET(Data!#REF!,View!$B$25,$DS11),"") ->  | F11: =IF(F$5<>"",OFFSET(Data!#REF!,View!$B$25,$DS11),"") ->  | G11: =IF(G$5<>"",OFFSET(Data!#REF!,View!$B$25,$DS11),"") ->  | H11: =IF(H$5<>"",OFFSET(Data!#REF!,View!$B$25,$DS11),"") ->  | I11: =IF(I$5<>"",OFFSET(Data!#REF!,View!$B$25,$DS11),"") ->  | J11: =IF(J$5<>"",OFFSET(Data!#REF!,View!$B$25,$DS11),"") ->  | K11: =IF(K$5<>"",OFFSET(Data!#REF!,View!$B$25,$DS11),"") ->  | L11: =IF(L$5<>"",OFFSET(Data!#REF!,View!$B$25,$DS11),"") ->  | M11: =IF(M$5<>"",OFFSET(Data!#REF!,View!$B$25,$DS11),"") ->  | N11: =IF(N$5<>"",OFFSET(Data!#REF!,View!$B$25,$DS11),"") ->  | O11: =IF(O$5<>"",OFFSET(Data!#REF!,View!$B$25,$DS11),"") ->  | P11: =IF(P$5<>"",OFFSET(Data!#REF!,View!$B$25,$DS11),"") ->  | Q11: =IF(Q$5<>"",OFFSET(Data!#REF!,View!$B$25,$DS11),"") ->  | R11: =IF(R$5<>"",OFFSET(Data!#REF!,View!$B$25,$DS11),"") ->  | S11: =IF(S$5<>"",OFFSET(Data!#REF!,View!$B$25,$DS11),"") ->  | T11: =IF(T$5<>"",OFFSET(Data!#REF!,View!$B$25,$DS11),"") ->  | U11: =IF(U$5<>"",OFFSET(Data!#REF!,View!$B$25,$DS11),"") ->  | V11: =IF(V$5<>"",OFFSET(Data!#REF!,View!$B$25,$DS11),"") ->  | W11: =IF(W$5<>"",OFFSET(Data!#REF!,View!$B$25,$DS11),"") ->  | X11: =IF(X$5<>"",OFFSET(Data!#REF!,View!$B$25,$DS11),"") ->  | Y11: =IF(Y$5<>"",OFFSET(Data!#REF!,View!$B$25,$DS11),"") ->  | Z11: =IF(Z$5<>"",OFFSET(Data!#REF!,View!$B$25,$DS11),"") ->  | AA11: =IF(AA$5<>"",OFFSET(Data!#REF!,View!$B$25,$DS11),"") ->  | AB11: =IF(AB$5<>"",OFFSET(Data!#REF!,View!$B$25,$DS11),"") ->  | AC11: =IF(AC$5<>"",OFFSET(Data!#REF!,View!$B$25,$DS11),"") ->  | AD11: =IF(AD$5<>"",OFFSET(Data!#REF!,View!$B$25,$DS11),"") ->  | AE11: =IF(AE$5<>"",OFFSET(Data!#REF!,View!$B$25,$DS11),"") ->  | AF11: =IF(AF$5<>"",OFFSET(Data!#REF!,View!$B$25,$DS11),"") ->  | AG11: =IF(AG$5<>"",OFFSET(Data!#REF!,View!$B$25,$DS11),"") ->  | AH11: =IF(AH$5<>"",OFFSET(Data!#REF!,View!$B$25,$DS11),"") ->  | AI11: =IF(AI$5<>"",OFFSET(Data!#REF!,View!$B$25,$DS11),"") ->  | AJ11: =IF(AJ$5<>"",OFFSET(Data!#REF!,View!$B$25,$DS11),"") ->  | AK11: =IF(AK$5<>"",OFFSET(Data!#REF!,View!$B$25,$DS11),"") ->  | AL11: =IF(AL$5<>"",OFFSET(Data!#REF!,View!$B$25,$DS11),"") ->  | AM11: =IF(AM$5<>"",OFFSET(Data!#REF!,View!$B$25,$DS11),"") ->  | AN11: =IF(AN$5<>"",OFFSET(Data!#REF!,View!$B$25,$DS11),"") ->  | AO11: =IF(AO$5<>"",OFFSET(Data!#REF!,View!$B$25,$DS11),"") ->  | AP11: =IF(AP$5<>"",OFFSET(Data!#REF!,View!$B$25,$DS11),"") ->  | AQ11: =IF(AQ$5<>"",OFFSET(Data!#REF!,View!$B$25,$DS11),"") ->  | AR11: =IF(AR$5<>"",OFFSET(Data!#REF!,View!$B$25,$DS11),"") ->  | AS11: =IF(AS$5<>"",OFFSET(Data!#REF!,View!$B$25,$DS11),"") ->  | AT11: =IF(AT$5<>"",OFFSET(Data!#REF!,View!$B$25,$DS11),"") ->  | AU11: =IF(AU$5<>"",OFFSET(Data!#REF!,View!$B$25,$DS11),"") ->  | AV11: =IF(AV$5<>"",OFFSET(Data!#REF!,View!$B$25,$DS11),"") ->  | AW11: =IF(AW$5<>"",OFFSET(Data!#REF!,View!$B$25,$DS11),"") ->  | AX11: =IF(AX$5<>"",OFFSET(Data!#REF!,View!$B$25,$DS11),"") ->  | AY11: =IF(AY$5<>"",OFFSET(Data!#REF!,View!$B$25,$DS11),"") ->  | AZ11: =IF(AZ$5<>"",OFFSET(Data!#REF!,View!$B$25,$DS11),"") ->  | BA11: =IF(BA$5<>"",OFFSET(Data!#REF!,View!$B$25,$DS11),"") ->  | BB11: =IF(BB$5<>"",OFFSET(Data!#REF!,View!$B$25,$DS11),"") ->  | BC11: =IF(BC$5<>"",OFFSET(Data!#REF!,View!$B$25,$DS11),"") ->  | BD11: =IF(BD$5<>"",OFFSET(Data!#REF!,View!$B$25,$DS11),"") ->  | BE11: =IF(BE$5<>"",OFFSET(Data!#REF!,View!$B$25,$DS11),"") ->  | BF11: =IF(BF$5<>"",OFFSET(Data!#REF!,View!$B$25,$DS11),"") ->  | BG11: =IF(BG$5<>"",OFFSET(Data!#REF!,View!$B$25,$DS11),"") ->  | BH11: =IF(BH$5<>"",OFFSET(Data!#REF!,View!$B$25,$DS11),"") ->  | BI11: =IF(BI$5<>"",OFFSET(Data!#REF!,View!$B$25,$DS11),"") ->  | BJ11: =IF(BJ$5<>"",OFFSET(Data!#REF!,View!$B$25,$DS11),"") ->  | BK11: =IF(BK$5<>"",OFFSET(Data!#REF!,View!$B$25,$DS11),"") ->  | BL11: =IF(BL$5<>"",OFFSET(Data!#REF!,View!$B$25,$DS11),"") ->  | BM11: =IF(BM$5<>"",OFFSET(Data!#REF!,View!$B$25,$DS11),"") ->  | BN11: =IF(BN$5<>"",OFFSET(Data!#REF!,View!$B$25,$DS11),"") ->  | BO11: =IF(BO$5<>"",OFFSET(Data!#REF!,View!$B$25,$DS11),"") ->  | BP11: =IF(BP$5<>"",OFFSET(Data!#REF!,View!$B$25,$DS11),"") ->  | BQ11: =IF(BQ$5<>"",OFFSET(Data!#REF!,View!$B$25,$DS11),"") ->  | BR11: =IF(BR$5<>"",OFFSET(Data!#REF!,View!$B$25,$DS11),"") ->  | BS11: =IF(BS$5<>"",OFFSET(Data!#REF!,View!$B$25,$DS11),"") ->  | BT11: =IF(BT$5<>"",OFFSET(Data!#REF!,View!$B$25,$DS11),"") ->  | BU11: =IF(BU$5<>"",OFFSET(Data!#REF!,View!$B$25,$DS11),"") ->  | BV11: =IF(BV$5<>"",OFFSET(Data!#REF!,View!$B$25,$DS11),"") ->  | BW11: =IF(BW$5<>"",OFFSET(Data!#REF!,View!$B$25,$DS11),"") ->  | BX11: =IF(BX$5<>"",OFFSET(Data!#REF!,View!$B$25,$DS11),"") ->  | BY11: =IF(BY$5<>"",OFFSET(Data!#REF!,View!$B$25,$DS11),"") ->  | BZ11: =IF(BZ$5<>"",OFFSET(Data!#REF!,View!$B$25,$DS11),"") ->  | CA11: =IF(CA$5<>"",OFFSET(Data!#REF!,View!$B$25,$DS11),"") ->  | CB11: =IF(CB$5<>"",OFFSET(Data!#REF!,View!$B$25,$DS11),"") ->  | CC11: =IF(CC$5<>"",OFFSET(Data!#REF!,View!$B$25,$DS11),"") ->  | CD11: =IF(CD$5<>"",OFFSET(Data!#REF!,View!$B$25,$DS11),"") ->  | CE11: =IF(CE$5<>"",OFFSET(Data!#REF!,View!$B$25,$DS11),"") ->  | CF11: =IF(CF$5<>"",OFFSET(Data!#REF!,View!$B$25,$DS11),"") ->  | CG11: =IF(CG$5<>"",OFFSET(Data!#REF!,View!$B$25,$DS11),"") ->  | CH11: =IF(CH$5<>"",OFFSET(Data!#REF!,View!$B$25,$DS11),"") ->  | CI11: =IF(CI$5<>"",OFFSET(Data!#REF!,View!$B$25,$DS11),"") ->  | CJ11: =IF(CJ$5<>"",OFFSET(Data!#REF!,View!$B$25,$DS11),"") ->  | CK11: =IF(CK$5<>"",OFFSET(Data!#REF!,View!$B$25,$DS11),"") ->  | CL11: =IF(CL$5<>"",OFFSET(Data!#REF!,View!$B$25,$DS11),"") ->  | CM11: =IF(CM$5<>"",OFFSET(Data!#REF!,View!$B$25,$DS11),"") ->  | CN11: =IF(CN$5<>"",OFFSET(Data!#REF!,View!$B$25,$DS11),"") ->  | CO11: =IF(CO$5<>"",OFFSET(Data!#REF!,View!$B$25,$DS11),"") ->  | CP11: =IF(CP$5<>"",OFFSET(Data!#REF!,View!$B$25,$DS11),"") ->  | CQ11: =IF(CQ$5<>"",OFFSET(Data!#REF!,View!$B$25,$DS11),"") ->  | CR11: =IF(CR$5<>"",OFFSET(Data!#REF!,View!$B$25,$DS11),"") ->  | CS11: =IF(CS$5<>"",OFFSET(Data!#REF!,View!$B$25,$DS11),"") ->  | CT11: =IF(CT$5<>"",OFFSET(Data!#REF!,View!$B$25,$DS11),"") ->  | CU11: =IF(CU$5<>"",OFFSET(Data!#REF!,View!$B$25,$DS11),"") ->  | CV11: =IF(CV$5<>"",OFFSET(Data!#REF!,View!$B$25,$DS11),"") ->  | CW11: =IF(CW$5<>"",OFFSET(Data!#REF!,View!$B$25,$DS11),"") ->  | CX11: =IF(CX$5<>"",OFFSET(Data!#REF!,View!$B$25,$DS11),"") ->  | CY11: =IF(CY$5<>"",OFFSET(Data!#REF!,View!$B$25,$DS11),"") ->  | CZ11: =IF(CZ$5<>"",OFFSET(Data!#REF!,View!$B$25,$DS11),"") ->  | DA11: =IF(DA$5<>"",OFFSET(Data!#REF!,View!$B$25,$DS11),"") ->  | DB11: =IF(DB$5<>"",OFFSET(Data!#REF!,View!$B$25,$DS11),"") ->  | DC11: =IF(DC$5<>"",OFFSET(Data!#REF!,View!$B$25,$DS11),"") ->  | DD11: =IF(DD$5<>"",OFFSET(Data!#REF!,View!$B$25,$DS11),"") ->  | DE11: =IF(DE$5<>"",OFFSET(Data!#REF!,View!$B$25,$DS11),"") ->  | DF11: =IF(DF$5<>"",OFFSET(Data!#REF!,View!$B$25,$DS11),"") ->  | DG11: =IF(DG$5<>"",OFFSET(Data!#REF!,View!$B$25,$DS11),"") ->  | DH11: =IF(DH$5<>"",OFFSET(Data!#REF!,View!$B$25,$DS11),"") ->  | DI11: =IF(DI$5<>"",OFFSET(Data!#REF!,View!$B$25,$DS11),"") ->  | DJ11: =IF(DJ$5<>"",OFFSET(Data!#REF!,View!$B$25,$DS11),"") ->  | DK11: =IF(DK$5<>"",OFFSET(Data!#REF!,View!$B$25,$DS11),"") ->  | DL11: =IF(DL$5<>"",OFFSET(Data!#REF!,View!$B$25,$DS11),"") ->  | DM11: =IF(DM$5<>"",OFFSET(Data!#REF!,View!$B$25,$DS11),"") ->  | DN11: =IF(DN$5<>"",OFFSET(Data!#REF!,View!$B$25,$DS11),"") ->  | DO11: =IF(DO$5<>"",OFFSET(Data!#REF!,View!$B$25,$DS11),"") ->  | DP11: =IF(DP$5<>"",OFFSET(Data!#REF!,View!$B$25,$DS11),"") ->  | DQ11: =IF(DQ$5<>"",OFFSET(Data!#REF!,View!$B$25,$DS11),"") ->  | DR11: =IF(DR$5<>"",OFFSET(Data!#REF!,View!$B$25,$DS11),"") ->  | DS11: =($C$41+1)*1 -> 
A12: LCfmax | B12: =IF(B$5<>"",OFFSET(Data!#REF!,View!$B$25,$DS12),"") ->  | C12: =IF(C$5<>"",OFFSET(Data!#REF!,View!$B$25,$DS12),"") ->  | D12: =IF(D$5<>"",OFFSET(Data!#REF!,View!$B$25,$DS12),"") ->  | E12: =IF(E$5<>"",OFFSET(Data!#REF!,View!$B$25,$DS12),"") ->  | F12: =IF(F$5<>"",OFFSET(Data!#REF!,View!$B$25,$DS12),"") ->  | G12: =IF(G$5<>"",OFFSET(Data!#REF!,View!$B$25,$DS12),"") ->  | H12: =IF(H$5<>"",OFFSET(Data!#REF!,View!$B$25,$DS12),"") ->  | I12: =IF(I$5<>"",OFFSET(Data!#REF!,View!$B$25,$DS12),"") ->  | J12: =IF(J$5<>"",OFFSET(Data!#REF!,View!$B$25,$DS12),"") ->  | K12: =IF(K$5<>"",OFFSET(Data!#REF!,View!$B$25,$DS12),"") ->  | L12: =IF(L$5<>"",OFFSET(Data!#REF!,View!$B$25,$DS12),"") ->  | M12: =IF(M$5<>"",OFFSET(Data!#REF!,View!$B$25,$DS12),"") ->  | N12: =IF(N$5<>"",OFFSET(Data!#REF!,View!$B$25,$DS12),"") ->  | O12: =IF(O$5<>"",OFFSET(Data!#REF!,View!$B$25,$DS12),"") ->  | P12: =IF(P$5<>"",OFFSET(Data!#REF!,View!$B$25,$DS12),"") ->  | Q12: =IF(Q$5<>"",OFFSET(Data!#REF!,View!$B$25,$DS12),"") ->  | R12: =IF(R$5<>"",OFFSET(Data!#REF!,View!$B$25,$DS12),"") ->  | S12: =IF(S$5<>"",OFFSET(Data!#REF!,View!$B$25,$DS12),"") ->  | T12: =IF(T$5<>"",OFFSET(Data!#REF!,View!$B$25,$DS12),"") ->  | U12: =IF(U$5<>"",OFFSET(Data!#REF!,View!$B$25,$DS12),"") ->  | V12: =IF(V$5<>"",OFFSET(Data!#REF!,View!$B$25,$DS12),"") ->  | W12: =IF(W$5<>"",OFFSET(Data!#REF!,View!$B$25,$DS12),"") ->  | X12: =IF(X$5<>"",OFFSET(Data!#REF!,View!$B$25,$DS12),"") ->  | Y12: =IF(Y$5<>"",OFFSET(Data!#REF!,View!$B$25,$DS12),"") ->  | Z12: =IF(Z$5<>"",OFFSET(Data!#REF!,View!$B$25,$DS12),"") ->  | AA12: =IF(AA$5<>"",OFFSET(Data!#REF!,View!$B$25,$DS12),"") ->  | AB12: =IF(AB$5<>"",OFFSET(Data!#REF!,View!$B$25,$DS12),"") ->  | AC12: =IF(AC$5<>"",OFFSET(Data!#REF!,View!$B$25,$DS12),"") ->  | AD12: =IF(AD$5<>"",OFFSET(Data!#REF!,View!$B$25,$DS12),"") ->  | AE12: =IF(AE$5<>"",OFFSET(Data!#REF!,View!$B$25,$DS12),"") ->  | AF12: =IF(AF$5<>"",OFFSET(Data!#REF!,View!$B$25,$DS12),"") ->  | AG12: =IF(AG$5<>"",OFFSET(Data!#REF!,View!$B$25,$DS12),"") ->  | AH12: =IF(AH$5<>"",OFFSET(Data!#REF!,View!$B$25,$DS12),"") ->  | AI12: =IF(AI$5<>"",OFFSET(Data!#REF!,View!$B$25,$DS12),"") ->  | AJ12: =IF(AJ$5<>"",OFFSET(Data!#REF!,View!$B$25,$DS12),"") ->  | AK12: =IF(AK$5<>"",OFFSET(Data!#REF!,View!$B$25,$DS12),"") ->  | AL12: =IF(AL$5<>"",OFFSET(Data!#REF!,View!$B$25,$DS12),"") ->  | AM12: =IF(AM$5<>"",OFFSET(Data!#REF!,View!$B$25,$DS12),"") ->  | AN12: =IF(AN$5<>"",OFFSET(Data!#REF!,View!$B$25,$DS12),"") ->  | AO12: =IF(AO$5<>"",OFFSET(Data!#REF!,View!$B$25,$DS12),"") ->  | AP12: =IF(AP$5<>"",OFFSET(Data!#REF!,View!$B$25,$DS12),"") ->  | AQ12: =IF(AQ$5<>"",OFFSET(Data!#REF!,View!$B$25,$DS12),"") ->  | AR12: =IF(AR$5<>"",OFFSET(Data!#REF!,View!$B$25,$DS12),"") ->  | AS12: =IF(AS$5<>"",OFFSET(Data!#REF!,View!$B$25,$DS12),"") ->  | AT12: =IF(AT$5<>"",OFFSET(Data!#REF!,View!$B$25,$DS12),"") ->  | AU12: =IF(AU$5<>"",OFFSET(Data!#REF!,View!$B$25,$DS12),"") ->  | AV12: =IF(AV$5<>"",OFFSET(Data!#REF!,View!$B$25,$DS12),"") ->  | AW12: =IF(AW$5<>"",OFFSET(Data!#REF!,View!$B$25,$DS12),"") ->  | AX12: =IF(AX$5<>"",OFFSET(Data!#REF!,View!$B$25,$DS12),"") ->  | AY12: =IF(AY$5<>"",OFFSET(Data!#REF!,View!$B$25,$DS12),"") ->  | AZ12: =IF(AZ$5<>"",OFFSET(Data!#REF!,View!$B$25,$DS12),"") ->  | BA12: =IF(BA$5<>"",OFFSET(Data!#REF!,View!$B$25,$DS12),"") ->  | BB12: =IF(BB$5<>"",OFFSET(Data!#REF!,View!$B$25,$DS12),"") ->  | BC12: =IF(BC$5<>"",OFFSET(Data!#REF!,View!$B$25,$DS12),"") ->  | BD12: =IF(BD$5<>"",OFFSET(Data!#REF!,View!$B$25,$DS12),"") ->  | BE12: =IF(BE$5<>"",OFFSET(Data!#REF!,View!$B$25,$DS12),"") ->  | BF12: =IF(BF$5<>"",OFFSET(Data!#REF!,View!$B$25,$DS12),"") ->  | BG12: =IF(BG$5<>"",OFFSET(Data!#REF!,View!$B$25,$DS12),"") ->  | BH12: =IF(BH$5<>"",OFFSET(Data!#REF!,View!$B$25,$DS12),"") ->  | BI12: =IF(BI$5<>"",OFFSET(Data!#REF!,View!$B$25,$DS12),"") ->  | BJ12: =IF(BJ$5<>"",OFFSET(Data!#REF!,View!$B$25,$DS12),"") ->  | BK12: =IF(BK$5<>"",OFFSET(Data!#REF!,View!$B$25,$DS12),"") ->  | BL12: =IF(BL$5<>"",OFFSET(Data!#REF!,View!$B$25,$DS12),"") ->  | BM12: =IF(BM$5<>"",OFFSET(Data!#REF!,View!$B$25,$DS12),"") ->  | BN12: =IF(BN$5<>"",OFFSET(Data!#REF!,View!$B$25,$DS12),"") ->  | BO12: =IF(BO$5<>"",OFFSET(Data!#REF!,View!$B$25,$DS12),"") ->  | BP12: =IF(BP$5<>"",OFFSET(Data!#REF!,View!$B$25,$DS12),"") ->  | BQ12: =IF(BQ$5<>"",OFFSET(Data!#REF!,View!$B$25,$DS12),"") ->  | BR12: =IF(BR$5<>"",OFFSET(Data!#REF!,View!$B$25,$DS12),"") ->  | BS12: =IF(BS$5<>"",OFFSET(Data!#REF!,View!$B$25,$DS12),"") ->  | BT12: =IF(BT$5<>"",OFFSET(Data!#REF!,View!$B$25,$DS12),"") ->  | BU12: =IF(BU$5<>"",OFFSET(Data!#REF!,View!$B$25,$DS12),"") ->  | BV12: =IF(BV$5<>"",OFFSET(Data!#REF!,View!$B$25,$DS12),"") ->  | BW12: =IF(BW$5<>"",OFFSET(Data!#REF!,View!$B$25,$DS12),"") ->  | BX12: =IF(BX$5<>"",OFFSET(Data!#REF!,View!$B$25,$DS12),"") ->  | BY12: =IF(BY$5<>"",OFFSET(Data!#REF!,View!$B$25,$DS12),"") ->  | BZ12: =IF(BZ$5<>"",OFFSET(Data!#REF!,View!$B$25,$DS12),"") ->  | CA12: =IF(CA$5<>"",OFFSET(Data!#REF!,View!$B$25,$DS12),"") ->  | CB12: =IF(CB$5<>"",OFFSET(Data!#REF!,View!$B$25,$DS12),"") ->  | CC12: =IF(CC$5<>"",OFFSET(Data!#REF!,View!$B$25,$DS12),"") ->  | CD12: =IF(CD$5<>"",OFFSET(Data!#REF!,View!$B$25,$DS12),"") ->  | CE12: =IF(CE$5<>"",OFFSET(Data!#REF!,View!$B$25,$DS12),"") ->  | CF12: =IF(CF$5<>"",OFFSET(Data!#REF!,View!$B$25,$DS12),"") ->  | CG12: =IF(CG$5<>"",OFFSET(Data!#REF!,View!$B$25,$DS12),"") ->  | CH12: =IF(CH$5<>"",OFFSET(Data!#REF!,View!$B$25,$DS12),"") ->  | CI12: =IF(CI$5<>"",OFFSET(Data!#REF!,View!$B$25,$DS12),"") ->  | CJ12: =IF(CJ$5<>"",OFFSET(Data!#REF!,View!$B$25,$DS12),"") ->  | CK12: =IF(CK$5<>"",OFFSET(Data!#REF!,View!$B$25,$DS12),"") ->  | CL12: =IF(CL$5<>"",OFFSET(Data!#REF!,View!$B$25,$DS12),"") ->  | CM12: =IF(CM$5<>"",OFFSET(Data!#REF!,View!$B$25,$DS12),"") ->  | CN12: =IF(CN$5<>"",OFFSET(Data!#REF!,View!$B$25,$DS12),"") ->  | CO12: =IF(CO$5<>"",OFFSET(Data!#REF!,View!$B$25,$DS12),"") ->  | CP12: =IF(CP$5<>"",OFFSET(Data!#REF!,View!$B$25,$DS12),"") ->  | CQ12: =IF(CQ$5<>"",OFFSET(Data!#REF!,View!$B$25,$DS12),"") ->  | CR12: =IF(CR$5<>"",OFFSET(Data!#REF!,View!$B$25,$DS12),"") ->  | CS12: =IF(CS$5<>"",OFFSET(Data!#REF!,View!$B$25,$DS12),"") ->  | CT12: =IF(CT$5<>"",OFFSET(Data!#REF!,View!$B$25,$DS12),"") ->  | CU12: =IF(CU$5<>"",OFFSET(Data!#REF!,View!$B$25,$DS12),"") ->  | CV12: =IF(CV$5<>"",OFFSET(Data!#REF!,View!$B$25,$DS12),"") ->  | CW12: =IF(CW$5<>"",OFFSET(Data!#REF!,View!$B$25,$DS12),"") ->  | CX12: =IF(CX$5<>"",OFFSET(Data!#REF!,View!$B$25,$DS12),"") ->  | CY12: =IF(CY$5<>"",OFFSET(Data!#REF!,View!$B$25,$DS12),"") ->  | CZ12: =IF(CZ$5<>"",OFFSET(Data!#REF!,View!$B$25,$DS12),"") ->  | DA12: =IF(DA$5<>"",OFFSET(Data!#REF!,View!$B$25,$DS12),"") ->  | DB12: =IF(DB$5<>"",OFFSET(Data!#REF!,View!$B$25,$DS12),"") ->  | DC12: =IF(DC$5<>"",OFFSET(Data!#REF!,View!$B$25,$DS12),"") ->  | DD12: =IF(DD$5<>"",OFFSET(Data!#REF!,View!$B$25,$DS12),"") ->  | DE12: =IF(DE$5<>"",OFFSET(Data!#REF!,View!$B$25,$DS12),"") ->  | DF12: =IF(DF$5<>"",OFFSET(Data!#REF!,View!$B$25,$DS12),"") ->  | DG12: =IF(DG$5<>"",OFFSET(Data!#REF!,View!$B$25,$DS12),"") ->  | DH12: =IF(DH$5<>"",OFFSET(Data!#REF!,View!$B$25,$DS12),"") ->  | DI12: =IF(DI$5<>"",OFFSET(Data!#REF!,View!$B$25,$DS12),"") ->  | DJ12: =IF(DJ$5<>"",OFFSET(Data!#REF!,View!$B$25,$DS12),"") ->  | DK12: =IF(DK$5<>"",OFFSET(Data!#REF!,View!$B$25,$DS12),"") ->  | DL12: =IF(DL$5<>"",OFFSET(Data!#REF!,View!$B$25,$DS12),"") ->  | DM12: =IF(DM$5<>"",OFFSET(Data!#REF!,View!$B$25,$DS12),"") ->  | DN12: =IF(DN$5<>"",OFFSET(Data!#REF!,View!$B$25,$DS12),"") ->  | DO12: =IF(DO$5<>"",OFFSET(Data!#REF!,View!$B$25,$DS12),"") ->  | DP12: =IF(DP$5<>"",OFFSET(Data!#REF!,View!$B$25,$DS12),"") ->  | DQ12: =IF(DQ$5<>"",OFFSET(Data!#REF!,View!$B$25,$DS12),"") ->  | DR12: =IF(DR$5<>"",OFFSET(Data!#REF!,View!$B$25,$DS12),"") ->  | DS12: =($C$41+1)*5 -> 
A14: LZsmax | B14: =IF(B$5<>"",OFFSET(Data!#REF!,View!$B$25,$DS14),"") ->  | C14: =IF(C$5<>"",OFFSET(Data!#REF!,View!$B$25,$DS14),"") ->  | D14: =IF(D$5<>"",OFFSET(Data!#REF!,View!$B$25,$DS14),"") ->  | E14: =IF(E$5<>"",OFFSET(Data!#REF!,View!$B$25,$DS14),"") ->  | F14: =IF(F$5<>"",OFFSET(Data!#REF!,View!$B$25,$DS14),"") ->  | G14: =IF(G$5<>"",OFFSET(Data!#REF!,View!$B$25,$DS14),"") ->  | H14: =IF(H$5<>"",OFFSET(Data!#REF!,View!$B$25,$DS14),"") ->  | I14: =IF(I$5<>"",OFFSET(Data!#REF!,View!$B$25,$DS14),"") ->  | J14: =IF(J$5<>"",OFFSET(Data!#REF!,View!$B$25,$DS14),"") ->  | K14: =IF(K$5<>"",OFFSET(Data!#REF!,View!$B$25,$DS14),"") ->  | L14: =IF(L$5<>"",OFFSET(Data!#REF!,View!$B$25,$DS14),"") ->  | M14: =IF(M$5<>"",OFFSET(Data!#REF!,View!$B$25,$DS14),"") ->  | N14: =IF(N$5<>"",OFFSET(Data!#REF!,View!$B$25,$DS14),"") ->  | O14: =IF(O$5<>"",OFFSET(Data!#REF!,View!$B$25,$DS14),"") ->  | P14: =IF(P$5<>"",OFFSET(Data!#REF!,View!$B$25,$DS14),"") ->  | Q14: =IF(Q$5<>"",OFFSET(Data!#REF!,View!$B$25,$DS14),"") ->  | R14: =IF(R$5<>"",OFFSET(Data!#REF!,View!$B$25,$DS14),"") ->  | S14: =IF(S$5<>"",OFFSET(Data!#REF!,View!$B$25,$DS14),"") ->  | T14: =IF(T$5<>"",OFFSET(Data!#REF!,View!$B$25,$DS14),"") ->  | U14: =IF(U$5<>"",OFFSET(Data!#REF!,View!$B$25,$DS14),"") ->  | V14: =IF(V$5<>"",OFFSET(Data!#REF!,View!$B$25,$DS14),"") ->  | W14: =IF(W$5<>"",OFFSET(Data!#REF!,View!$B$25,$DS14),"") ->  | X14: =IF(X$5<>"",OFFSET(Data!#REF!,View!$B$25,$DS14),"") ->  | Y14: =IF(Y$5<>"",OFFSET(Data!#REF!,View!$B$25,$DS14),"") ->  | Z14: =IF(Z$5<>"",OFFSET(Data!#REF!,View!$B$25,$DS14),"") ->  | AA14: =IF(AA$5<>"",OFFSET(Data!#REF!,View!$B$25,$DS14),"") ->  | AB14: =IF(AB$5<>"",OFFSET(Data!#REF!,View!$B$25,$DS14),"") ->  | AC14: =IF(AC$5<>"",OFFSET(Data!#REF!,View!$B$25,$DS14),"") ->  | AD14: =IF(AD$5<>"",OFFSET(Data!#REF!,View!$B$25,$DS14),"") ->  | AE14: =IF(AE$5<>"",OFFSET(Data!#REF!,View!$B$25,$DS14),"") ->  | AF14: =IF(AF$5<>"",OFFSET(Data!#REF!,View!$B$25,$DS14),"") ->  | AG14: =IF(AG$5<>"",OFFSET(Data!#REF!,View!$B$25,$DS14),"") ->  | AH14: =IF(AH$5<>"",OFFSET(Data!#REF!,View!$B$25,$DS14),"") ->  | AI14: =IF(AI$5<>"",OFFSET(Data!#REF!,View!$B$25,$DS14),"") ->  | AJ14: =IF(AJ$5<>"",OFFSET(Data!#REF!,View!$B$25,$DS14),"") ->  | AK14: =IF(AK$5<>"",OFFSET(Data!#REF!,View!$B$25,$DS14),"") ->  | AL14: =IF(AL$5<>"",OFFSET(Data!#REF!,View!$B$25,$DS14),"") ->  | AM14: =IF(AM$5<>"",OFFSET(Data!#REF!,View!$B$25,$DS14),"") ->  | AN14: =IF(AN$5<>"",OFFSET(Data!#REF!,View!$B$25,$DS14),"") ->  | AO14: =IF(AO$5<>"",OFFSET(Data!#REF!,View!$B$25,$DS14),"") ->  | AP14: =IF(AP$5<>"",OFFSET(Data!#REF!,View!$B$25,$DS14),"") ->  | AQ14: =IF(AQ$5<>"",OFFSET(Data!#REF!,View!$B$25,$DS14),"") ->  | AR14: =IF(AR$5<>"",OFFSET(Data!#REF!,View!$B$25,$DS14),"") ->  | AS14: =IF(AS$5<>"",OFFSET(Data!#REF!,View!$B$25,$DS14),"") ->  | AT14: =IF(AT$5<>"",OFFSET(Data!#REF!,View!$B$25,$DS14),"") ->  | AU14: =IF(AU$5<>"",OFFSET(Data!#REF!,View!$B$25,$DS14),"") ->  | AV14: =IF(AV$5<>"",OFFSET(Data!#REF!,View!$B$25,$DS14),"") ->  | AW14: =IF(AW$5<>"",OFFSET(Data!#REF!,View!$B$25,$DS14),"") ->  | AX14: =IF(AX$5<>"",OFFSET(Data!#REF!,View!$B$25,$DS14),"") ->  | AY14: =IF(AY$5<>"",OFFSET(Data!#REF!,View!$B$25,$DS14),"") ->  | AZ14: =IF(AZ$5<>"",OFFSET(Data!#REF!,View!$B$25,$DS14),"") ->  | BA14: =IF(BA$5<>"",OFFSET(Data!#REF!,View!$B$25,$DS14),"") ->  | BB14: =IF(BB$5<>"",OFFSET(Data!#REF!,View!$B$25,$DS14),"") ->  | BC14: =IF(BC$5<>"",OFFSET(Data!#REF!,View!$B$25,$DS14),"") ->  | BD14: =IF(BD$5<>"",OFFSET(Data!#REF!,View!$B$25,$DS14),"") ->  | BE14: =IF(BE$5<>"",OFFSET(Data!#REF!,View!$B$25,$DS14),"") ->  | BF14: =IF(BF$5<>"",OFFSET(Data!#REF!,View!$B$25,$DS14),"") ->  | BG14: =IF(BG$5<>"",OFFSET(Data!#REF!,View!$B$25,$DS14),"") ->  | BH14: =IF(BH$5<>"",OFFSET(Data!#REF!,View!$B$25,$DS14),"") ->  | BI14: =IF(BI$5<>"",OFFSET(Data!#REF!,View!$B$25,$DS14),"") ->  | BJ14: =IF(BJ$5<>"",OFFSET(Data!#REF!,View!$B$25,$DS14),"") ->  | BK14: =IF(BK$5<>"",OFFSET(Data!#REF!,View!$B$25,$DS14),"") ->  | BL14: =IF(BL$5<>"",OFFSET(Data!#REF!,View!$B$25,$DS14),"") ->  | BM14: =IF(BM$5<>"",OFFSET(Data!#REF!,View!$B$25,$DS14),"") ->  | BN14: =IF(BN$5<>"",OFFSET(Data!#REF!,View!$B$25,$DS14),"") ->  | BO14: =IF(BO$5<>"",OFFSET(Data!#REF!,View!$B$25,$DS14),"") ->  | BP14: =IF(BP$5<>"",OFFSET(Data!#REF!,View!$B$25,$DS14),"") ->  | BQ14: =IF(BQ$5<>"",OFFSET(Data!#REF!,View!$B$25,$DS14),"") ->  | BR14: =IF(BR$5<>"",OFFSET(Data!#REF!,View!$B$25,$DS14),"") ->  | BS14: =IF(BS$5<>"",OFFSET(Data!#REF!,View!$B$25,$DS14),"") ->  | BT14: =IF(BT$5<>"",OFFSET(Data!#REF!,View!$B$25,$DS14),"") ->  | BU14: =IF(BU$5<>"",OFFSET(Data!#REF!,View!$B$25,$DS14),"") ->  | BV14: =IF(BV$5<>"",OFFSET(Data!#REF!,View!$B$25,$DS14),"") ->  | BW14: =IF(BW$5<>"",OFFSET(Data!#REF!,View!$B$25,$DS14),"") ->  | BX14: =IF(BX$5<>"",OFFSET(Data!#REF!,View!$B$25,$DS14),"") ->  | BY14: =IF(BY$5<>"",OFFSET(Data!#REF!,View!$B$25,$DS14),"") ->  | BZ14: =IF(BZ$5<>"",OFFSET(Data!#REF!,View!$B$25,$DS14),"") ->  | CA14: =IF(CA$5<>"",OFFSET(Data!#REF!,View!$B$25,$DS14),"") ->  | CB14: =IF(CB$5<>"",OFFSET(Data!#REF!,View!$B$25,$DS14),"") ->  | CC14: =IF(CC$5<>"",OFFSET(Data!#REF!,View!$B$25,$DS14),"") ->  | CD14: =IF(CD$5<>"",OFFSET(Data!#REF!,View!$B$25,$DS14),"") ->  | CE14: =IF(CE$5<>"",OFFSET(Data!#REF!,View!$B$25,$DS14),"") ->  | CF14: =IF(CF$5<>"",OFFSET(Data!#REF!,View!$B$25,$DS14),"") ->  | CG14: =IF(CG$5<>"",OFFSET(Data!#REF!,View!$B$25,$DS14),"") ->  | CH14: =IF(CH$5<>"",OFFSET(Data!#REF!,View!$B$25,$DS14),"") ->  | CI14: =IF(CI$5<>"",OFFSET(Data!#REF!,View!$B$25,$DS14),"") ->  | CJ14: =IF(CJ$5<>"",OFFSET(Data!#REF!,View!$B$25,$DS14),"") ->  | CK14: =IF(CK$5<>"",OFFSET(Data!#REF!,View!$B$25,$DS14),"") ->  | CL14: =IF(CL$5<>"",OFFSET(Data!#REF!,View!$B$25,$DS14),"") ->  | CM14: =IF(CM$5<>"",OFFSET(Data!#REF!,View!$B$25,$DS14),"") ->  | CN14: =IF(CN$5<>"",OFFSET(Data!#REF!,View!$B$25,$DS14),"") ->  | CO14: =IF(CO$5<>"",OFFSET(Data!#REF!,View!$B$25,$DS14),"") ->  | CP14: =IF(CP$5<>"",OFFSET(Data!#REF!,View!$B$25,$DS14),"") ->  | CQ14: =IF(CQ$5<>"",OFFSET(Data!#REF!,View!$B$25,$DS14),"") ->  | CR14: =IF(CR$5<>"",OFFSET(Data!#REF!,View!$B$25,$DS14),"") ->  | CS14: =IF(CS$5<>"",OFFSET(Data!#REF!,View!$B$25,$DS14),"") ->  | CT14: =IF(CT$5<>"",OFFSET(Data!#REF!,View!$B$25,$DS14),"") ->  | CU14: =IF(CU$5<>"",OFFSET(Data!#REF!,View!$B$25,$DS14),"") ->  | CV14: =IF(CV$5<>"",OFFSET(Data!#REF!,View!$B$25,$DS14),"") ->  | CW14: =IF(CW$5<>"",OFFSET(Data!#REF!,View!$B$25,$DS14),"") ->  | CX14: =IF(CX$5<>"",OFFSET(Data!#REF!,View!$B$25,$DS14),"") ->  | CY14: =IF(CY$5<>"",OFFSET(Data!#REF!,View!$B$25,$DS14),"") ->  | CZ14: =IF(CZ$5<>"",OFFSET(Data!#REF!,View!$B$25,$DS14),"") ->  | DA14: =IF(DA$5<>"",OFFSET(Data!#REF!,View!$B$25,$DS14),"") ->  | DB14: =IF(DB$5<>"",OFFSET(Data!#REF!,View!$B$25,$DS14),"") ->  | DC14: =IF(DC$5<>"",OFFSET(Data!#REF!,View!$B$25,$DS14),"") ->  | DD14: =IF(DD$5<>"",OFFSET(Data!#REF!,View!$B$25,$DS14),"") ->  | DE14: =IF(DE$5<>"",OFFSET(Data!#REF!,View!$B$25,$DS14),"") ->  | DF14: =IF(DF$5<>"",OFFSET(Data!#REF!,View!$B$25,$DS14),"") ->  | DG14: =IF(DG$5<>"",OFFSET(Data!#REF!,View!$B$25,$DS14),"") ->  | DH14: =IF(DH$5<>"",OFFSET(Data!#REF!,View!$B$25,$DS14),"") ->  | DI14: =IF(DI$5<>"",OFFSET(Data!#REF!,View!$B$25,$DS14),"") ->  | DJ14: =IF(DJ$5<>"",OFFSET(Data!#REF!,View!$B$25,$DS14),"") ->  | DK14: =IF(DK$5<>"",OFFSET(Data!#REF!,View!$B$25,$DS14),"") ->  | DL14: =IF(DL$5<>"",OFFSET(Data!#REF!,View!$B$25,$DS14),"") ->  | DM14: =IF(DM$5<>"",OFFSET(Data!#REF!,View!$B$25,$DS14),"") ->  | DN14: =IF(DN$5<>"",OFFSET(Data!#REF!,View!$B$25,$DS14),"") ->  | DO14: =IF(DO$5<>"",OFFSET(Data!#REF!,View!$B$25,$DS14),"") ->  | DP14: =IF(DP$5<>"",OFFSET(Data!#REF!,View!$B$25,$DS14),"") ->  | DQ14: =IF(DQ$5<>"",OFFSET(Data!#REF!,View!$B$25,$DS14),"") ->  | DR14: =IF(DR$5<>"",OFFSET(Data!#REF!,View!$B$25,$DS14),"") ->  | DS14: =($C$41+1)*10 -> 
A15: LAsmax | B15: =IF(B$5<>"",OFFSET(Data!#REF!,View!$B$25,$DS15),"") ->  | C15: =IF(C$5<>"",OFFSET(Data!#REF!,View!$B$25,$DS15),"") ->  | D15: =IF(D$5<>"",OFFSET(Data!#REF!,View!$B$25,$DS15),"") ->  | E15: =IF(E$5<>"",OFFSET(Data!#REF!,View!$B$25,$DS15),"") ->  | F15: =IF(F$5<>"",OFFSET(Data!#REF!,View!$B$25,$DS15),"") ->  | G15: =IF(G$5<>"",OFFSET(Data!#REF!,View!$B$25,$DS15),"") ->  | H15: =IF(H$5<>"",OFFSET(Data!#REF!,View!$B$25,$DS15),"") ->  | I15: =IF(I$5<>"",OFFSET(Data!#REF!,View!$B$25,$DS15),"") ->  | J15: =IF(J$5<>"",OFFSET(Data!#REF!,View!$B$25,$DS15),"") ->  | K15: =IF(K$5<>"",OFFSET(Data!#REF!,View!$B$25,$DS15),"") ->  | L15: =IF(L$5<>"",OFFSET(Data!#REF!,View!$B$25,$DS15),"") ->  | M15: =IF(M$5<>"",OFFSET(Data!#REF!,View!$B$25,$DS15),"") ->  | N15: =IF(N$5<>"",OFFSET(Data!#REF!,View!$B$25,$DS15),"") ->  | O15: =IF(O$5<>"",OFFSET(Data!#REF!,View!$B$25,$DS15),"") ->  | P15: =IF(P$5<>"",OFFSET(Data!#REF!,View!$B$25,$DS15),"") ->  | Q15: =IF(Q$5<>"",OFFSET(Data!#REF!,View!$B$25,$DS15),"") ->  | R15: =IF(R$5<>"",OFFSET(Data!#REF!,View!$B$25,$DS15),"") ->  | S15: =IF(S$5<>"",OFFSET(Data!#REF!,View!$B$25,$DS15),"") ->  | T15: =IF(T$5<>"",OFFSET(Data!#REF!,View!$B$25,$DS15),"") ->  | U15: =IF(U$5<>"",OFFSET(Data!#REF!,View!$B$25,$DS15),"") ->  | V15: =IF(V$5<>"",OFFSET(Data!#REF!,View!$B$25,$DS15),"") ->  | W15: =IF(W$5<>"",OFFSET(Data!#REF!,View!$B$25,$DS15),"") ->  | X15: =IF(X$5<>"",OFFSET(Data!#REF!,View!$B$25,$DS15),"") ->  | Y15: =IF(Y$5<>"",OFFSET(Data!#REF!,View!$B$25,$DS15),"") ->  | Z15: =IF(Z$5<>"",OFFSET(Data!#REF!,View!$B$25,$DS15),"") ->  | AA15: =IF(AA$5<>"",OFFSET(Data!#REF!,View!$B$25,$DS15),"") ->  | AB15: =IF(AB$5<>"",OFFSET(Data!#REF!,View!$B$25,$DS15),"") ->  | AC15: =IF(AC$5<>"",OFFSET(Data!#REF!,View!$B$25,$DS15),"") ->  | AD15: =IF(AD$5<>"",OFFSET(Data!#REF!,View!$B$25,$DS15),"") ->  | AE15: =IF(AE$5<>"",OFFSET(Data!#REF!,View!$B$25,$DS15),"") ->  | AF15: =IF(AF$5<>"",OFFSET(Data!#REF!,View!$B$25,$DS15),"") ->  | AG15: =IF(AG$5<>"",OFFSET(Data!#REF!,View!$B$25,$DS15),"") ->  | AH15: =IF(AH$5<>"",OFFSET(Data!#REF!,View!$B$25,$DS15),"") ->  | AI15: =IF(AI$5<>"",OFFSET(Data!#REF!,View!$B$25,$DS15),"") ->  | AJ15: =IF(AJ$5<>"",OFFSET(Data!#REF!,View!$B$25,$DS15),"") ->  | AK15: =IF(AK$5<>"",OFFSET(Data!#REF!,View!$B$25,$DS15),"") ->  | AL15: =IF(AL$5<>"",OFFSET(Data!#REF!,View!$B$25,$DS15),"") ->  | AM15: =IF(AM$5<>"",OFFSET(Data!#REF!,View!$B$25,$DS15),"") ->  | AN15: =IF(AN$5<>"",OFFSET(Data!#REF!,View!$B$25,$DS15),"") ->  | AO15: =IF(AO$5<>"",OFFSET(Data!#REF!,View!$B$25,$DS15),"") ->  | AP15: =IF(AP$5<>"",OFFSET(Data!#REF!,View!$B$25,$DS15),"") ->  | AQ15: =IF(AQ$5<>"",OFFSET(Data!#REF!,View!$B$25,$DS15),"") ->  | AR15: =IF(AR$5<>"",OFFSET(Data!#REF!,View!$B$25,$DS15),"") ->  | AS15: =IF(AS$5<>"",OFFSET(Data!#REF!,View!$B$25,$DS15),"") ->  | AT15: =IF(AT$5<>"",OFFSET(Data!#REF!,View!$B$25,$DS15),"") ->  | AU15: =IF(AU$5<>"",OFFSET(Data!#REF!,View!$B$25,$DS15),"") ->  | AV15: =IF(AV$5<>"",OFFSET(Data!#REF!,View!$B$25,$DS15),"") ->  | AW15: =IF(AW$5<>"",OFFSET(Data!#REF!,View!$B$25,$DS15),"") ->  | AX15: =IF(AX$5<>"",OFFSET(Data!#REF!,View!$B$25,$DS15),"") ->  | AY15: =IF(AY$5<>"",OFFSET(Data!#REF!,View!$B$25,$DS15),"") ->  | AZ15: =IF(AZ$5<>"",OFFSET(Data!#REF!,View!$B$25,$DS15),"") ->  | BA15: =IF(BA$5<>"",OFFSET(Data!#REF!,View!$B$25,$DS15),"") ->  | BB15: =IF(BB$5<>"",OFFSET(Data!#REF!,View!$B$25,$DS15),"") ->  | BC15: =IF(BC$5<>"",OFFSET(Data!#REF!,View!$B$25,$DS15),"") ->  | BD15: =IF(BD$5<>"",OFFSET(Data!#REF!,View!$B$25,$DS15),"") ->  | BE15: =IF(BE$5<>"",OFFSET(Data!#REF!,View!$B$25,$DS15),"") ->  | BF15: =IF(BF$5<>"",OFFSET(Data!#REF!,View!$B$25,$DS15),"") ->  | BG15: =IF(BG$5<>"",OFFSET(Data!#REF!,View!$B$25,$DS15),"") ->  | BH15: =IF(BH$5<>"",OFFSET(Data!#REF!,View!$B$25,$DS15),"") ->  | BI15: =IF(BI$5<>"",OFFSET(Data!#REF!,View!$B$25,$DS15),"") ->  | BJ15: =IF(BJ$5<>"",OFFSET(Data!#REF!,View!$B$25,$DS15),"") ->  | BK15: =IF(BK$5<>"",OFFSET(Data!#REF!,View!$B$25,$DS15),"") ->  | BL15: =IF(BL$5<>"",OFFSET(Data!#REF!,View!$B$25,$DS15),"") ->  | BM15: =IF(BM$5<>"",OFFSET(Data!#REF!,View!$B$25,$DS15),"") ->  | BN15: =IF(BN$5<>"",OFFSET(Data!#REF!,View!$B$25,$DS15),"") ->  | BO15: =IF(BO$5<>"",OFFSET(Data!#REF!,View!$B$25,$DS15),"") ->  | BP15: =IF(BP$5<>"",OFFSET(Data!#REF!,View!$B$25,$DS15),"") ->  | BQ15: =IF(BQ$5<>"",OFFSET(Data!#REF!,View!$B$25,$DS15),"") ->  | BR15: =IF(BR$5<>"",OFFSET(Data!#REF!,View!$B$25,$DS15),"") ->  | BS15: =IF(BS$5<>"",OFFSET(Data!#REF!,View!$B$25,$DS15),"") ->  | BT15: =IF(BT$5<>"",OFFSET(Data!#REF!,View!$B$25,$DS15),"") ->  | BU15: =IF(BU$5<>"",OFFSET(Data!#REF!,View!$B$25,$DS15),"") ->  | BV15: =IF(BV$5<>"",OFFSET(Data!#REF!,View!$B$25,$DS15),"") ->  | BW15: =IF(BW$5<>"",OFFSET(Data!#REF!,View!$B$25,$DS15),"") ->  | BX15: =IF(BX$5<>"",OFFSET(Data!#REF!,View!$B$25,$DS15),"") ->  | BY15: =IF(BY$5<>"",OFFSET(Data!#REF!,View!$B$25,$DS15),"") ->  | BZ15: =IF(BZ$5<>"",OFFSET(Data!#REF!,View!$B$25,$DS15),"") ->  | CA15: =IF(CA$5<>"",OFFSET(Data!#REF!,View!$B$25,$DS15),"") ->  | CB15: =IF(CB$5<>"",OFFSET(Data!#REF!,View!$B$25,$DS15),"") ->  | CC15: =IF(CC$5<>"",OFFSET(Data!#REF!,View!$B$25,$DS15),"") ->  | CD15: =IF(CD$5<>"",OFFSET(Data!#REF!,View!$B$25,$DS15),"") ->  | CE15: =IF(CE$5<>"",OFFSET(Data!#REF!,View!$B$25,$DS15),"") ->  | CF15: =IF(CF$5<>"",OFFSET(Data!#REF!,View!$B$25,$DS15),"") ->  | CG15: =IF(CG$5<>"",OFFSET(Data!#REF!,View!$B$25,$DS15),"") ->  | CH15: =IF(CH$5<>"",OFFSET(Data!#REF!,View!$B$25,$DS15),"") ->  | CI15: =IF(CI$5<>"",OFFSET(Data!#REF!,View!$B$25,$DS15),"") ->  | CJ15: =IF(CJ$5<>"",OFFSET(Data!#REF!,View!$B$25,$DS15),"") ->  | CK15: =IF(CK$5<>"",OFFSET(Data!#REF!,View!$B$25,$DS15),"") ->  | CL15: =IF(CL$5<>"",OFFSET(Data!#REF!,View!$B$25,$DS15),"") ->  | CM15: =IF(CM$5<>"",OFFSET(Data!#REF!,View!$B$25,$DS15),"") ->  | CN15: =IF(CN$5<>"",OFFSET(Data!#REF!,View!$B$25,$DS15),"") ->  | CO15: =IF(CO$5<>"",OFFSET(Data!#REF!,View!$B$25,$DS15),"") ->  | CP15: =IF(CP$5<>"",OFFSET(Data!#REF!,View!$B$25,$DS15),"") ->  | CQ15: =IF(CQ$5<>"",OFFSET(Data!#REF!,View!$B$25,$DS15),"") ->  | CR15: =IF(CR$5<>"",OFFSET(Data!#REF!,View!$B$25,$DS15),"") ->  | CS15: =IF(CS$5<>"",OFFSET(Data!#REF!,View!$B$25,$DS15),"") ->  | CT15: =IF(CT$5<>"",OFFSET(Data!#REF!,View!$B$25,$DS15),"") ->  | CU15: =IF(CU$5<>"",OFFSET(Data!#REF!,View!$B$25,$DS15),"") ->  | CV15: =IF(CV$5<>"",OFFSET(Data!#REF!,View!$B$25,$DS15),"") ->  | CW15: =IF(CW$5<>"",OFFSET(Data!#REF!,View!$B$25,$DS15),"") ->  | CX15: =IF(CX$5<>"",OFFSET(Data!#REF!,View!$B$25,$DS15),"") ->  | CY15: =IF(CY$5<>"",OFFSET(Data!#REF!,View!$B$25,$DS15),"") ->  | CZ15: =IF(CZ$5<>"",OFFSET(Data!#REF!,View!$B$25,$DS15),"") ->  | DA15: =IF(DA$5<>"",OFFSET(Data!#REF!,View!$B$25,$DS15),"") ->  | DB15: =IF(DB$5<>"",OFFSET(Data!#REF!,View!$B$25,$DS15),"") ->  | DC15: =IF(DC$5<>"",OFFSET(Data!#REF!,View!$B$25,$DS15),"") ->  | DD15: =IF(DD$5<>"",OFFSET(Data!#REF!,View!$B$25,$DS15),"") ->  | DE15: =IF(DE$5<>"",OFFSET(Data!#REF!,View!$B$25,$DS15),"") ->  | DF15: =IF(DF$5<>"",OFFSET(Data!#REF!,View!$B$25,$DS15),"") ->  | DG15: =IF(DG$5<>"",OFFSET(Data!#REF!,View!$B$25,$DS15),"") ->  | DH15: =IF(DH$5<>"",OFFSET(Data!#REF!,View!$B$25,$DS15),"") ->  | DI15: =IF(DI$5<>"",OFFSET(Data!#REF!,View!$B$25,$DS15),"") ->  | DJ15: =IF(DJ$5<>"",OFFSET(Data!#REF!,View!$B$25,$DS15),"") ->  | DK15: =IF(DK$5<>"",OFFSET(Data!#REF!,View!$B$25,$DS15),"") ->  | DL15: =IF(DL$5<>"",OFFSET(Data!#REF!,View!$B$25,$DS15),"") ->  | DM15: =IF(DM$5<>"",OFFSET(Data!#REF!,View!$B$25,$DS15),"") ->  | DN15: =IF(DN$5<>"",OFFSET(Data!#REF!,View!$B$25,$DS15),"") ->  | DO15: =IF(DO$5<>"",OFFSET(Data!#REF!,View!$B$25,$DS15),"") ->  | DP15: =IF(DP$5<>"",OFFSET(Data!#REF!,View!$B$25,$DS15),"") ->  | DQ15: =IF(DQ$5<>"",OFFSET(Data!#REF!,View!$B$25,$DS15),"") ->  | DR15: =IF(DR$5<>"",OFFSET(Data!#REF!,View!$B$25,$DS15),"") ->  | DS15: =($C$41+1)*2 -> 
A16: LCsmax | B16: =IF(B$5<>"",OFFSET(Data!#REF!,View!$B$25,$DS16),"") ->  | C16: =IF(C$5<>"",OFFSET(Data!#REF!,View!$B$25,$DS16),"") ->  | D16: =IF(D$5<>"",OFFSET(Data!#REF!,View!$B$25,$DS16),"") ->  | E16: =IF(E$5<>"",OFFSET(Data!#REF!,View!$B$25,$DS16),"") ->  | F16: =IF(F$5<>"",OFFSET(Data!#REF!,View!$B$25,$DS16),"") ->  | G16: =IF(G$5<>"",OFFSET(Data!#REF!,View!$B$25,$DS16),"") ->  | H16: =IF(H$5<>"",OFFSET(Data!#REF!,View!$B$25,$DS16),"") ->  | I16: =IF(I$5<>"",OFFSET(Data!#REF!,View!$B$25,$DS16),"") ->  | J16: =IF(J$5<>"",OFFSET(Data!#REF!,View!$B$25,$DS16),"") ->  | K16: =IF(K$5<>"",OFFSET(Data!#REF!,View!$B$25,$DS16),"") ->  | L16: =IF(L$5<>"",OFFSET(Data!#REF!,View!$B$25,$DS16),"") ->  | M16: =IF(M$5<>"",OFFSET(Data!#REF!,View!$B$25,$DS16),"") ->  | N16: =IF(N$5<>"",OFFSET(Data!#REF!,View!$B$25,$DS16),"") ->  | O16: =IF(O$5<>"",OFFSET(Data!#REF!,View!$B$25,$DS16),"") ->  | P16: =IF(P$5<>"",OFFSET(Data!#REF!,View!$B$25,$DS16),"") ->  | Q16: =IF(Q$5<>"",OFFSET(Data!#REF!,View!$B$25,$DS16),"") ->  | R16: =IF(R$5<>"",OFFSET(Data!#REF!,View!$B$25,$DS16),"") ->  | S16: =IF(S$5<>"",OFFSET(Data!#REF!,View!$B$25,$DS16),"") ->  | T16: =IF(T$5<>"",OFFSET(Data!#REF!,View!$B$25,$DS16),"") ->  | U16: =IF(U$5<>"",OFFSET(Data!#REF!,View!$B$25,$DS16),"") ->  | V16: =IF(V$5<>"",OFFSET(Data!#REF!,View!$B$25,$DS16),"") ->  | W16: =IF(W$5<>"",OFFSET(Data!#REF!,View!$B$25,$DS16),"") ->  | X16: =IF(X$5<>"",OFFSET(Data!#REF!,View!$B$25,$DS16),"") ->  | Y16: =IF(Y$5<>"",OFFSET(Data!#REF!,View!$B$25,$DS16),"") ->  | Z16: =IF(Z$5<>"",OFFSET(Data!#REF!,View!$B$25,$DS16),"") ->  | AA16: =IF(AA$5<>"",OFFSET(Data!#REF!,View!$B$25,$DS16),"") ->  | AB16: =IF(AB$5<>"",OFFSET(Data!#REF!,View!$B$25,$DS16),"") ->  | AC16: =IF(AC$5<>"",OFFSET(Data!#REF!,View!$B$25,$DS16),"") ->  | AD16: =IF(AD$5<>"",OFFSET(Data!#REF!,View!$B$25,$DS16),"") ->  | AE16: =IF(AE$5<>"",OFFSET(Data!#REF!,View!$B$25,$DS16),"") ->  | AF16: =IF(AF$5<>"",OFFSET(Data!#REF!,View!$B$25,$DS16),"") ->  | AG16: =IF(AG$5<>"",OFFSET(Data!#REF!,View!$B$25,$DS16),"") ->  | AH16: =IF(AH$5<>"",OFFSET(Data!#REF!,View!$B$25,$DS16),"") ->  | AI16: =IF(AI$5<>"",OFFSET(Data!#REF!,View!$B$25,$DS16),"") ->  | AJ16: =IF(AJ$5<>"",OFFSET(Data!#REF!,View!$B$25,$DS16),"") ->  | AK16: =IF(AK$5<>"",OFFSET(Data!#REF!,View!$B$25,$DS16),"") ->  | AL16: =IF(AL$5<>"",OFFSET(Data!#REF!,View!$B$25,$DS16),"") ->  | AM16: =IF(AM$5<>"",OFFSET(Data!#REF!,View!$B$25,$DS16),"") ->  | AN16: =IF(AN$5<>"",OFFSET(Data!#REF!,View!$B$25,$DS16),"") ->  | AO16: =IF(AO$5<>"",OFFSET(Data!#REF!,View!$B$25,$DS16),"") ->  | AP16: =IF(AP$5<>"",OFFSET(Data!#REF!,View!$B$25,$DS16),"") ->  | AQ16: =IF(AQ$5<>"",OFFSET(Data!#REF!,View!$B$25,$DS16),"") ->  | AR16: =IF(AR$5<>"",OFFSET(Data!#REF!,View!$B$25,$DS16),"") ->  | AS16: =IF(AS$5<>"",OFFSET(Data!#REF!,View!$B$25,$DS16),"") ->  | AT16: =IF(AT$5<>"",OFFSET(Data!#REF!,View!$B$25,$DS16),"") ->  | AU16: =IF(AU$5<>"",OFFSET(Data!#REF!,View!$B$25,$DS16),"") ->  | AV16: =IF(AV$5<>"",OFFSET(Data!#REF!,View!$B$25,$DS16),"") ->  | AW16: =IF(AW$5<>"",OFFSET(Data!#REF!,View!$B$25,$DS16),"") ->  | AX16: =IF(AX$5<>"",OFFSET(Data!#REF!,View!$B$25,$DS16),"") ->  | AY16: =IF(AY$5<>"",OFFSET(Data!#REF!,View!$B$25,$DS16),"") ->  | AZ16: =IF(AZ$5<>"",OFFSET(Data!#REF!,View!$B$25,$DS16),"") ->  | BA16: =IF(BA$5<>"",OFFSET(Data!#REF!,View!$B$25,$DS16),"") ->  | BB16: =IF(BB$5<>"",OFFSET(Data!#REF!,View!$B$25,$DS16),"") ->  | BC16: =IF(BC$5<>"",OFFSET(Data!#REF!,View!$B$25,$DS16),"") ->  | BD16: =IF(BD$5<>"",OFFSET(Data!#REF!,View!$B$25,$DS16),"") ->  | BE16: =IF(BE$5<>"",OFFSET(Data!#REF!,View!$B$25,$DS16),"") ->  | BF16: =IF(BF$5<>"",OFFSET(Data!#REF!,View!$B$25,$DS16),"") ->  | BG16: =IF(BG$5<>"",OFFSET(Data!#REF!,View!$B$25,$DS16),"") ->  | BH16: =IF(BH$5<>"",OFFSET(Data!#REF!,View!$B$25,$DS16),"") ->  | BI16: =IF(BI$5<>"",OFFSET(Data!#REF!,View!$B$25,$DS16),"") ->  | BJ16: =IF(BJ$5<>"",OFFSET(Data!#REF!,View!$B$25,$DS16),"") ->  | BK16: =IF(BK$5<>"",OFFSET(Data!#REF!,View!$B$25,$DS16),"") ->  | BL16: =IF(BL$5<>"",OFFSET(Data!#REF!,View!$B$25,$DS16),"") ->  | BM16: =IF(BM$5<>"",OFFSET(Data!#REF!,View!$B$25,$DS16),"") ->  | BN16: =IF(BN$5<>"",OFFSET(Data!#REF!,View!$B$25,$DS16),"") ->  | BO16: =IF(BO$5<>"",OFFSET(Data!#REF!,View!$B$25,$DS16),"") ->  | BP16: =IF(BP$5<>"",OFFSET(Data!#REF!,View!$B$25,$DS16),"") ->  | BQ16: =IF(BQ$5<>"",OFFSET(Data!#REF!,View!$B$25,$DS16),"") ->  | BR16: =IF(BR$5<>"",OFFSET(Data!#REF!,View!$B$25,$DS16),"") ->  | BS16: =IF(BS$5<>"",OFFSET(Data!#REF!,View!$B$25,$DS16),"") ->  | BT16: =IF(BT$5<>"",OFFSET(Data!#REF!,View!$B$25,$DS16),"") ->  | BU16: =IF(BU$5<>"",OFFSET(Data!#REF!,View!$B$25,$DS16),"") ->  | BV16: =IF(BV$5<>"",OFFSET(Data!#REF!,View!$B$25,$DS16),"") ->  | BW16: =IF(BW$5<>"",OFFSET(Data!#REF!,View!$B$25,$DS16),"") ->  | BX16: =IF(BX$5<>"",OFFSET(Data!#REF!,View!$B$25,$DS16),"") ->  | BY16: =IF(BY$5<>"",OFFSET(Data!#REF!,View!$B$25,$DS16),"") ->  | BZ16: =IF(BZ$5<>"",OFFSET(Data!#REF!,View!$B$25,$DS16),"") ->  | CA16: =IF(CA$5<>"",OFFSET(Data!#REF!,View!$B$25,$DS16),"") ->  | CB16: =IF(CB$5<>"",OFFSET(Data!#REF!,View!$B$25,$DS16),"") ->  | CC16: =IF(CC$5<>"",OFFSET(Data!#REF!,View!$B$25,$DS16),"") ->  | CD16: =IF(CD$5<>"",OFFSET(Data!#REF!,View!$B$25,$DS16),"") ->  | CE16: =IF(CE$5<>"",OFFSET(Data!#REF!,View!$B$25,$DS16),"") ->  | CF16: =IF(CF$5<>"",OFFSET(Data!#REF!,View!$B$25,$DS16),"") ->  | CG16: =IF(CG$5<>"",OFFSET(Data!#REF!,View!$B$25,$DS16),"") ->  | CH16: =IF(CH$5<>"",OFFSET(Data!#REF!,View!$B$25,$DS16),"") ->  | CI16: =IF(CI$5<>"",OFFSET(Data!#REF!,View!$B$25,$DS16),"") ->  | CJ16: =IF(CJ$5<>"",OFFSET(Data!#REF!,View!$B$25,$DS16),"") ->  | CK16: =IF(CK$5<>"",OFFSET(Data!#REF!,View!$B$25,$DS16),"") ->  | CL16: =IF(CL$5<>"",OFFSET(Data!#REF!,View!$B$25,$DS16),"") ->  | CM16: =IF(CM$5<>"",OFFSET(Data!#REF!,View!$B$25,$DS16),"") ->  | CN16: =IF(CN$5<>"",OFFSET(Data!#REF!,View!$B$25,$DS16),"") ->  | CO16: =IF(CO$5<>"",OFFSET(Data!#REF!,View!$B$25,$DS16),"") ->  | CP16: =IF(CP$5<>"",OFFSET(Data!#REF!,View!$B$25,$DS16),"") ->  | CQ16: =IF(CQ$5<>"",OFFSET(Data!#REF!,View!$B$25,$DS16),"") ->  | CR16: =IF(CR$5<>"",OFFSET(Data!#REF!,View!$B$25,$DS16),"") ->  | CS16: =IF(CS$5<>"",OFFSET(Data!#REF!,View!$B$25,$DS16),"") ->  | CT16: =IF(CT$5<>"",OFFSET(Data!#REF!,View!$B$25,$DS16),"") ->  | CU16: =IF(CU$5<>"",OFFSET(Data!#REF!,View!$B$25,$DS16),"") ->  | CV16: =IF(CV$5<>"",OFFSET(Data!#REF!,View!$B$25,$DS16),"") ->  | CW16: =IF(CW$5<>"",OFFSET(Data!#REF!,View!$B$25,$DS16),"") ->  | CX16: =IF(CX$5<>"",OFFSET(Data!#REF!,View!$B$25,$DS16),"") ->  | CY16: =IF(CY$5<>"",OFFSET(Data!#REF!,View!$B$25,$DS16),"") ->  | CZ16: =IF(CZ$5<>"",OFFSET(Data!#REF!,View!$B$25,$DS16),"") ->  | DA16: =IF(DA$5<>"",OFFSET(Data!#REF!,View!$B$25,$DS16),"") ->  | DB16: =IF(DB$5<>"",OFFSET(Data!#REF!,View!$B$25,$DS16),"") ->  | DC16: =IF(DC$5<>"",OFFSET(Data!#REF!,View!$B$25,$DS16),"") ->  | DD16: =IF(DD$5<>"",OFFSET(Data!#REF!,View!$B$25,$DS16),"") ->  | DE16: =IF(DE$5<>"",OFFSET(Data!#REF!,View!$B$25,$DS16),"") ->  | DF16: =IF(DF$5<>"",OFFSET(Data!#REF!,View!$B$25,$DS16),"") ->  | DG16: =IF(DG$5<>"",OFFSET(Data!#REF!,View!$B$25,$DS16),"") ->  | DH16: =IF(DH$5<>"",OFFSET(Data!#REF!,View!$B$25,$DS16),"") ->  | DI16: =IF(DI$5<>"",OFFSET(Data!#REF!,View!$B$25,$DS16),"") ->  | DJ16: =IF(DJ$5<>"",OFFSET(Data!#REF!,View!$B$25,$DS16),"") ->  | DK16: =IF(DK$5<>"",OFFSET(Data!#REF!,View!$B$25,$DS16),"") ->  | DL16: =IF(DL$5<>"",OFFSET(Data!#REF!,View!$B$25,$DS16),"") ->  | DM16: =IF(DM$5<>"",OFFSET(Data!#REF!,View!$B$25,$DS16),"") ->  | DN16: =IF(DN$5<>"",OFFSET(Data!#REF!,View!$B$25,$DS16),"") ->  | DO16: =IF(DO$5<>"",OFFSET(Data!#REF!,View!$B$25,$DS16),"") ->  | DP16: =IF(DP$5<>"",OFFSET(Data!#REF!,View!$B$25,$DS16),"") ->  | DQ16: =IF(DQ$5<>"",OFFSET(Data!#REF!,View!$B$25,$DS16),"") ->  | DR16: =IF(DR$5<>"",OFFSET(Data!#REF!,View!$B$25,$DS16),"") ->  | DS16: =($C$41+1)*6 -> 
A18: LZimax | B18: =IF(B$5<>"",OFFSET(Data!#REF!,View!$B$25,$DS18),"") ->  | C18: =IF(C$5<>"",OFFSET(Data!#REF!,View!$B$25,$DS18),"") ->  | D18: =IF(D$5<>"",OFFSET(Data!#REF!,View!$B$25,$DS18),"") ->  | E18: =IF(E$5<>"",OFFSET(Data!#REF!,View!$B$25,$DS18),"") ->  | F18: =IF(F$5<>"",OFFSET(Data!#REF!,View!$B$25,$DS18),"") ->  | G18: =IF(G$5<>"",OFFSET(Data!#REF!,View!$B$25,$DS18),"") ->  | H18: =IF(H$5<>"",OFFSET(Data!#REF!,View!$B$25,$DS18),"") ->  | I18: =IF(I$5<>"",OFFSET(Data!#REF!,View!$B$25,$DS18),"") ->  | J18: =IF(J$5<>"",OFFSET(Data!#REF!,View!$B$25,$DS18),"") ->  | K18: =IF(K$5<>"",OFFSET(Data!#REF!,View!$B$25,$DS18),"") ->  | L18: =IF(L$5<>"",OFFSET(Data!#REF!,View!$B$25,$DS18),"") ->  | M18: =IF(M$5<>"",OFFSET(Data!#REF!,View!$B$25,$DS18),"") ->  | N18: =IF(N$5<>"",OFFSET(Data!#REF!,View!$B$25,$DS18),"") ->  | O18: =IF(O$5<>"",OFFSET(Data!#REF!,View!$B$25,$DS18),"") ->  | P18: =IF(P$5<>"",OFFSET(Data!#REF!,View!$B$25,$DS18),"") ->  | Q18: =IF(Q$5<>"",OFFSET(Data!#REF!,View!$B$25,$DS18),"") ->  | R18: =IF(R$5<>"",OFFSET(Data!#REF!,View!$B$25,$DS18),"") ->  | S18: =IF(S$5<>"",OFFSET(Data!#REF!,View!$B$25,$DS18),"") ->  | T18: =IF(T$5<>"",OFFSET(Data!#REF!,View!$B$25,$DS18),"") ->  | U18: =IF(U$5<>"",OFFSET(Data!#REF!,View!$B$25,$DS18),"") ->  | V18: =IF(V$5<>"",OFFSET(Data!#REF!,View!$B$25,$DS18),"") ->  | W18: =IF(W$5<>"",OFFSET(Data!#REF!,View!$B$25,$DS18),"") ->  | X18: =IF(X$5<>"",OFFSET(Data!#REF!,View!$B$25,$DS18),"") ->  | Y18: =IF(Y$5<>"",OFFSET(Data!#REF!,View!$B$25,$DS18),"") ->  | Z18: =IF(Z$5<>"",OFFSET(Data!#REF!,View!$B$25,$DS18),"") ->  | AA18: =IF(AA$5<>"",OFFSET(Data!#REF!,View!$B$25,$DS18),"") ->  | AB18: =IF(AB$5<>"",OFFSET(Data!#REF!,View!$B$25,$DS18),"") ->  | AC18: =IF(AC$5<>"",OFFSET(Data!#REF!,View!$B$25,$DS18),"") ->  | AD18: =IF(AD$5<>"",OFFSET(Data!#REF!,View!$B$25,$DS18),"") ->  | AE18: =IF(AE$5<>"",OFFSET(Data!#REF!,View!$B$25,$DS18),"") ->  | AF18: =IF(AF$5<>"",OFFSET(Data!#REF!,View!$B$25,$DS18),"") ->  | AG18: =IF(AG$5<>"",OFFSET(Data!#REF!,View!$B$25,$DS18),"") ->  | AH18: =IF(AH$5<>"",OFFSET(Data!#REF!,View!$B$25,$DS18),"") ->  | AI18: =IF(AI$5<>"",OFFSET(Data!#REF!,View!$B$25,$DS18),"") ->  | AJ18: =IF(AJ$5<>"",OFFSET(Data!#REF!,View!$B$25,$DS18),"") ->  | AK18: =IF(AK$5<>"",OFFSET(Data!#REF!,View!$B$25,$DS18),"") ->  | AL18: =IF(AL$5<>"",OFFSET(Data!#REF!,View!$B$25,$DS18),"") ->  | AM18: =IF(AM$5<>"",OFFSET(Data!#REF!,View!$B$25,$DS18),"") ->  | AN18: =IF(AN$5<>"",OFFSET(Data!#REF!,View!$B$25,$DS18),"") ->  | AO18: =IF(AO$5<>"",OFFSET(Data!#REF!,View!$B$25,$DS18),"") ->  | AP18: =IF(AP$5<>"",OFFSET(Data!#REF!,View!$B$25,$DS18),"") ->  | AQ18: =IF(AQ$5<>"",OFFSET(Data!#REF!,View!$B$25,$DS18),"") ->  | AR18: =IF(AR$5<>"",OFFSET(Data!#REF!,View!$B$25,$DS18),"") ->  | AS18: =IF(AS$5<>"",OFFSET(Data!#REF!,View!$B$25,$DS18),"") ->  | AT18: =IF(AT$5<>"",OFFSET(Data!#REF!,View!$B$25,$DS18),"") ->  | AU18: =IF(AU$5<>"",OFFSET(Data!#REF!,View!$B$25,$DS18),"") ->  | AV18: =IF(AV$5<>"",OFFSET(Data!#REF!,View!$B$25,$DS18),"") ->  | AW18: =IF(AW$5<>"",OFFSET(Data!#REF!,View!$B$25,$DS18),"") ->  | AX18: =IF(AX$5<>"",OFFSET(Data!#REF!,View!$B$25,$DS18),"") ->  | AY18: =IF(AY$5<>"",OFFSET(Data!#REF!,View!$B$25,$DS18),"") ->  | AZ18: =IF(AZ$5<>"",OFFSET(Data!#REF!,View!$B$25,$DS18),"") ->  | BA18: =IF(BA$5<>"",OFFSET(Data!#REF!,View!$B$25,$DS18),"") ->  | BB18: =IF(BB$5<>"",OFFSET(Data!#REF!,View!$B$25,$DS18),"") ->  | BC18: =IF(BC$5<>"",OFFSET(Data!#REF!,View!$B$25,$DS18),"") ->  | BD18: =IF(BD$5<>"",OFFSET(Data!#REF!,View!$B$25,$DS18),"") ->  | BE18: =IF(BE$5<>"",OFFSET(Data!#REF!,View!$B$25,$DS18),"") ->  | BF18: =IF(BF$5<>"",OFFSET(Data!#REF!,View!$B$25,$DS18),"") ->  | BG18: =IF(BG$5<>"",OFFSET(Data!#REF!,View!$B$25,$DS18),"") ->  | BH18: =IF(BH$5<>"",OFFSET(Data!#REF!,View!$B$25,$DS18),"") ->  | BI18: =IF(BI$5<>"",OFFSET(Data!#REF!,View!$B$25,$DS18),"") ->  | BJ18: =IF(BJ$5<>"",OFFSET(Data!#REF!,View!$B$25,$DS18),"") ->  | BK18: =IF(BK$5<>"",OFFSET(Data!#REF!,View!$B$25,$DS18),"") ->  | BL18: =IF(BL$5<>"",OFFSET(Data!#REF!,View!$B$25,$DS18),"") ->  | BM18: =IF(BM$5<>"",OFFSET(Data!#REF!,View!$B$25,$DS18),"") ->  | BN18: =IF(BN$5<>"",OFFSET(Data!#REF!,View!$B$25,$DS18),"") ->  | BO18: =IF(BO$5<>"",OFFSET(Data!#REF!,View!$B$25,$DS18),"") ->  | BP18: =IF(BP$5<>"",OFFSET(Data!#REF!,View!$B$25,$DS18),"") ->  | BQ18: =IF(BQ$5<>"",OFFSET(Data!#REF!,View!$B$25,$DS18),"") ->  | BR18: =IF(BR$5<>"",OFFSET(Data!#REF!,View!$B$25,$DS18),"") ->  | BS18: =IF(BS$5<>"",OFFSET(Data!#REF!,View!$B$25,$DS18),"") ->  | BT18: =IF(BT$5<>"",OFFSET(Data!#REF!,View!$B$25,$DS18),"") ->  | BU18: =IF(BU$5<>"",OFFSET(Data!#REF!,View!$B$25,$DS18),"") ->  | BV18: =IF(BV$5<>"",OFFSET(Data!#REF!,View!$B$25,$DS18),"") ->  | BW18: =IF(BW$5<>"",OFFSET(Data!#REF!,View!$B$25,$DS18),"") ->  | BX18: =IF(BX$5<>"",OFFSET(Data!#REF!,View!$B$25,$DS18),"") ->  | BY18: =IF(BY$5<>"",OFFSET(Data!#REF!,View!$B$25,$DS18),"") ->  | BZ18: =IF(BZ$5<>"",OFFSET(Data!#REF!,View!$B$25,$DS18),"") ->  | CA18: =IF(CA$5<>"",OFFSET(Data!#REF!,View!$B$25,$DS18),"") ->  | CB18: =IF(CB$5<>"",OFFSET(Data!#REF!,View!$B$25,$DS18),"") ->  | CC18: =IF(CC$5<>"",OFFSET(Data!#REF!,View!$B$25,$DS18),"") ->  | CD18: =IF(CD$5<>"",OFFSET(Data!#REF!,View!$B$25,$DS18),"") ->  | CE18: =IF(CE$5<>"",OFFSET(Data!#REF!,View!$B$25,$DS18),"") ->  | CF18: =IF(CF$5<>"",OFFSET(Data!#REF!,View!$B$25,$DS18),"") ->  | CG18: =IF(CG$5<>"",OFFSET(Data!#REF!,View!$B$25,$DS18),"") ->  | CH18: =IF(CH$5<>"",OFFSET(Data!#REF!,View!$B$25,$DS18),"") ->  | CI18: =IF(CI$5<>"",OFFSET(Data!#REF!,View!$B$25,$DS18),"") ->  | CJ18: =IF(CJ$5<>"",OFFSET(Data!#REF!,View!$B$25,$DS18),"") ->  | CK18: =IF(CK$5<>"",OFFSET(Data!#REF!,View!$B$25,$DS18),"") ->  | CL18: =IF(CL$5<>"",OFFSET(Data!#REF!,View!$B$25,$DS18),"") ->  | CM18: =IF(CM$5<>"",OFFSET(Data!#REF!,View!$B$25,$DS18),"") ->  | CN18: =IF(CN$5<>"",OFFSET(Data!#REF!,View!$B$25,$DS18),"") ->  | CO18: =IF(CO$5<>"",OFFSET(Data!#REF!,View!$B$25,$DS18),"") ->  | CP18: =IF(CP$5<>"",OFFSET(Data!#REF!,View!$B$25,$DS18),"") ->  | CQ18: =IF(CQ$5<>"",OFFSET(Data!#REF!,View!$B$25,$DS18),"") ->  | CR18: =IF(CR$5<>"",OFFSET(Data!#REF!,View!$B$25,$DS18),"") ->  | CS18: =IF(CS$5<>"",OFFSET(Data!#REF!,View!$B$25,$DS18),"") ->  | CT18: =IF(CT$5<>"",OFFSET(Data!#REF!,View!$B$25,$DS18),"") ->  | CU18: =IF(CU$5<>"",OFFSET(Data!#REF!,View!$B$25,$DS18),"") ->  | CV18: =IF(CV$5<>"",OFFSET(Data!#REF!,View!$B$25,$DS18),"") ->  | CW18: =IF(CW$5<>"",OFFSET(Data!#REF!,View!$B$25,$DS18),"") ->  | CX18: =IF(CX$5<>"",OFFSET(Data!#REF!,View!$B$25,$DS18),"") ->  | CY18: =IF(CY$5<>"",OFFSET(Data!#REF!,View!$B$25,$DS18),"") ->  | CZ18: =IF(CZ$5<>"",OFFSET(Data!#REF!,View!$B$25,$DS18),"") ->  | DA18: =IF(DA$5<>"",OFFSET(Data!#REF!,View!$B$25,$DS18),"") ->  | DB18: =IF(DB$5<>"",OFFSET(Data!#REF!,View!$B$25,$DS18),"") ->  | DC18: =IF(DC$5<>"",OFFSET(Data!#REF!,View!$B$25,$DS18),"") ->  | DD18: =IF(DD$5<>"",OFFSET(Data!#REF!,View!$B$25,$DS18),"") ->  | DE18: =IF(DE$5<>"",OFFSET(Data!#REF!,View!$B$25,$DS18),"") ->  | DF18: =IF(DF$5<>"",OFFSET(Data!#REF!,View!$B$25,$DS18),"") ->  | DG18: =IF(DG$5<>"",OFFSET(Data!#REF!,View!$B$25,$DS18),"") ->  | DH18: =IF(DH$5<>"",OFFSET(Data!#REF!,View!$B$25,$DS18),"") ->  | DI18: =IF(DI$5<>"",OFFSET(Data!#REF!,View!$B$25,$DS18),"") ->  | DJ18: =IF(DJ$5<>"",OFFSET(Data!#REF!,View!$B$25,$DS18),"") ->  | DK18: =IF(DK$5<>"",OFFSET(Data!#REF!,View!$B$25,$DS18),"") ->  | DL18: =IF(DL$5<>"",OFFSET(Data!#REF!,View!$B$25,$DS18),"") ->  | DM18: =IF(DM$5<>"",OFFSET(Data!#REF!,View!$B$25,$DS18),"") ->  | DN18: =IF(DN$5<>"",OFFSET(Data!#REF!,View!$B$25,$DS18),"") ->  | DO18: =IF(DO$5<>"",OFFSET(Data!#REF!,View!$B$25,$DS18),"") ->  | DP18: =IF(DP$5<>"",OFFSET(Data!#REF!,View!$B$25,$DS18),"") ->  | DQ18: =IF(DQ$5<>"",OFFSET(Data!#REF!,View!$B$25,$DS18),"") ->  | DR18: =IF(DR$5<>"",OFFSET(Data!#REF!,View!$B$25,$DS18),"") ->  | DS18: =($C$41+1)*11 -> 
A19: LAimax | B19: =IF(B$5<>"",OFFSET(Data!#REF!,View!$B$25,$DS19),"") ->  | C19: =IF(C$5<>"",OFFSET(Data!#REF!,View!$B$25,$DS19),"") ->  | D19: =IF(D$5<>"",OFFSET(Data!#REF!,View!$B$25,$DS19),"") ->  | E19: =IF(E$5<>"",OFFSET(Data!#REF!,View!$B$25,$DS19),"") ->  | F19: =IF(F$5<>"",OFFSET(Data!#REF!,View!$B$25,$DS19),"") ->  | G19: =IF(G$5<>"",OFFSET(Data!#REF!,View!$B$25,$DS19),"") ->  | H19: =IF(H$5<>"",OFFSET(Data!#REF!,View!$B$25,$DS19),"") ->  | I19: =IF(I$5<>"",OFFSET(Data!#REF!,View!$B$25,$DS19),"") ->  | J19: =IF(J$5<>"",OFFSET(Data!#REF!,View!$B$25,$DS19),"") ->  | K19: =IF(K$5<>"",OFFSET(Data!#REF!,View!$B$25,$DS19),"") ->  | L19: =IF(L$5<>"",OFFSET(Data!#REF!,View!$B$25,$DS19),"") ->  | M19: =IF(M$5<>"",OFFSET(Data!#REF!,View!$B$25,$DS19),"") ->  | N19: =IF(N$5<>"",OFFSET(Data!#REF!,View!$B$25,$DS19),"") ->  | O19: =IF(O$5<>"",OFFSET(Data!#REF!,View!$B$25,$DS19),"") ->  | P19: =IF(P$5<>"",OFFSET(Data!#REF!,View!$B$25,$DS19),"") ->  | Q19: =IF(Q$5<>"",OFFSET(Data!#REF!,View!$B$25,$DS19),"") ->  | R19: =IF(R$5<>"",OFFSET(Data!#REF!,View!$B$25,$DS19),"") ->  | S19: =IF(S$5<>"",OFFSET(Data!#REF!,View!$B$25,$DS19),"") ->  | T19: =IF(T$5<>"",OFFSET(Data!#REF!,View!$B$25,$DS19),"") ->  | U19: =IF(U$5<>"",OFFSET(Data!#REF!,View!$B$25,$DS19),"") ->  | V19: =IF(V$5<>"",OFFSET(Data!#REF!,View!$B$25,$DS19),"") ->  | W19: =IF(W$5<>"",OFFSET(Data!#REF!,View!$B$25,$DS19),"") ->  | X19: =IF(X$5<>"",OFFSET(Data!#REF!,View!$B$25,$DS19),"") ->  | Y19: =IF(Y$5<>"",OFFSET(Data!#REF!,View!$B$25,$DS19),"") ->  | Z19: =IF(Z$5<>"",OFFSET(Data!#REF!,View!$B$25,$DS19),"") ->  | AA19: =IF(AA$5<>"",OFFSET(Data!#REF!,View!$B$25,$DS19),"") ->  | AB19: =IF(AB$5<>"",OFFSET(Data!#REF!,View!$B$25,$DS19),"") ->  | AC19: =IF(AC$5<>"",OFFSET(Data!#REF!,View!$B$25,$DS19),"") ->  | AD19: =IF(AD$5<>"",OFFSET(Data!#REF!,View!$B$25,$DS19),"") ->  | AE19: =IF(AE$5<>"",OFFSET(Data!#REF!,View!$B$25,$DS19),"") ->  | AF19: =IF(AF$5<>"",OFFSET(Data!#REF!,View!$B$25,$DS19),"") ->  | AG19: =IF(AG$5<>"",OFFSET(Data!#REF!,View!$B$25,$DS19),"") ->  | AH19: =IF(AH$5<>"",OFFSET(Data!#REF!,View!$B$25,$DS19),"") ->  | AI19: =IF(AI$5<>"",OFFSET(Data!#REF!,View!$B$25,$DS19),"") ->  | AJ19: =IF(AJ$5<>"",OFFSET(Data!#REF!,View!$B$25,$DS19),"") ->  | AK19: =IF(AK$5<>"",OFFSET(Data!#REF!,View!$B$25,$DS19),"") ->  | AL19: =IF(AL$5<>"",OFFSET(Data!#REF!,View!$B$25,$DS19),"") ->  | AM19: =IF(AM$5<>"",OFFSET(Data!#REF!,View!$B$25,$DS19),"") ->  | AN19: =IF(AN$5<>"",OFFSET(Data!#REF!,View!$B$25,$DS19),"") ->  | AO19: =IF(AO$5<>"",OFFSET(Data!#REF!,View!$B$25,$DS19),"") ->  | AP19: =IF(AP$5<>"",OFFSET(Data!#REF!,View!$B$25,$DS19),"") ->  | AQ19: =IF(AQ$5<>"",OFFSET(Data!#REF!,View!$B$25,$DS19),"") ->  | AR19: =IF(AR$5<>"",OFFSET(Data!#REF!,View!$B$25,$DS19),"") ->  | AS19: =IF(AS$5<>"",OFFSET(Data!#REF!,View!$B$25,$DS19),"") ->  | AT19: =IF(AT$5<>"",OFFSET(Data!#REF!,View!$B$25,$DS19),"") ->  | AU19: =IF(AU$5<>"",OFFSET(Data!#REF!,View!$B$25,$DS19),"") ->  | AV19: =IF(AV$5<>"",OFFSET(Data!#REF!,View!$B$25,$DS19),"") ->  | AW19: =IF(AW$5<>"",OFFSET(Data!#REF!,View!$B$25,$DS19),"") ->  | AX19: =IF(AX$5<>"",OFFSET(Data!#REF!,View!$B$25,$DS19),"") ->  | AY19: =IF(AY$5<>"",OFFSET(Data!#REF!,View!$B$25,$DS19),"") ->  | AZ19: =IF(AZ$5<>"",OFFSET(Data!#REF!,View!$B$25,$DS19),"") ->  | BA19: =IF(BA$5<>"",OFFSET(Data!#REF!,View!$B$25,$DS19),"") ->  | BB19: =IF(BB$5<>"",OFFSET(Data!#REF!,View!$B$25,$DS19),"") ->  | BC19: =IF(BC$5<>"",OFFSET(Data!#REF!,View!$B$25,$DS19),"") ->  | BD19: =IF(BD$5<>"",OFFSET(Data!#REF!,View!$B$25,$DS19),"") ->  | BE19: =IF(BE$5<>"",OFFSET(Data!#REF!,View!$B$25,$DS19),"") ->  | BF19: =IF(BF$5<>"",OFFSET(Data!#REF!,View!$B$25,$DS19),"") ->  | BG19: =IF(BG$5<>"",OFFSET(Data!#REF!,View!$B$25,$DS19),"") ->  | BH19: =IF(BH$5<>"",OFFSET(Data!#REF!,View!$B$25,$DS19),"") ->  | BI19: =IF(BI$5<>"",OFFSET(Data!#REF!,View!$B$25,$DS19),"") ->  | BJ19: =IF(BJ$5<>"",OFFSET(Data!#REF!,View!$B$25,$DS19),"") ->  | BK19: =IF(BK$5<>"",OFFSET(Data!#REF!,View!$B$25,$DS19),"") ->  | BL19: =IF(BL$5<>"",OFFSET(Data!#REF!,View!$B$25,$DS19),"") ->  | BM19: =IF(BM$5<>"",OFFSET(Data!#REF!,View!$B$25,$DS19),"") ->  | BN19: =IF(BN$5<>"",OFFSET(Data!#REF!,View!$B$25,$DS19),"") ->  | BO19: =IF(BO$5<>"",OFFSET(Data!#REF!,View!$B$25,$DS19),"") ->  | BP19: =IF(BP$5<>"",OFFSET(Data!#REF!,View!$B$25,$DS19),"") ->  | BQ19: =IF(BQ$5<>"",OFFSET(Data!#REF!,View!$B$25,$DS19),"") ->  | BR19: =IF(BR$5<>"",OFFSET(Data!#REF!,View!$B$25,$DS19),"") ->  | BS19: =IF(BS$5<>"",OFFSET(Data!#REF!,View!$B$25,$DS19),"") ->  | BT19: =IF(BT$5<>"",OFFSET(Data!#REF!,View!$B$25,$DS19),"") ->  | BU19: =IF(BU$5<>"",OFFSET(Data!#REF!,View!$B$25,$DS19),"") ->  | BV19: =IF(BV$5<>"",OFFSET(Data!#REF!,View!$B$25,$DS19),"") ->  | BW19: =IF(BW$5<>"",OFFSET(Data!#REF!,View!$B$25,$DS19),"") ->  | BX19: =IF(BX$5<>"",OFFSET(Data!#REF!,View!$B$25,$DS19),"") ->  | BY19: =IF(BY$5<>"",OFFSET(Data!#REF!,View!$B$25,$DS19),"") ->  | BZ19: =IF(BZ$5<>"",OFFSET(Data!#REF!,View!$B$25,$DS19),"") ->  | CA19: =IF(CA$5<>"",OFFSET(Data!#REF!,View!$B$25,$DS19),"") ->  | CB19: =IF(CB$5<>"",OFFSET(Data!#REF!,View!$B$25,$DS19),"") ->  | CC19: =IF(CC$5<>"",OFFSET(Data!#REF!,View!$B$25,$DS19),"") ->  | CD19: =IF(CD$5<>"",OFFSET(Data!#REF!,View!$B$25,$DS19),"") ->  | CE19: =IF(CE$5<>"",OFFSET(Data!#REF!,View!$B$25,$DS19),"") ->  | CF19: =IF(CF$5<>"",OFFSET(Data!#REF!,View!$B$25,$DS19),"") ->  | CG19: =IF(CG$5<>"",OFFSET(Data!#REF!,View!$B$25,$DS19),"") ->  | CH19: =IF(CH$5<>"",OFFSET(Data!#REF!,View!$B$25,$DS19),"") ->  | CI19: =IF(CI$5<>"",OFFSET(Data!#REF!,View!$B$25,$DS19),"") ->  | CJ19: =IF(CJ$5<>"",OFFSET(Data!#REF!,View!$B$25,$DS19),"") ->  | CK19: =IF(CK$5<>"",OFFSET(Data!#REF!,View!$B$25,$DS19),"") ->  | CL19: =IF(CL$5<>"",OFFSET(Data!#REF!,View!$B$25,$DS19),"") ->  | CM19: =IF(CM$5<>"",OFFSET(Data!#REF!,View!$B$25,$DS19),"") ->  | CN19: =IF(CN$5<>"",OFFSET(Data!#REF!,View!$B$25,$DS19),"") ->  | CO19: =IF(CO$5<>"",OFFSET(Data!#REF!,View!$B$25,$DS19),"") ->  | CP19: =IF(CP$5<>"",OFFSET(Data!#REF!,View!$B$25,$DS19),"") ->  | CQ19: =IF(CQ$5<>"",OFFSET(Data!#REF!,View!$B$25,$DS19),"") ->  | CR19: =IF(CR$5<>"",OFFSET(Data!#REF!,View!$B$25,$DS19),"") ->  | CS19: =IF(CS$5<>"",OFFSET(Data!#REF!,View!$B$25,$DS19),"") ->  | CT19: =IF(CT$5<>"",OFFSET(Data!#REF!,View!$B$25,$DS19),"") ->  | CU19: =IF(CU$5<>"",OFFSET(Data!#REF!,View!$B$25,$DS19),"") ->  | CV19: =IF(CV$5<>"",OFFSET(Data!#REF!,View!$B$25,$DS19),"") ->  | CW19: =IF(CW$5<>"",OFFSET(Data!#REF!,View!$B$25,$DS19),"") ->  | CX19: =IF(CX$5<>"",OFFSET(Data!#REF!,View!$B$25,$DS19),"") ->  | CY19: =IF(CY$5<>"",OFFSET(Data!#REF!,View!$B$25,$DS19),"") ->  | CZ19: =IF(CZ$5<>"",OFFSET(Data!#REF!,View!$B$25,$DS19),"") ->  | DA19: =IF(DA$5<>"",OFFSET(Data!#REF!,View!$B$25,$DS19),"") ->  | DB19: =IF(DB$5<>"",OFFSET(Data!#REF!,View!$B$25,$DS19),"") ->  | DC19: =IF(DC$5<>"",OFFSET(Data!#REF!,View!$B$25,$DS19),"") ->  | DD19: =IF(DD$5<>"",OFFSET(Data!#REF!,View!$B$25,$DS19),"") ->  | DE19: =IF(DE$5<>"",OFFSET(Data!#REF!,View!$B$25,$DS19),"") ->  | DF19: =IF(DF$5<>"",OFFSET(Data!#REF!,View!$B$25,$DS19),"") ->  | DG19: =IF(DG$5<>"",OFFSET(Data!#REF!,View!$B$25,$DS19),"") ->  | DH19: =IF(DH$5<>"",OFFSET(Data!#REF!,View!$B$25,$DS19),"") ->  | DI19: =IF(DI$5<>"",OFFSET(Data!#REF!,View!$B$25,$DS19),"") ->  | DJ19: =IF(DJ$5<>"",OFFSET(Data!#REF!,View!$B$25,$DS19),"") ->  | DK19: =IF(DK$5<>"",OFFSET(Data!#REF!,View!$B$25,$DS19),"") ->  | DL19: =IF(DL$5<>"",OFFSET(Data!#REF!,View!$B$25,$DS19),"") ->  | DM19: =IF(DM$5<>"",OFFSET(Data!#REF!,View!$B$25,$DS19),"") ->  | DN19: =IF(DN$5<>"",OFFSET(Data!#REF!,View!$B$25,$DS19),"") ->  | DO19: =IF(DO$5<>"",OFFSET(Data!#REF!,View!$B$25,$DS19),"") ->  | DP19: =IF(DP$5<>"",OFFSET(Data!#REF!,View!$B$25,$DS19),"") ->  | DQ19: =IF(DQ$5<>"",OFFSET(Data!#REF!,View!$B$25,$DS19),"") ->  | DR19: =IF(DR$5<>"",OFFSET(Data!#REF!,View!$B$25,$DS19),"") ->  | DS19: =($C$41+1)*3 -> 
A20: LCimax | B20: =IF(B$5<>"",OFFSET(Data!#REF!,View!$B$25,$DS20),"") ->  | C20: =IF(C$5<>"",OFFSET(Data!#REF!,View!$B$25,$DS20),"") ->  | D20: =IF(D$5<>"",OFFSET(Data!#REF!,View!$B$25,$DS20),"") ->  | E20: =IF(E$5<>"",OFFSET(Data!#REF!,View!$B$25,$DS20),"") ->  | F20: =IF(F$5<>"",OFFSET(Data!#REF!,View!$B$25,$DS20),"") ->  | G20: =IF(G$5<>"",OFFSET(Data!#REF!,View!$B$25,$DS20),"") ->  | H20: =IF(H$5<>"",OFFSET(Data!#REF!,View!$B$25,$DS20),"") ->  | I20: =IF(I$5<>"",OFFSET(Data!#REF!,View!$B$25,$DS20),"") ->  | J20: =IF(J$5<>"",OFFSET(Data!#REF!,View!$B$25,$DS20),"") ->  | K20: =IF(K$5<>"",OFFSET(Data!#REF!,View!$B$25,$DS20),"") ->  | L20: =IF(L$5<>"",OFFSET(Data!#REF!,View!$B$25,$DS20),"") ->  | M20: =IF(M$5<>"",OFFSET(Data!#REF!,View!$B$25,$DS20),"") ->  | N20: =IF(N$5<>"",OFFSET(Data!#REF!,View!$B$25,$DS20),"") ->  | O20: =IF(O$5<>"",OFFSET(Data!#REF!,View!$B$25,$DS20),"") ->  | P20: =IF(P$5<>"",OFFSET(Data!#REF!,View!$B$25,$DS20),"") ->  | Q20: =IF(Q$5<>"",OFFSET(Data!#REF!,View!$B$25,$DS20),"") ->  | R20: =IF(R$5<>"",OFFSET(Data!#REF!,View!$B$25,$DS20),"") ->  | S20: =IF(S$5<>"",OFFSET(Data!#REF!,View!$B$25,$DS20),"") ->  | T20: =IF(T$5<>"",OFFSET(Data!#REF!,View!$B$25,$DS20),"") ->  | U20: =IF(U$5<>"",OFFSET(Data!#REF!,View!$B$25,$DS20),"") ->  | V20: =IF(V$5<>"",OFFSET(Data!#REF!,View!$B$25,$DS20),"") ->  | W20: =IF(W$5<>"",OFFSET(Data!#REF!,View!$B$25,$DS20),"") ->  | X20: =IF(X$5<>"",OFFSET(Data!#REF!,View!$B$25,$DS20),"") ->  | Y20: =IF(Y$5<>"",OFFSET(Data!#REF!,View!$B$25,$DS20),"") ->  | Z20: =IF(Z$5<>"",OFFSET(Data!#REF!,View!$B$25,$DS20),"") ->  | AA20: =IF(AA$5<>"",OFFSET(Data!#REF!,View!$B$25,$DS20),"") ->  | AB20: =IF(AB$5<>"",OFFSET(Data!#REF!,View!$B$25,$DS20),"") ->  | AC20: =IF(AC$5<>"",OFFSET(Data!#REF!,View!$B$25,$DS20),"") ->  | AD20: =IF(AD$5<>"",OFFSET(Data!#REF!,View!$B$25,$DS20),"") ->  | AE20: =IF(AE$5<>"",OFFSET(Data!#REF!,View!$B$25,$DS20),"") ->  | AF20: =IF(AF$5<>"",OFFSET(Data!#REF!,View!$B$25,$DS20),"") ->  | AG20: =IF(AG$5<>"",OFFSET(Data!#REF!,View!$B$25,$DS20),"") ->  | AH20: =IF(AH$5<>"",OFFSET(Data!#REF!,View!$B$25,$DS20),"") ->  | AI20: =IF(AI$5<>"",OFFSET(Data!#REF!,View!$B$25,$DS20),"") ->  | AJ20: =IF(AJ$5<>"",OFFSET(Data!#REF!,View!$B$25,$DS20),"") ->  | AK20: =IF(AK$5<>"",OFFSET(Data!#REF!,View!$B$25,$DS20),"") ->  | AL20: =IF(AL$5<>"",OFFSET(Data!#REF!,View!$B$25,$DS20),"") ->  | AM20: =IF(AM$5<>"",OFFSET(Data!#REF!,View!$B$25,$DS20),"") ->  | AN20: =IF(AN$5<>"",OFFSET(Data!#REF!,View!$B$25,$DS20),"") ->  | AO20: =IF(AO$5<>"",OFFSET(Data!#REF!,View!$B$25,$DS20),"") ->  | AP20: =IF(AP$5<>"",OFFSET(Data!#REF!,View!$B$25,$DS20),"") ->  | AQ20: =IF(AQ$5<>"",OFFSET(Data!#REF!,View!$B$25,$DS20),"") ->  | AR20: =IF(AR$5<>"",OFFSET(Data!#REF!,View!$B$25,$DS20),"") ->  | AS20: =IF(AS$5<>"",OFFSET(Data!#REF!,View!$B$25,$DS20),"") ->  | AT20: =IF(AT$5<>"",OFFSET(Data!#REF!,View!$B$25,$DS20),"") ->  | AU20: =IF(AU$5<>"",OFFSET(Data!#REF!,View!$B$25,$DS20),"") ->  | AV20: =IF(AV$5<>"",OFFSET(Data!#REF!,View!$B$25,$DS20),"") ->  | AW20: =IF(AW$5<>"",OFFSET(Data!#REF!,View!$B$25,$DS20),"") ->  | AX20: =IF(AX$5<>"",OFFSET(Data!#REF!,View!$B$25,$DS20),"") ->  | AY20: =IF(AY$5<>"",OFFSET(Data!#REF!,View!$B$25,$DS20),"") ->  | AZ20: =IF(AZ$5<>"",OFFSET(Data!#REF!,View!$B$25,$DS20),"") ->  | BA20: =IF(BA$5<>"",OFFSET(Data!#REF!,View!$B$25,$DS20),"") ->  | BB20: =IF(BB$5<>"",OFFSET(Data!#REF!,View!$B$25,$DS20),"") ->  | BC20: =IF(BC$5<>"",OFFSET(Data!#REF!,View!$B$25,$DS20),"") ->  | BD20: =IF(BD$5<>"",OFFSET(Data!#REF!,View!$B$25,$DS20),"") ->  | BE20: =IF(BE$5<>"",OFFSET(Data!#REF!,View!$B$25,$DS20),"") ->  | BF20: =IF(BF$5<>"",OFFSET(Data!#REF!,View!$B$25,$DS20),"") ->  | BG20: =IF(BG$5<>"",OFFSET(Data!#REF!,View!$B$25,$DS20),"") ->  | BH20: =IF(BH$5<>"",OFFSET(Data!#REF!,View!$B$25,$DS20),"") ->  | BI20: =IF(BI$5<>"",OFFSET(Data!#REF!,View!$B$25,$DS20),"") ->  | BJ20: =IF(BJ$5<>"",OFFSET(Data!#REF!,View!$B$25,$DS20),"") ->  | BK20: =IF(BK$5<>"",OFFSET(Data!#REF!,View!$B$25,$DS20),"") ->  | BL20: =IF(BL$5<>"",OFFSET(Data!#REF!,View!$B$25,$DS20),"") ->  | BM20: =IF(BM$5<>"",OFFSET(Data!#REF!,View!$B$25,$DS20),"") ->  | BN20: =IF(BN$5<>"",OFFSET(Data!#REF!,View!$B$25,$DS20),"") ->  | BO20: =IF(BO$5<>"",OFFSET(Data!#REF!,View!$B$25,$DS20),"") ->  | BP20: =IF(BP$5<>"",OFFSET(Data!#REF!,View!$B$25,$DS20),"") ->  | BQ20: =IF(BQ$5<>"",OFFSET(Data!#REF!,View!$B$25,$DS20),"") ->  | BR20: =IF(BR$5<>"",OFFSET(Data!#REF!,View!$B$25,$DS20),"") ->  | BS20: =IF(BS$5<>"",OFFSET(Data!#REF!,View!$B$25,$DS20),"") ->  | BT20: =IF(BT$5<>"",OFFSET(Data!#REF!,View!$B$25,$DS20),"") ->  | BU20: =IF(BU$5<>"",OFFSET(Data!#REF!,View!$B$25,$DS20),"") ->  | BV20: =IF(BV$5<>"",OFFSET(Data!#REF!,View!$B$25,$DS20),"") ->  | BW20: =IF(BW$5<>"",OFFSET(Data!#REF!,View!$B$25,$DS20),"") ->  | BX20: =IF(BX$5<>"",OFFSET(Data!#REF!,View!$B$25,$DS20),"") ->  | BY20: =IF(BY$5<>"",OFFSET(Data!#REF!,View!$B$25,$DS20),"") ->  | BZ20: =IF(BZ$5<>"",OFFSET(Data!#REF!,View!$B$25,$DS20),"") ->  | CA20: =IF(CA$5<>"",OFFSET(Data!#REF!,View!$B$25,$DS20),"") ->  | CB20: =IF(CB$5<>"",OFFSET(Data!#REF!,View!$B$25,$DS20),"") ->  | CC20: =IF(CC$5<>"",OFFSET(Data!#REF!,View!$B$25,$DS20),"") ->  | CD20: =IF(CD$5<>"",OFFSET(Data!#REF!,View!$B$25,$DS20),"") ->  | CE20: =IF(CE$5<>"",OFFSET(Data!#REF!,View!$B$25,$DS20),"") ->  | CF20: =IF(CF$5<>"",OFFSET(Data!#REF!,View!$B$25,$DS20),"") ->  | CG20: =IF(CG$5<>"",OFFSET(Data!#REF!,View!$B$25,$DS20),"") ->  | CH20: =IF(CH$5<>"",OFFSET(Data!#REF!,View!$B$25,$DS20),"") ->  | CI20: =IF(CI$5<>"",OFFSET(Data!#REF!,View!$B$25,$DS20),"") ->  | CJ20: =IF(CJ$5<>"",OFFSET(Data!#REF!,View!$B$25,$DS20),"") ->  | CK20: =IF(CK$5<>"",OFFSET(Data!#REF!,View!$B$25,$DS20),"") ->  | CL20: =IF(CL$5<>"",OFFSET(Data!#REF!,View!$B$25,$DS20),"") ->  | CM20: =IF(CM$5<>"",OFFSET(Data!#REF!,View!$B$25,$DS20),"") ->  | CN20: =IF(CN$5<>"",OFFSET(Data!#REF!,View!$B$25,$DS20),"") ->  | CO20: =IF(CO$5<>"",OFFSET(Data!#REF!,View!$B$25,$DS20),"") ->  | CP20: =IF(CP$5<>"",OFFSET(Data!#REF!,View!$B$25,$DS20),"") ->  | CQ20: =IF(CQ$5<>"",OFFSET(Data!#REF!,View!$B$25,$DS20),"") ->  | CR20: =IF(CR$5<>"",OFFSET(Data!#REF!,View!$B$25,$DS20),"") ->  | CS20: =IF(CS$5<>"",OFFSET(Data!#REF!,View!$B$25,$DS20),"") ->  | CT20: =IF(CT$5<>"",OFFSET(Data!#REF!,View!$B$25,$DS20),"") ->  | CU20: =IF(CU$5<>"",OFFSET(Data!#REF!,View!$B$25,$DS20),"") ->  | CV20: =IF(CV$5<>"",OFFSET(Data!#REF!,View!$B$25,$DS20),"") ->  | CW20: =IF(CW$5<>"",OFFSET(Data!#REF!,View!$B$25,$DS20),"") ->  | CX20: =IF(CX$5<>"",OFFSET(Data!#REF!,View!$B$25,$DS20),"") ->  | CY20: =IF(CY$5<>"",OFFSET(Data!#REF!,View!$B$25,$DS20),"") ->  | CZ20: =IF(CZ$5<>"",OFFSET(Data!#REF!,View!$B$25,$DS20),"") ->  | DA20: =IF(DA$5<>"",OFFSET(Data!#REF!,View!$B$25,$DS20),"") ->  | DB20: =IF(DB$5<>"",OFFSET(Data!#REF!,View!$B$25,$DS20),"") ->  | DC20: =IF(DC$5<>"",OFFSET(Data!#REF!,View!$B$25,$DS20),"") ->  | DD20: =IF(DD$5<>"",OFFSET(Data!#REF!,View!$B$25,$DS20),"") ->  | DE20: =IF(DE$5<>"",OFFSET(Data!#REF!,View!$B$25,$DS20),"") ->  | DF20: =IF(DF$5<>"",OFFSET(Data!#REF!,View!$B$25,$DS20),"") ->  | DG20: =IF(DG$5<>"",OFFSET(Data!#REF!,View!$B$25,$DS20),"") ->  | DH20: =IF(DH$5<>"",OFFSET(Data!#REF!,View!$B$25,$DS20),"") ->  | DI20: =IF(DI$5<>"",OFFSET(Data!#REF!,View!$B$25,$DS20),"") ->  | DJ20: =IF(DJ$5<>"",OFFSET(Data!#REF!,View!$B$25,$DS20),"") ->  | DK20: =IF(DK$5<>"",OFFSET(Data!#REF!,View!$B$25,$DS20),"") ->  | DL20: =IF(DL$5<>"",OFFSET(Data!#REF!,View!$B$25,$DS20),"") ->  | DM20: =IF(DM$5<>"",OFFSET(Data!#REF!,View!$B$25,$DS20),"") ->  | DN20: =IF(DN$5<>"",OFFSET(Data!#REF!,View!$B$25,$DS20),"") ->  | DO20: =IF(DO$5<>"",OFFSET(Data!#REF!,View!$B$25,$DS20),"") ->  | DP20: =IF(DP$5<>"",OFFSET(Data!#REF!,View!$B$25,$DS20),"") ->  | DQ20: =IF(DQ$5<>"",OFFSET(Data!#REF!,View!$B$25,$DS20),"") ->  | DR20: =IF(DR$5<>"",OFFSET(Data!#REF!,View!$B$25,$DS20),"") ->  | DS20: =($C$41+1)*7 -> 
A24: Filename | B24: =OFFSET(Data!#REF!,View!$B$25,0)&"" -> 
A25: Index | B25: 1
A26: Note | B26: =OFFSET(Notes!B4,View!$B$25,0)&"" -> 
B41: 1 | C41: =OFFSET(Data!#REF!,View!$B$25,0) ->  | D41: =OFFSET(Data!#REF!,View!$B$25,0) ->  | E41: =IF(D41>0,CEILING(LOG(D41*2/3)/LOG(2),1),0) -> 
B42: =B5 -> overall | I42: 47.3 | J42: =J5 ->  | AP42: =AP5 ->  | BV42: =BV5 ->  | DB42: =DB5 -> 
A43: =OFFSET(A5,$B$41,0) -> LZeq | AG43: =OFFSET(AG5,$B$41,0) ->  | BM43: =OFFSET(BM5,$B$41,0) ->  | CS43: =OFFSET(CS5,$B$41,0) -> 
C45: 31.5 | D45: 63 | E45: 125 | F45: 250 | G45: 500 | H45: 1000 | I45: 2000 | J45: 4000 | K45: 8000 | L45: 16000
C46: 25 | D46: 31.5 | E46: 40 | F46: 50 | G46: 63 | H46: 80 | I46: 100 | J46: 125 | K46: 160 | L46: 200 | M46: 250 | N46: 315 | O46: 400 | P46: 500 | Q46: 625 | R46: 800 | S46: 1000 | T46: 1250 | U46: 1600 | V46: 2000 | W46: 2500 | X46: 3150 | Y46: 4000 | Z46: 5000 | AA46: 6250 | AB46: 8000 | AC46: 10000 | AD46: 12500 | AE46: 16000 | AF46: 20000
C47: 23.7 | D47: 26.6 | E47: 29.9 | F47: 33.5 | G47: 37.6 | H47: 42.2 | I47: 47.3 | J47: 53 | K47: 60 | L47: 67 | M47: 75 | N47: 84 | O47: 94 | P47: 106 | Q47: 119 | R47: 133 | S47: 150 | T47: 168 | U47: 188 | V47: 211 | W47: =C47*10 -> 237 | X47: 266 | Y47: 299 | Z47: 335 | AA47: 376 | AB47: 422 | AC47: 473 | AD47: 530 | AE47: 600 | AF47: 670 | AG47: 750 | AH47: 840 | AI47: 940 | AJ47: 1060 | AK47: 1190 | AL47: 1330 | AM47: 1500 | AN47: 1680 | AO47: 1880 | AP47: 2110 | AQ47: 2370 | AR47: 2660 | AS47: 2990 | AT47: 3350 | AU47: 3760 | AV47: 4220 | AW47: =AC47*10 -> 4730 | AX47: =AD47*10 -> 5300 | AY47: =AE47*10 -> 6000 | AZ47: =AF47*10 -> 6700 | BA47: =AG47*10 -> 7500 | BB47: =AH47*10 -> 8400 | BC47: =AI47*10 -> 9400 | BD47: =AJ47*10 -> 10600 | BE47: =AK47*10 -> 11900 | BF47: =AL47*10 -> 13300 | BG47: =AM47*10 -> 15000 | BH47: =AN47*10 -> 16800 | BI47: =AO47*10 -> 18800 | BJ47: =AP47*10 -> 21100
C48: 23 | D48: 24.4 | E48: 25.9 | F48: 27.4 | G48: 29 | H48: 30.7 | I48: 32.5 | J48: 34.5 | K48: 36.5 | L48: 38.7 | M48: 41 | N48: 43.4 | O48: 46 | P48: 48.7 | Q48: 52 | R48: 55 | S48: 58 | T48: 61 | U48: 65 | V48: 69 | W48: 73 | X48: 77 | Y48: 82 | Z48: 87 | AA48: 92 | AB48: 97 | AC48: 103 | AD48: 109 | AE48: 115 | AF48: 122 | AG48: 130 | AH48: 137 | AI48: 145 | AJ48: 154 | AK48: 163 | AL48: 173 | AM48: 183 | AN48: 194 | AO48: 205 | AP48: 218 | AQ48: 230 | AR48: 244 | AS48: 259 | AT48: 274 | AU48: 290 | AV48: 307 | AW48: 325 | AX48: 345 | AY48: 365 | AZ48: 387 | BA48: 410 | BB48: 434 | BC48: 460 | BD48: 487 | BE48: 520 | BF48: 550 | BG48: 580 | BH48: 610 | BI48: 650 | BJ48: 690 | BK48: 730 | BL48: 770 | BM48: 820 | BN48: 870 | BO48: 920 | BP48: 970 | BQ48: 1030 | BR48: 1090 | BS48: 1150 | BT48: 1220 | BU48: 1300 | BV48: 1370 | BW48: 1450 | BX48: 1540 | BY48: 1630 | BZ48: 1730 | CA48: 1830 | CB48: 1940 | CC48: 2050 | CD48: 2180 | CE48: 2300 | CF48: 2440 | CG48: 2590 | CH48: 2740 | CI48: 2900 | CJ48: 3070 | CK48: 3250 | CL48: 3450 | CM48: 3650 | CN48: 3870 | CO48: 4100 | CP48: 4340 | CQ48: 4600 | CR48: 4870 | CS48: 5200 | CT48: 5500 | CU48: 5800 | CV48: 6100 | CW48: 6500 | CX48: 6900 | CY48: 7300 | CZ48: 7700 | DA48: 8200 | DB48: 8700 | DC48: 9200 | DD48: 9700 | DE48: 10300 | DF48: 10900 | DG48: 11500 | DH48: 12200 | DI48: 13000 | DJ48: 13700 | DK48: 14500 | DL48: 15400 | DM48: 16300 | DN48: 17300 | DO48: 18300 | DP48: 19400 | DQ48: 20500 | DR48: 21800

Sheet Data
A1: 1/3 octave | B1: date | C1: time | D1: duration | E1: bandtype | F1: bandcount | G1: LAeq | H1: LAeq_25 | I1: LAeq_31.5 | J1: LAeq_40 | K1: LAeq_50 | L1: LAeq_63 | M1: LAeq_80 | N1: LAeq_100 | O1: LAeq_125 | P1: LAeq_160 | Q1: LAeq_200 | R1: LAeq_250 | S1: LAeq_315 | T1: LAeq_400 | U1: LAeq_500 | V1: LAeq_625 | W1: LAeq_800 | X1: LAeq_1000 | Y1: LAeq_1250 | Z1: LAeq_1600 | AA1: LAeq_2000 | AB1: LAeq_2500 | AC1: LAeq_3150 | AD1: LAeq_4000 | AE1: LAeq_5000 | AF1: LAeq_6250 | AG1: LAeq_8000 | AH1: LAeq_10000 | AI1: LAeq_12500 | AJ1: LAeq_16000 | AK1: LAeq_20000 | AL1: LAfmax | AM1: LAfmax_25 | AN1: LAfmax_31.5 | AO1: LAfmax_40 | AP1: LAfmax_50 | AQ1: LAfmax_63 | AR1: LAfmax_80 | AS1: LAfmax_100 | AT1: LAfmax_125 | AU1: LAfmax_160 | AV1: LAfmax_200 | AW1: LAfmax_250 | AX1: LAfmax_315 | AY1: LAfmax_400 | AZ1: LAfmax_500 | BA1: LAfmax_625 | BB1: LAfmax_800 | BC1: LAfmax_1000 | BD1: LAfmax_1250 | BE1: LAfmax_1600 | BF1: LAfmax_2000 | BG1: LAfmax_2500 | BH1: LAfmax_3150 | BI1: LAfmax_4000 | BJ1: LAfmax_5000 | BK1: LAfmax_6250 | BL1: LAfmax_8000 | BM1: LAfmax_10000 | BN1: LAfmax_12500 | BO1: LAfmax_16000 | BP1: LAfmax_20000 | BQ1: LAsmax | BR1: LAsmax_25 | BS1: LAsmax_31.5 | BT1: LAsmax_40 | BU1: LAsmax_50 | BV1: LAsmax_63 | BW1: LAsmax_80 | BX1: LAsmax_100 | BY1: LAsmax_125 | BZ1: LAsmax_160 | CA1: LAsmax_200 | CB1: LAsmax_250 | CC1: LAsmax_315 | CD1: LAsmax_400 | CE1: LAsmax_500 | CF1: LAsmax_625 | CG1: LAsmax_800 | CH1: LAsmax_1000 | CI1: LAsmax_1250 | CJ1: LAsmax_1600 | CK1: LAsmax_2000 | CL1: LAsmax_2500 | CM1: LAsmax_3150 | CN1: LAsmax_4000 | CO1: LAsmax_5000 | CP1: LAsmax_6250 | CQ1: LAsmax_8000 | CR1: LAsmax_10000 | CS1: LAsmax_12500 | CT1: LAsmax_16000 | CU1: LAsmax_20000 | CV1: LAimax | CW1: LAimax_25 | CX1: LAimax_31.5 | CY1: LAimax_40 | CZ1: LAimax_50 | DA1: LAimax_63 | DB1: LAimax_80 | DC1: LAimax_100 | DD1: LAimax_125 | DE1: LAimax_160 | DF1: LAimax_200 | DG1: LAimax_250 | DH1: LAimax_315 | DI1: LAimax_400 | DJ1: LAimax_500 | DK1: LAimax_625 | DL1: LAimax_800 | DM1: LAimax_1000 | DN1: LAimax_1250 | DO1: LAimax_1600 | DP1: LAimax_2000 | DQ1: LAimax_2500 | DR1: LAimax_3150 | DS1: LAimax_4000 | DT1: LAimax_5000 | DU1: LAimax_6250 | DV1: LAimax_8000 | DW1: LAimax_10000 | DX1: LAimax_12500 | DY1: LAimax_16000 | DZ1: LAimax_20000 | EA1: LCeq | EB1: LCeq_25 | EC1: LCeq_31.5 | ED1: LCeq_40 | EE1: LCeq_50 | EF1: LCeq_63 | EG1: LCeq_80 | EH1: LCeq_100 | EI1: LCeq_125 | EJ1: LCeq_160 | EK1: LCeq_200 | EL1: LCeq_250 | EM1: LCeq_315 | EN1: LCeq_400 | EO1: LCeq_500 | EP1: LCeq_625 | EQ1: LCeq_800 | ER1: LCeq_1000 | ES1: LCeq_1250 | ET1: LCeq_1600 | EU1: LCeq_2000 | EV1: LCeq_2500 | EW1: LCeq_3150 | EX1: LCeq_4000 | EY1: LCeq_5000 | EZ1: LCeq_6250 | FA1: LCeq_8000 | FB1: LCeq_10000 | FC1: LCeq_12500 | FD1: LCeq_16000 | FE1: LCeq_20000 | FF1: LCfmax | FG1: LCfmax_25 | FH1: LCfmax_31.5 | FI1: LCfmax_40 | FJ1: LCfmax_50 | FK1: LCfmax_63 | FL1: LCfmax_80 | FM1: LCfmax_100 | FN1: LCfmax_125 | FO1: LCfmax_160 | FP1: LCfmax_200 | FQ1: LCfmax_250 | FR1: LCfmax_315 | FS1: LCfmax_400 | FT1: LCfmax_500 | FU1: LCfmax_625 | FV1: LCfmax_800 | FW1: LCfmax_1000 | FX1: LCfmax_1250 | FY1: LCfmax_1600 | FZ1: LCfmax_2000 | GA1: LCfmax_2500 | GB1: LCfmax_3150 | GC1: LCfmax_4000 | GD1: LCfmax_5000 | GE1: LCfmax_6250 | GF1: LCfmax_8000 | GG1: LCfmax_10000 | GH1: LCfmax_12500 | GI1: LCfmax_16000 | GJ1: LCfmax_20000 | GK1: LCsmax | GL1: LCsmax_25 | GM1: LCsmax_31.5 | GN1: LCsmax_40 | GO1: LCsmax_50 | GP1: LCsmax_63 | GQ1: LCsmax_80 | GR1: LCsmax_100 | GS1: LCsmax_125 | GT1: LCsmax_160 | GU1: LCsmax_200 | GV1: LCsmax_250 | GW1: LCsmax_315 | GX1: LCsmax_400 | GY1: LCsmax_500 | GZ1: LCsmax_625 | HA1: LCsmax_800 | HB1: LCsmax_1000 | HC1: LCsmax_1250 | HD1: LCsmax_1600 | HE1: LCsmax_2000 | HF1: LCsmax_2500 | HG1: LCsmax_3150 | HH1: LCsmax_4000 | HI1: LCsmax_5000 | HJ1: LCsmax_6250 | HK1: LCsmax_8000 | HL1: LCsmax_10000 | HM1: LCsmax_12500 | HN1: LCsmax_16000 | HO1: LCsmax_20000 | HP1: LCimax | HQ1: LCimax_25 | HR1: LCimax_31.5 | HS1: LCimax_40 | HT1: LCimax_50 | HU1: LCimax_63 | HV1: LCimax_80 | HW1: LCimax_100 | HX1: LCimax_125 | HY1: LCimax_160 | HZ1: LCimax_200 | IA1: LCimax_250 | IB1: LCimax_315 | IC1: LCimax_400 | ID1: LCimax_500 | IE1: LCimax_625 | IF1: LCimax_800 | IG1: LCimax_1000 | IH1: LCimax_1250 | II1: LCimax_1600 | IJ1: LCimax_2000 | IK1: LCimax_2500 | IL1: LCimax_3150 | IM1: LCimax_4000 | IN1: LCimax_5000 | IO1: LCimax_6250 | IP1: LCimax_8000 | IQ1: LCimax_10000 | IR1: LCimax_12500 | IS1: LCimax_16000 | IT1: LCimax_20000 | IU1: LZeq | IV1: LZeq_25 | IW1: LZeq_31.5 | IX1: LZeq_40 | IY1: LZeq_50 | IZ1: LZeq_63 | JA1: LZeq_80 | JB1: LZeq_100 | JC1: LZeq_125 | JD1: LZeq_160 | JE1: LZeq_200 | JF1: LZeq_250 | JG1: LZeq_315 | JH1: LZeq_400 | JI1: LZeq_500 | JJ1: LZeq_625 | JK1: LZeq_800 | JL1: LZeq_1000 | JM1: LZeq_1250 | JN1: LZeq_1600 | JO1: LZeq_2000 | JP1: LZeq_2500 | JQ1: LZeq_3150 | JR1: LZeq_4000 | JS1: LZeq_5000 | JT1: LZeq_6250 | JU1: LZeq_8000 | JV1: LZeq_10000 | JW1: LZeq_12500 | JX1: LZeq_16000 | JY1: LZeq_20000 | JZ1: LZfmax | KA1: LZfmax_25 | KB1: LZfmax_31.5 | KC1: LZfmax_40 | KD1: LZfmax_50 | KE1: LZfmax_63 | KF1: LZfmax_80 | KG1: LZfmax_100 | KH1: LZfmax_125 | KI1: LZfmax_160 | KJ1: LZfmax_200 | KK1: LZfmax_250 | KL1: LZfmax_315 | KM1: LZfmax_400 | KN1: LZfmax_500 | KO1: LZfmax_625 | KP1: LZfmax_800 | KQ1: LZfmax_1000 | KR1: LZfmax_1250 | KS1: LZfmax_1600 | KT1: LZfmax_2000 | KU1: LZfmax_2500 | KV1: LZfmax_3150 | KW1: LZfmax_4000 | KX1: LZfmax_5000 | KY1: LZfmax_6250 | KZ1: LZfmax_8000 | LA1: LZfmax_10000 | LB1: LZfmax_12500 | LC1: LZfmax_16000 | LD1: LZfmax_20000 | LE1: LZsmax | LF1: LZsmax_25 | LG1: LZsmax_31.5 | LH1: LZsmax_40 | LI1: LZsmax_50 | LJ1: LZsmax_63 | LK1: LZsmax_80 | LL1: LZsmax_100 | LM1: LZsmax_125 | LN1: LZsmax_160 | LO1: LZsmax_200 | LP1: LZsmax_250 | LQ1: LZsmax_315 | LR1: LZsmax_400 | LS1: LZsmax_500 | LT1: LZsmax_625 | LU1: LZsmax_800 | LV1: LZsmax_1000 | LW1: LZsmax_1250 | LX1: LZsmax_1600 | LY1: LZsmax_2000 | LZ1: LZsmax_2500 | MA1: LZsmax_3150 | MB1: LZsmax_4000 | MC1: LZsmax_5000 | MD1: LZsmax_6250 | ME1: LZsmax_8000 | MF1: LZsmax_10000 | MG1: LZsmax_12500 | MH1: LZsmax_16000 | MI1: LZsmax_20000 | MJ1: LZimax | MK1: LZimax_25 | ML1: LZimax_31.5 | MM1: LZimax_40 | MN1: LZimax_50 | MO1: LZimax_63 | MP1: LZimax_80 | MQ1: LZimax_100 | MR1: LZimax_125 | MS1: LZimax_160 | MT1: LZimax_200 | MU1: LZimax_250 | MV1: LZimax_315 | MW1: LZimax_400 | MX1: LZimax_500 | MY1: LZimax_625 | MZ1: LZimax_800 | NA1: LZimax_1000 | NB1: LZimax_1250 | NC1: LZimax_1600 | ND1: LZimax_2000 | NE1: LZimax_2500 | NF1: LZimax_3150 | NG1: LZimax_4000 | NH1: LZimax_5000 | NI1: LZimax_6250 | NJ1: LZimax_8000 | NK1: LZimax_10000 | NL1: LZimax_12500 | NM1: LZimax_16000 | NN1: LZimax_20000
A2: MEAS0001 | B2: 2021-09-30 | C2: 20:17:39 | D2: 9.89867 | E2: 3 | F2: 30 | G2: 68.49982 | H2: -6.23083 | I2: -6.58467 | J2: 3.71941 | K2: 17.24259 | L2: 18.03513 | M2: 9.86481 | N2: 31.60683 | O2: 41.76048 | P2: 46.30517 | Q2: 53.48933 | R2: 54.1441 | S2: 53.57439 | T2: 61.41019 | U2: 59.38226 | V2: 59.8891 | W2: 59.56685 | X2: 59.47718 | Y2: 60.17383 | Z2: 49.77715 | AA2: 52.72076 | AB2: 51.13032 | AC2: 39.41084 | AD2: 39.61696 | AE2: 40.46075 | AF2: 32.9883 | AG2: 34.95205 | AH2: 31.28112 | AI2: 23.10603 | AJ2: 15.43871 | AK2: 5.75306 | AL2: 74.54404 | AM2: -10.44305 | AN2: -5.65732 | AO2: 4.6854 | AP2: 13.25059 | AQ2: 8.64371 | AR2: 9.13565 | AS2: 11.46083 | AT2: 22.70803 | AU2: 47.24574 | AV2: 52.91095 | AW2: 48.50836 | AX2: 53.7397 | AY2: 56.66421 | AZ2: 60.44107 | BA2: 70.65599 | BB2: 66.42203 | BC2: 69.01649 | BD2: 60.22009 | BE2: 46.31896 | BF2: 48.868 | BG2: 44.08217 | BH2: 33.43464 | BI2: 32.6313 | BJ2: 39.01591 | BK2: 26.14612 | BL2: 29.26857 | BM2: 30.22291 | BN2: 17.84705 | BO2: 9.57932 | BP2: 5.01459 | BQ2: 70.76511 | BR2: -11.39227 | BS2: -6.43918 | BT2: 2.19482 | BU2: 11.27872 | BV2: 8.45732 | BW2: 7.55145 | BX2: 21.56172 | BY2: 30.80465 | BZ2: 41.94198 | CA2: 57.23315 | CB2: 56.42815 | CC2: 51.65295 | CD2: 62.87713 | CE2: 60.75504 | CF2: 64.3409 | CG2: 62.00654 | CH2: 62.93626 | CI2: 59.88382 | CJ2: 52.61561 | CK2: 54.64101 | CL2: 53.22147 | CM2: 40.95991 | CN2: 40.01134 | CO2: 41.61151 | CP2: 35.83723 | CQ2: 37.57575 | CR2: 32.87228 | CS2: 25.0182 | CT2: 17.04167 | CU2: 6.45399 | CV2: 77.65005 | CW2: -11.25593 | CX2: -3.22679 | CY2: 4.48433 | CZ2: 14.5468 | DA2: 8.21404 | DB2: 12.47097 | DC2: 10.83747 | DD2: 25.54171 | DE2: 51.16042 | DF2: 50.08469 | DG2: 48.23588 | DH2: 56.54628 | DI2: 51.65047 | DJ2: 62.59946 | DK2: 74.1709 | DL2: 70.6104 | DM2: 71.95054 | DN2: 62.98081 | DO2: 46.42828 | DP2: 49.64719 | DQ2: 43.68916 | DR2: 34.91354 | DS2: 34.67795 | DT2: 42.38649 | DU2: 24.87524 | DV2: 27.53967 | DW2: 32.03186 | DX2: 16.56007 | DY2: 7.26588 | DZ2: 5.78254 | EA2: 72.40704 | EB2: 33.85615 | EC2: 29.70973 | ED2: 35.27352 | EE2: 45.57255 | EF2: 44.0732 | EG2: 30.84946 | EH2: 49.29725 | EI2: 57.46504 | EJ2: 59.0697 | EK2: 63.84057 | EL2: 63.27975 | EM2: 59.83069 | EN2: 66.17165 | EO2: 62.89473 | EP2: 61.7446 | EQ2: 60.41541 | ER2: 59.50415 | ES2: 59.63265 | ET2: 48.79519 | EU2: 51.29791 | EV2: 49.60141 | EW2: 37.71437 | EX2: 37.83121 | EY2: 38.61949 | EZ2: 31.1078 | FA2: 33.04993 | FB2: 29.36563 | FC2: 21.18168 | FD2: 13.51364 | FE2: 3.79445 | FF2: 78.4352 | FG2: 40.00966 | FH2: 35.36375 | FI2: 33.52619 | FJ2: 46.66225 | FK2: 51.32641 | FL2: 25.80402 | FM2: 33.9354 | FN2: 39.86385 | FO2: 47.84847 | FP2: 70.68338 | FQ2: 65.41476 | FR2: 57.07639 | FS2: 75.85342 | FT2: 65.07532 | FU2: 65.4165 | FV2: 64.23087 | FW2: 63.36914 | FX2: 58.90588 | FY2: 50.84835 | FZ2: 51.83928 | GA2: 52.35536 | GB2: 38.25443 | GC2: 38.45811 | GD2: 39.69077 | GE2: 29.2026 | GF2: 35.27589 | GG2: 30.96158 | GH2: 22.29939 | GI2: 17.18029 | GJ2: 5.39189 | GK2: 74.58379 | GL2: 28.28524 | GM2: 30.2804 | GN2: 32.37527 | GO2: 39.2571 | GP2: 33.91144 | GQ2: 28.81339 | GR2: 41.32224 | GS2: 47.59549 | GT2: 51.73703 | GU2: 68.61934 | GV2: 67.26413 | GW2: 58.08923 | GX2: 68.65027 | GY2: 65.29956 | GZ2: 62.43562 | HA2: 59.56812 | HB2: 59.49874 | HC2: 60.14023 | HD2: 53.12859 | HE2: 54.66332 | HF2: 53.23699 | HG2: 40.7607 | HH2: 39.75552 | HI2: 41.03741 | HJ2: 35.52642 | HK2: 37.22577 | HL2: 32.20143 | HM2: 24.54739 | HN2: 16.56465 | HO2: 5.24662 | HP2: 79.68414 | HQ2: 42.18346 | HR2: 36.36119 | HS2: 33.96006 | HT2: 45.43597 | HU2: 50.67327 | HV2: 20.60417 | HW2: 29.84755 | HX2: 32.12711 | HY2: 46.85993 | HZ2: 73.05359 | IA2: 56.89114 | IB2: 52.00933 | IC2: 77.49477 | ID2: 61.62278 | IE2: 65.33374 | IF2: 67.39397 | IG2: 61.07712 | IH2: 54.74939 | II2: 42.92572 | IJ2: 42.25111 | IK2: 48.79912 | IL2: 37.899 | IM2: 29.855 | IN2: 23.74815 | IO2: 22.81915 | IP2: 31.08828 | IQ2: 24.74997 | IR2: 15.1458 | IS2: 12.12251 | IT2: 3.92155 | IU2: 72.43425 | IV2: 38.33297 | IW2: 32.8732 | IX2: 37.1655 | IY2: 46.85603 | IZ2: 45.02663 | JA2: 31.33709 | JB2: 49.56013 | JC2: 57.64203 | JD2: 59.15091 | JE2: 63.86979 | JF2: 63.28976 | JG2: 59.81046 | JH2: 66.14275 | JI2: 62.86263 | JJ2: 61.71576 | JK2: 60.39641 | JL2: 59.50416 | JM2: 59.66011 | JN2: 48.86915 | JO2: 51.49397 | JP2: 49.86557 | JQ2: 38.21346 | JR2: 38.62851 | JS2: 39.86456 | JT2: 33.16608 | JU2: 36.09026 | JV2: 33.58691 | JW2: 27.03765 | JX2: 21.36098 | JY2: 14.58066 | JZ2: 78.4288 | KA2: 44.08154 | KB2: 38.85442 | KC2: 35.64849 | KD2: 47.92593 | KE2: 52.283 | KF2: 26.43111 | KG2: 34.21198 | KH2: 40.05428 | KI2: 47.89225 | KJ2: 70.72311 | KK2: 65.42226 | KL2: 57.05038 | KM2: 75.82572 | KN2: 65.04361 | KO2: 65.38486 | KP2: 64.21724 | KQ2: 63.366 | KR2: 58.92797 | KS2: 50.92268 | KT2: 52.03804 | KU2: 52.61572 | KV2: 38.74028 | KW2: 39.27023 | KX2: 40.94424 | KY2: 31.14032 | KZ2: 38.41579 | LA2: 35.15551 | LB2: 28.39371 | LC2: 24.96278 | LD2: 15.99216 | LE2: 74.59468 | LF2: 32.91444 | LG2: 33.47171 | LH2: 34.26421 | LI2: 40.64408 | LJ2: 34.81951 | LK2: 29.28883 | LL2: 41.61537 | LM2: 47.75576 | LN2: 51.81227 | LO2: 68.64742 | LP2: 67.27627 | LQ2: 58.07005 | LR2: 68.62051 | LS2: 65.26752 | LT2: 62.40699 | LU2: 59.54934 | LV2: 59.49877 | LW2: 60.16753 | LX2: 53.20475 | LY2: 54.85756 | LZ2: 53.50769 | MA2: 41.23315 | MB2: 40.54355 | MC2: 42.308 | MD2: 37.62598 | ME2: 40.257 | MF2: 36.39804 | MG2: 30.47201 | MH2: 24.35017 | MI2: 15.79484 | MJ2: 79.67048 | MK2: 46.33546 | ML2: 40.01634 | MM2: 36.30578 | MN2: 46.66739 | MO2: 51.60297 | MP2: 21.28062 | MQ2: 30.16541 | MR2: 32.29704 | MS2: 46.89143 | MT2: 73.09412 | MU2: 56.92616 | MV2: 51.97771 | MW2: 77.46667 | MX2: 61.59784 | MY2: 65.30105 | MZ2: 67.38243 | NA2: 61.07202 | NB2: 54.77067 | NC2: 42.99497 | ND2: 42.46683 | NE2: 49.06316 | NF2: 38.36675 | NG2: 30.64391 | NH2: 24.98389 | NI2: 24.81062 | NJ2: 34.25198 | NK2: 28.66508 | NL2: 21.39507 | NM2: 20.09879 | NN2: 14.79031
IU3: Unweighted (Z) eq. levels in 1/3 octave bands
IU4: LZeq | IV4: LZeq_25 | IW4: LZeq_31.5 | IX4: LZeq_40 | IY4: LZeq_50 | IZ4: LZeq_63 | JA4: LZeq_80 | JB4: LZeq_100 | JC4: LZeq_125 | JD4: LZeq_160 | JE4: LZeq_200 | JF4: LZeq_250 | JG4: LZeq_315 | JH4: LZeq_400 | JI4: LZeq_500 | JJ4: LZeq_625 | JK4: LZeq_800 | JL4: LZeq_1000 | JM4: LZeq_1250 | JN4: LZeq_1600 | JO4: LZeq_2000 | JP4: LZeq_2500 | JQ4: LZeq_3150 | JR4: LZeq_4000 | JS4: LZeq_5000 | JT4: LZeq_6250 | JU4: LZeq_8000 | JV4: LZeq_10000 | JW4: LZeq_12500 | JX4: LZeq_16000 | JY4: LZeq_20000
IU5: 72.43425 | IV5: 38.33297 | IW5: 32.8732 | IX5: 37.1655 | IY5: 46.85603 | IZ5: 45.02663 | JA5: 31.33709 | JB5: 49.56013 | JC5: 57.64203 | JD5: 59.15091 | JE5: 63.86979 | JF5: 63.28976 | JG5: 59.81046 | JH5: 66.14275 | JI5: 62.86263 | JJ5: 61.71576 | JK5: 60.39641 | JL5: 59.50416 | JM5: 59.66011 | JN5: 48.86915 | JO5: 51.49397 | JP5: 49.86557 | JQ5: 38.21346 | JR5: 38.62851 | JS5: 39.86456 | JT5: 33.16608 | JU5: 36.09026 | JV5: 33.58691 | JW5: 27.03765 | JX5: 21.36098 | JY5: 14.58066
IU7: Converison to A-weighted
IU8: A-weights | IV8: -44.7 | IW8: -39.4 | IX8: -34.6 | IY8: -30.2 | IZ8: -26.2 | JA8: -22.5 | JB8: -19.1 | JC8: -16.1 | JD8: -13.4 | JE8: -10.9 | JF8: -8.6 | JG8: -6.6 | JH8: -4.8 | JI8: -3.2 | JJ8: -1.9 | JK8: -0.8 | JL8: 0 | JM8: 0.6 | JN8: 1 | JO8: 1.2 | JP8: 1.3 | JQ8: 1.2 | JR8: 1 | JS8: 0.5 | JT8: -0.1 | JU8: -1.1 | JV8: -2.5 | JW8: -4.3 | JX8: -6.6 | JY8: -9.3
IT9: Laeq | IU9: =JA11 -> 68.64241746 | IV9: =IV5+IV8 -> -6.36703 | IW9: =IW5+IW8 -> -6.5268 | IX9: 2.5655 | IY9: 16.65603 | IZ9: 18.82663 | JA9: 8.83709 | JB9: 30.46013 | JC9: 41.54203 | JD9: 45.75091 | JE9: 52.96979 | JF9: 54.68976 | JG9: 53.21046 | JH9: 61.34275 | JI9: 59.66263 | JJ9: 59.81576 | JK9: 59.59641 | JL9: 59.50416 | JM9: 60.26011 | JN9: 49.86915 | JO9: 52.69397 | JP9: 51.16557 | JQ9: 39.41346 | JR9: 39.62851 | JS9: 40.36456 | JT9: 33.06608 | JU9: 34.99026 | JV9: 31.08691 | JW9: 22.73765 | JX9: 14.76098 | JY9: 5.28066
IU10: 10^(Li/10) | IV10: =10^(IV9/10) -> 0.2308325238 | IW10: =10^(IW9/10) -> 0.222494869 | IX10: 1.805302568 | IY10: 46.30234643 | IZ10: 76.32432989 | JA10: 7.65083789 | JB10: 1111.765006 | JC10: 14262.74114 | JD10: 37591.61637 | JE10: 198143.1213 | JF10: 294425.8924 | JG10: 209433.4274 | JH10: 1362307.037 | JI10: 925258.3221 | JJ10: 958464.4295 | JK10: 911257.2571 | JL10: 892105.0545 | JM10: 1061722.449 | JN10: 97032.00379 | JO10: 185950.3499 | JP10: 130784.7179 | JQ10: 8736.671369 | JR10: 9180.175842 | JS10: 10875.66947 | JT10: 2025.853332 | JU10: 3155.19351 | JV10: 1284.372505 | JW10: 187.8300179 | JX10: 29.92939927 | JY10: 3.373385703
IU11: Laeq,tot =10*log10(10^(L1/10)+10^(L2/10)+…+10^(Ln/10)) = | JA11: =10*LOG10(SUM(IV10:JY10)) -> 68.64241746 | JB11: dB(A)

Sheet Octave spectrum
A1: From a spectrum of linear (Z) SPL to A-weighted values
A3: f (hz) | B3: 125 | C3: 250 | D3: 500 | E3: 1000 | F3: 2000 | G3: 4000 | H3: Total
A4: Lzeq | B4: 87 | C4: 76 | D4: 77 | E4: 81 | F4: 72 | G4: 66 | H4: =10*LOG10(SUM(B5:G5)) -> 88.67372733 | I4: dB
A5: 10^(Lzi/10) | B5: =10^(B4/10) -> 501187233.6 | C5: =10^(C4/10) -> 39810717.06 | D5: 50118723.36 | E5: 125892541.2 | F5: 15848931.92 | G5: 3981071.706
A6: A-weigts | B6: -16.1 | C6: -8.6 | D6: -3.2 | E6: 0 | F6: 1.2 | G6: 1
A7: Laeq | B7: =B4+B6 -> 70.9 | C7: =C4+C6 -> 67.4 | D7: 73.8 | E7: 81 | F7: 73.2 | G7: 67 | H7: =10*LOG10(SUM(B8:G8)) -> 82.86869012 | I7: dB(A)
A8: 10^(Lai/10) | B8: =10^(B7/10) -> 12302687.71 | C8: =10^(C7/10) -> 5495408.739 | D8: =10^(D7/10) -> 23988329.19 | E8: =10^(E7/10) -> 125892541.2 | F8: =10^(F7/10) -> 20892961.31 | G8: =10^(G7/10) -> 5011872.336

Sheet Notes
